﻿organisation_name,service_responsible,supplier_code,supplier_name,payment_date,transaction_ref,net_amount_by_line_item,irrecoverable_vat,purpose_of_spend,procurement_category_name,transaction_type,payment_type,card_transaction,invoice_date,financial_year,financial_period,supplier_invoice_reference,cost_centre_code,cost_centre_desc,account_code,account_desc,SeRCOP_subdivision_code,SeRCOP_Subdivision_description,SeRCOP_division_codee,SeRCOP_division_description,SeRCOP_service_code,SeRCOP_service_description,SeRCOP_major_service_code,SeRCOP_major_service_description
GUILDFORD BOROUGH COUNCIL,Renovations,1000338,3MS Gold Services Ltd,23/01/2024,30120931,4207.45,0,Contractor Payments,,Invoice,BACS,No,15/12/2023 00:00,2023,10,3353,N40295,Disabled adaptations,1233,Contractor Payments,XXX99,*** UNASSIGNED ***,WCC,CEC Recharges,WC,CEC Recharges,A,Central Services
GUILDFORD BOROUGH COUNCIL,Renovations,1000338,3MS Gold Services Ltd,23/01/2024,30120931,2804.97,0,Contractor Payments,,Invoice,BACS,No,15/12/2023 00:00,2023,10,3353,N40295,Disabled adaptations,1233,Contractor Payments,XXX99,*** UNASSIGNED ***,WCC,CEC Recharges,WC,CEC Recharges,A,Central Services
GUILDFORD BOROUGH COUNCIL,Renovations,1000338,3MS Gold Services Ltd,08/02/2024,30122017,4207.45,0,Contractor Payments,,Invoice,BACS,No,04/01/2024 00:00,2023,11,3363,N40295,Disabled adaptations,1233,Contractor Payments,XXX99,*** UNASSIGNED ***,WCC,CEC Recharges,WC,CEC Recharges,A,Central Services
GUILDFORD BOROUGH COUNCIL,Renovations,1000338,3MS Gold Services Ltd,08/02/2024,30122017,2804.97,0,Contractor Payments,,Invoice,BACS,No,04/01/2024 00:00,2023,11,3363,N40295,Disabled adaptations,1233,Contractor Payments,XXX99,*** UNASSIGNED ***,WCC,CEC Recharges,WC,CEC Recharges,A,Central Services
GUILDFORD BOROUGH COUNCIL,Renovations,1000338,3MS Gold Services Ltd,13/02/2024,30122395,3548.95,0,Contractor Payments,,Invoice,BACS,No,24/01/2024 00:00,2023,11,3426,N40295,Disabled adaptations,1233,Contractor Payments,XXX99,*** UNASSIGNED ***,WCC,CEC Recharges,WC,CEC Recharges,A,Central Services
GUILDFORD BOROUGH COUNCIL,Renovations,1000338,3MS Gold Services Ltd,13/02/2024,30122395,2365.97,0,Contractor Payments,,Invoice,BACS,No,24/01/2024 00:00,2023,11,3426,N40295,Disabled adaptations,1233,Contractor Payments,XXX99,*** UNASSIGNED ***,WCC,CEC Recharges,WC,CEC Recharges,A,Central Services
GUILDFORD BOROUGH COUNCIL,Environmental Services,320160,A & P Services (Surrey) Ltd,29/02/2024,30122161,345,0,Materials,Agricultural Engineers,Invoice,BACS,No,06/02/2024 00:00,2023,11,8180,A1300,Trees And Countryside,D2003,Materials,CCE00,Community Parks & Open Spaces,CCE,Open Spaces,CC,Cultural & Related Services,C,"Cultural, Environmental & Planning Services"
GUILDFORD BOROUGH COUNCIL,Environmental Services,320160,A & P Services (Surrey) Ltd,29/02/2024,30122161,345,0,Materials,Agricultural Engineers,Invoice,BACS,No,06/02/2024 00:00,2023,11,8180,A1300,Countryside,D2003,Materials,CCE00,Community Parks & Open Spaces,CCE,Open Spaces,CC,Cultural & Related Services,C,"Cultural, Environmental & Planning Services"
GUILDFORD BOROUGH COUNCIL,Environmental Services,320160,A & P Services (Surrey) Ltd,27/02/2024,30121629,3498.89,0,Repair And Maintenance Of Vehicles,Agricultural Engineers,Invoice,BACS,No,01/02/2024 00:00,2023,11,8177,A1100,Horticulture,C1002,Repair And Maintenance Of Vehicles,CCE00,Community Parks & Open Spaces,CCE,Open Spaces,CC,Cultural & Related Services,C,"Cultural, Environmental & Planning Services"
GUILDFORD BOROUGH COUNCIL,Environmental Services,320160,A & P Services (Surrey) Ltd,20/02/2024,30121357,717.65,0,Repair And Maintenance Of Vehicles,Agricultural Engineers,Invoice,BACS,No,26/01/2024 00:00,2023,10,8167,A1100,Horticulture,C1002,Repair And Maintenance Of Vehicles,CCE00,Community Parks & Open Spaces,CCE,Open Spaces,CC,Cultural & Related Services,C,"Cultural, Environmental & Planning Services"
GUILDFORD BOROUGH COUNCIL,HRA Service Delivery,713700,A P Benson Roofing & Building Limited,23/01/2024,30120917,748,0,Asset Maintenance,Roofers,Invoice,BACS,No,01/08/2023 00:00,2023,10,5094,M2750,57-59A Gt Goodwin Drive (4),B1001,Asset Maintenance,W3A05,Current Service Costs - Housing Services,W3A,Current Service Costs adjustment,W3,Current Service Costs,W,Other Operating Income and Expenditure
GUILDFORD BOROUGH COUNCIL,HRA Service Delivery,713700,A P Benson Roofing & Building Limited,23/01/2024,30120916,3390,0,Asset Maintenance,Roofers,Invoice,BACS,No,01/08/2023 00:00,2023,10,5093,M5114,Repairs-Cyclical (BHS),B1001,Asset Maintenance,W3A05,Current Service Costs - Housing Services,W3A,Current Service Costs adjustment,W3,Current Service Costs,W,Other Operating Income and Expenditure
GUILDFORD BOROUGH COUNCIL,HRA Service Delivery,713700,A P Benson Roofing & Building Limited,23/01/2024,30120918,748,0,Asset Maintenance,Roofers,Invoice,BACS,No,01/08/2023 00:00,2023,10,5095,M5114,Repairs-Cyclical (BHS),B1001,Asset Maintenance,W3A05,Current Service Costs - Housing Services,W3A,Current Service Costs adjustment,W3,Current Service Costs,W,Other Operating Income and Expenditure
GUILDFORD BOROUGH COUNCIL,HRA Service Delivery,713700,A P Benson Roofing & Building Limited,23/01/2024,30120919,748,0,Asset Maintenance,Roofers,Invoice,BACS,No,01/08/2023 00:00,2023,10,5096,M5114,Repairs-Cyclical (BHS),B1001,Asset Maintenance,W3A05,Current Service Costs - Housing Services,W3A,Current Service Costs adjustment,W3,Current Service Costs,W,Other Operating Income and Expenditure
GUILDFORD BOROUGH COUNCIL,HRA Service Delivery,713700,A P Benson Roofing & Building Limited,23/01/2024,30120920,1578,0,Asset Maintenance,Roofers,Invoice,BACS,No,14/09/2023 00:00,2023,10,5117,M5114,Repairs-Cyclical (BHS),B1001,Asset Maintenance,W3A05,Current Service Costs - Housing Services,W3A,Current Service Costs adjustment,W3,Current Service Costs,W,Other Operating Income and Expenditure
GUILDFORD BOROUGH COUNCIL,HRA Service Delivery,713700,A P Benson Roofing & Building Limited,23/01/2024,30120912,790,0,Asset Maintenance,Roofers,Invoice,BACS,No,28/02/2023 00:00,2023,10,5023,M5114,Repairs-Cyclical (BHS),B1001,Asset Maintenance,W3A05,Current Service Costs - Housing Services,W3A,Current Service Costs adjustment,W3,Current Service Costs,W,Other Operating Income and Expenditure
GUILDFORD BOROUGH COUNCIL,HRA Service Delivery,713700,A P Benson Roofing & Building Limited,23/01/2024,30120913,1578,0,Asset Maintenance,Roofers,Invoice,BACS,No,18/04/2023 00:00,2023,10,5040,M5114,Repairs-Cyclical (BHS),B1001,Asset Maintenance,W3A05,Current Service Costs - Housing Services,W3A,Current Service Costs adjustment,W3,Current Service Costs,W,Other Operating Income and Expenditure
GUILDFORD BOROUGH COUNCIL,HRA Service Delivery,713700,A P Benson Roofing & Building Limited,23/01/2024,30120914,748,0,Asset Maintenance,Roofers,Invoice,BACS,No,20/06/2023 00:00,2023,10,5064,M5114,Repairs-Cyclical (BHS),B1001,Asset Maintenance,W3A05,Current Service Costs - Housing Services,W3A,Current Service Costs adjustment,W3,Current Service Costs,W,Other Operating Income and Expenditure
GUILDFORD BOROUGH COUNCIL,HRA Service Delivery,713700,A P Benson Roofing & Building Limited,23/01/2024,30120915,3390,0,Asset Maintenance,Roofers,Invoice,BACS,No,01/08/2023 00:00,2023,10,5092,M5114,Repairs-Cyclical (BHS),B1001,Asset Maintenance,W3A05,Current Service Costs - Housing Services,W3A,Current Service Costs adjustment,W3,Current Service Costs,W,Other Operating Income and Expenditure
GUILDFORD BOROUGH COUNCIL,HRA Service Delivery,713700,A P Benson Roofing & Building Limited,23/01/2024,30120921,1578,0,Asset Maintenance,Roofers,Invoice,BACS,No,14/09/2023 00:00,2023,10,5118,M5114,Repairs-Cyclical (BHS),B1001,Asset Maintenance,W3A05,Current Service Costs - Housing Services,W3A,Current Service Costs adjustment,W3,Current Service Costs,W,Other Operating Income and Expenditure
GUILDFORD BOROUGH COUNCIL,HRA Service Delivery,713700,A P Benson Roofing & Building Limited,23/01/2024,30120922,1578,0,Asset Maintenance,Roofers,Invoice,BACS,No,14/09/2023 00:00,2023,10,5119,M5114,Repairs-Cyclical (BHS),B1001,Asset Maintenance,W3A05,Current Service Costs - Housing Services,W3A,Current Service Costs adjustment,W3,Current Service Costs,W,Other Operating Income and Expenditure
GUILDFORD BOROUGH COUNCIL,HRA Service Delivery,826860,A Plus Clean Ltd,27/02/2024,30123447,318,0,Asset Maintenance,Commercial Cleaners,Invoice,BACS,No,25/01/2024 00:00,2023,11,INV/13490,M3511,Walnut Tree Close Eq. Share,B1001,Asset Maintenance,W3A05,Current Service Costs - Housing Services,W3A,Current Service Costs adjustment,W3,Current Service Costs,W,Other Operating Income and Expenditure
GUILDFORD BOROUGH COUNCIL,HRA Service Delivery,826860,A Plus Clean Ltd,27/02/2024,30123427,1197,0,Asset Maintenance,Commercial Cleaners,Invoice,BACS,No,23/01/2024 00:00,2023,11,INV/13469,M5107,Repairs-Shelt-Cyclical (BHS),B1001,Asset Maintenance,W3A05,Current Service Costs - Housing Services,W3A,Current Service Costs adjustment,W3,Current Service Costs,W,Other Operating Income and Expenditure
GUILDFORD BOROUGH COUNCIL,HRA Service Delivery,826860,A Plus Clean Ltd,27/02/2024,30123428,441,0,Asset Maintenance,Commercial Cleaners,Invoice,BACS,No,24/01/2024 00:00,2023,11,INV/13470,M5107,Repairs-Shelt-Cyclical (BHS),B1001,Asset Maintenance,W3A05,Current Service Costs - Housing Services,W3A,Current Service Costs adjustment,W3,Current Service Costs,W,Other Operating Income and Expenditure
GUILDFORD BOROUGH COUNCIL,HRA Service Delivery,826860,A Plus Clean Ltd,27/02/2024,30123425,258,0,Asset Maintenance,Commercial Cleaners,Invoice,BACS,No,26/01/2024 00:00,2023,11,INV/13467,M2841,Parsons Green 1-24 (24),B1001,Asset Maintenance,W3A05,Current Service Costs - Housing Services,W3A,Current Service Costs adjustment,W3,Current Service Costs,W,Other Operating Income and Expenditure
GUILDFORD BOROUGH COUNCIL,HRA Service Delivery,826860,A Plus Clean Ltd,27/02/2024,30123445,264,0,Asset Maintenance,Commercial Cleaners,Invoice,BACS,No,23/01/2024 00:00,2023,11,INV/13487,M3511,Walnut Tree Close Eq. Share,B1001,Asset Maintenance,W3A05,Current Service Costs - Housing Services,W3A,Current Service Costs adjustment,W3,Current Service Costs,W,Other Operating Income and Expenditure
GUILDFORD BOROUGH COUNCIL,HRA Service Delivery,826860,A Plus Clean Ltd,27/02/2024,30123442,1342,0,Asset Maintenance,Commercial Cleaners,Invoice,BACS,No,25/01/2024 00:00,2023,11,INV/13484,M5107,Repairs-Shelt-Cyclical (BHS),B1001,Asset Maintenance,W3A05,Current Service Costs - Housing Services,W3A,Current Service Costs adjustment,W3,Current Service Costs,W,Other Operating Income and Expenditure
GUILDFORD BOROUGH COUNCIL,HRA Service Delivery,826860,A Plus Clean Ltd,27/02/2024,30123426,304,0,Asset Maintenance,Commercial Cleaners,Invoice,BACS,No,23/01/2024 00:00,2023,11,INV/13468,M3513,Epsom Road Equity Share,B1001,Asset Maintenance,W3A05,Current Service Costs - Housing Services,W3A,Current Service Costs adjustment,W3,Current Service Costs,W,Other Operating Income and Expenditure
GUILDFORD BOROUGH COUNCIL,HRA Service Delivery,826860,A Plus Clean Ltd,27/02/2024,30123451,300,0,Asset Maintenance,Commercial Cleaners,Invoice,BACS,No,25/01/2024 00:00,2023,11,INV/13495,M5114,Repairs-Cyclical (BHS),B1001,Asset Maintenance,W3A05,Current Service Costs - Housing Services,W3A,Current Service Costs adjustment,W3,Current Service Costs,W,Other Operating Income and Expenditure
GUILDFORD BOROUGH COUNCIL,Housing Services,969700,A Star Maintenance Contractors Ltd (CIS),13/02/2024,30122494,1200,0,Services,Property Maintenance Contractors,Invoice,BACS,No,25/01/2024 00:00,2023,11,15046,K1515,Building Maintenance,D6004,Services,DBX45,Property Services,DBX,Support Service and Management Costs,DB,Children's Social Care,E,Childrens and Education Services
GUILDFORD BOROUGH COUNCIL,Housing Services,969700,A Star Maintenance Contractors Ltd (CIS),13/02/2024,30122494,2300.24,0,Materials,Property Maintenance Contractors,Invoice,BACS,No,25/01/2024 00:00,2023,11,15046,K1515,Building Maintenance,D2003,Materials,DBX45,Property Services,DBX,Support Service and Management Costs,DB,Children's Social Care,E,Childrens and Education Services
GUILDFORD BOROUGH COUNCIL,Housing Services,969700,A Star Maintenance Contractors Ltd (CIS),20/02/2024,30122694,5000,0,Services,Property Maintenance Contractors,Invoice,BACS,No,25/01/2024 00:00,2023,11,15045,K1515,Building Maintenance,D6004,Services,DBX45,Property Services,DBX,Support Service and Management Costs,DB,Children's Social Care,E,Childrens and Education Services
GUILDFORD BOROUGH COUNCIL,Housing Services,969700,A Star Maintenance Contractors Ltd (CIS),20/02/2024,30122705,1500,0,Services,Property Maintenance Contractors,Invoice,BACS,No,07/02/2024 00:00,2023,11,15058,K1515,Building Maintenance,D6004,Services,DBX45,Property Services,DBX,Support Service and Management Costs,DB,Children's Social Care,E,Childrens and Education Services
GUILDFORD BOROUGH COUNCIL,Housing Services,969700,A Star Maintenance Contractors Ltd (CIS),20/02/2024,30122706,4093.6,0,Materials,Property Maintenance Contractors,Invoice,BACS,No,07/02/2024 00:00,2023,11,15057,K1515,Building Maintenance,D2003,Materials,DBX45,Property Services,DBX,Support Service and Management Costs,DB,Children's Social Care,E,Childrens and Education Services
GUILDFORD BOROUGH COUNCIL,Housing Services,969700,A Star Maintenance Contractors Ltd (CIS),05/03/2024,30123746,2574.12,0,Materials,Property Maintenance Contractors,Invoice,BACS,No,22/02/2024 00:00,2023,12,15072,K1515,Building Maintenance,D2003,Materials,DBX45,Property Services,DBX,Support Service and Management Costs,DB,Children's Social Care,E,Childrens and Education Services
GUILDFORD BOROUGH COUNCIL,Housing Services,969700,A Star Maintenance Contractors Ltd (CIS),05/03/2024,30123749,1354.8,0,Materials,Property Maintenance Contractors,Invoice,BACS,No,22/02/2024 00:00,2023,12,15070,K1515,Building Maintenance,D2003,Materials,DBX45,Property Services,DBX,Support Service and Management Costs,DB,Children's Social Care,E,Childrens and Education Services
GUILDFORD BOROUGH COUNCIL,Housing Services,969700,A Star Maintenance Contractors Ltd (CIS),05/03/2024,30123793,3740.11,0,Materials,Property Maintenance Contractors,Invoice,BACS,No,27/02/2024 00:00,2023,12,15082,K1515,Building Maintenance,D2003,Materials,DBX45,Property Services,DBX,Support Service and Management Costs,DB,Children's Social Care,E,Childrens and Education Services
GUILDFORD BOROUGH COUNCIL,Housing Services,969700,A Star Maintenance Contractors Ltd (CIS),07/03/2024,30123761,2500,0,Services,Property Maintenance Contractors,Invoice,BACS,No,22/02/2024 00:00,2023,12,15071,K1515,Building Maintenance,D6004,Services,DBX45,Property Services,DBX,Support Service and Management Costs,DB,Children's Social Care,E,Childrens and Education Services
GUILDFORD BOROUGH COUNCIL,Housing Services,969700,A Star Maintenance Contractors Ltd (CIS),07/03/2024,30123761,4314.82,0,Materials,Property Maintenance Contractors,Invoice,BACS,No,22/02/2024 00:00,2023,12,15071,K1515,Building Maintenance,D2003,Materials,DBX45,Property Services,DBX,Support Service and Management Costs,DB,Children's Social Care,E,Childrens and Education Services
GUILDFORD BOROUGH COUNCIL,Housing Services,969700,A Star Maintenance Contractors Ltd (CIS),30/01/2024,30121274,2000,0,Services,Property Maintenance Contractors,Invoice,BACS,No,18/01/2024 00:00,2023,10,15037,K1515,Building Maintenance,D6004,Services,DBX45,Property Services,DBX,Support Service and Management Costs,DB,Children's Social Care,E,Childrens and Education Services
GUILDFORD BOROUGH COUNCIL,Housing Services,969700,A Star Maintenance Contractors Ltd (CIS),30/01/2024,30121261,1000,0,Services,Property Maintenance Contractors,Invoice,BACS,No,10/01/2024 00:00,2023,10,15021,K1515,Building Maintenance,D6004,Services,DBX45,Property Services,DBX,Support Service and Management Costs,DB,Children's Social Care,E,Childrens and Education Services
GUILDFORD BOROUGH COUNCIL,Housing Services,969700,A Star Maintenance Contractors Ltd (CIS),30/01/2024,30121261,2554.6,0,Materials,Property Maintenance Contractors,Invoice,BACS,No,10/01/2024 00:00,2023,10,15021,K1515,Building Maintenance,D2003,Materials,DBX45,Property Services,DBX,Support Service and Management Costs,DB,Children's Social Care,E,Childrens and Education Services
GUILDFORD BOROUGH COUNCIL,Housing Services,969700,A Star Maintenance Contractors Ltd (CIS),19/03/2024,30124379,1260,0,Services,Property Maintenance Contractors,Invoice,BACS,No,06/03/2024 00:00,2023,12,15085,K1515,Building Maintenance,D6004,Services,DBX45,Property Services,DBX,Support Service and Management Costs,DB,Children's Social Care,E,Childrens and Education Services
GUILDFORD BOROUGH COUNCIL,Housing Services,969700,A Star Maintenance Contractors Ltd (CIS),05/03/2024,30123736,1745.6,0,Materials,Property Maintenance Contractors,Invoice,BACS,No,27/02/2024 00:00,2023,12,15081,K1515,Building Maintenance,D2003,Materials,DBX45,Property Services,DBX,Support Service and Management Costs,DB,Children's Social Care,E,Childrens and Education Services
GUILDFORD BOROUGH COUNCIL,Housing Services,969700,A Star Maintenance Contractors Ltd (CIS),22/02/2024,30123067,462.5,0,Services,Property Maintenance Contractors,Invoice,BACS,No,13/02/2024 00:00,2023,11,15067,K1515,Building Maintenance,D6004,Services,DBX45,Property Services,DBX,Support Service and Management Costs,DB,Children's Social Care,E,Childrens and Education Services
GUILDFORD BOROUGH COUNCIL,Housing Services,969700,A Star Maintenance Contractors Ltd (CIS),22/02/2024,30123067,292.1,0,Materials,Property Maintenance Contractors,Invoice,BACS,No,13/02/2024 00:00,2023,11,15067,K1515,Building Maintenance,D2003,Materials,DBX45,Property Services,DBX,Support Service and Management Costs,DB,Children's Social Care,E,Childrens and Education Services
GUILDFORD BOROUGH COUNCIL,Housing Services,969700,A Star Maintenance Contractors Ltd (CIS),22/02/2024,30123101,4876.84,0,Materials,Property Maintenance Contractors,Invoice,BACS,No,13/02/2024 00:00,2023,11,15066,K1515,Building Maintenance,D2003,Materials,DBX45,Property Services,DBX,Support Service and Management Costs,DB,Children's Social Care,E,Childrens and Education Services
GUILDFORD BOROUGH COUNCIL,Housing Services,969700,A Star Maintenance Contractors Ltd (CIS),14/03/2024,30124349,800,0,Services,Property Maintenance Contractors,Invoice,BACS,No,06/03/2024 00:00,2023,12,15088,K1515,Building Maintenance,D6004,Services,DBX45,Property Services,DBX,Support Service and Management Costs,DB,Children's Social Care,E,Childrens and Education Services
GUILDFORD BOROUGH COUNCIL,Housing Services,969700,A Star Maintenance Contractors Ltd (CIS),14/03/2024,30124349,1753.72,0,Materials,Property Maintenance Contractors,Invoice,BACS,No,06/03/2024 00:00,2023,12,15088,K1515,Building Maintenance,D2003,Materials,DBX45,Property Services,DBX,Support Service and Management Costs,DB,Children's Social Care,E,Childrens and Education Services
GUILDFORD BOROUGH COUNCIL,Housing Services,969700,A Star Maintenance Contractors Ltd (CIS),14/03/2024,30124375,2000,0,Services,Property Maintenance Contractors,Invoice,BACS,No,06/03/2024 00:00,2023,12,15087,K1515,Building Maintenance,D6004,Services,DBX45,Property Services,DBX,Support Service and Management Costs,DB,Children's Social Care,E,Childrens and Education Services
GUILDFORD BOROUGH COUNCIL,Housing Services,969700,A Star Maintenance Contractors Ltd (CIS),13/02/2024,30122499,1184,0,Services,Property Maintenance Contractors,Invoice,BACS,No,31/01/2024 00:00,2023,11,15054,K1515,Building Maintenance,D6004,Services,DBX45,Property Services,DBX,Support Service and Management Costs,DB,Children's Social Care,E,Childrens and Education Services
GUILDFORD BOROUGH COUNCIL,Housing Services,969700,A Star Maintenance Contractors Ltd (CIS),13/02/2024,30122499,541.02,0,Materials,Property Maintenance Contractors,Invoice,BACS,No,31/01/2024 00:00,2023,11,15054,K1515,Building Maintenance,D2003,Materials,DBX45,Property Services,DBX,Support Service and Management Costs,DB,Children's Social Care,E,Childrens and Education Services
GUILDFORD BOROUGH COUNCIL,Housing Services,969700,A Star Maintenance Contractors Ltd (CIS),13/02/2024,30122482,1200,0,Services,Property Maintenance Contractors,Invoice,BACS,No,31/01/2024 00:00,2023,11,15053,K1515,Building Maintenance,D6004,Services,DBX45,Property Services,DBX,Support Service and Management Costs,DB,Children's Social Care,E,Childrens and Education Services
GUILDFORD BOROUGH COUNCIL,Housing Services,969700,A Star Maintenance Contractors Ltd (CIS),13/02/2024,30122482,3373.1,0,Materials,Property Maintenance Contractors,Invoice,BACS,No,31/01/2024 00:00,2023,11,15053,K1515,Building Maintenance,D2003,Materials,DBX45,Property Services,DBX,Support Service and Management Costs,DB,Children's Social Care,E,Childrens and Education Services
GUILDFORD BOROUGH COUNCIL,Housing Services,969700,A Star Maintenance Contractors Ltd (CIS),20/02/2024,30122687,1202.5,0,Services,Property Maintenance Contractors,Invoice,BACS,No,07/02/2024 00:00,2023,11,15055,K1515,Building Maintenance,D6004,Services,DBX45,Property Services,DBX,Support Service and Management Costs,DB,Children's Social Care,E,Childrens and Education Services
GUILDFORD BOROUGH COUNCIL,Housing Services,969700,A Star Maintenance Contractors Ltd (CIS),20/02/2024,30122687,576.58,0,Materials,Property Maintenance Contractors,Invoice,BACS,No,07/02/2024 00:00,2023,11,15055,K1515,Building Maintenance,D2003,Materials,DBX45,Property Services,DBX,Support Service and Management Costs,DB,Children's Social Care,E,Childrens and Education Services
GUILDFORD BOROUGH COUNCIL,Housing Services,969700,A Star Maintenance Contractors Ltd (CIS),20/02/2024,30122714,2000,0,Services,Property Maintenance Contractors,Invoice,BACS,No,07/02/2024 00:00,2023,11,15056,K1515,Building Maintenance,D6004,Services,DBX45,Property Services,DBX,Support Service and Management Costs,DB,Children's Social Care,E,Childrens and Education Services
GUILDFORD BOROUGH COUNCIL,Housing Services,969700,A Star Maintenance Contractors Ltd (CIS),20/02/2024,30122714,4651.2,0,Materials,Property Maintenance Contractors,Invoice,BACS,No,07/02/2024 00:00,2023,11,15056,K1515,Building Maintenance,D2003,Materials,DBX45,Property Services,DBX,Support Service and Management Costs,DB,Children's Social Care,E,Childrens and Education Services
GUILDFORD BOROUGH COUNCIL,Housing Services,969700,A Star Maintenance Contractors Ltd (CIS),20/02/2024,30122694,5603,0,Materials,Property Maintenance Contractors,Invoice,BACS,No,25/01/2024 00:00,2023,11,15045,K1515,Building Maintenance,D2003,Materials,DBX45,Property Services,DBX,Support Service and Management Costs,DB,Children's Social Care,E,Childrens and Education Services
GUILDFORD BOROUGH COUNCIL,Housing Services,969700,A Star Maintenance Contractors Ltd (CIS),20/02/2024,30122705,4525.83,0,Materials,Property Maintenance Contractors,Invoice,BACS,No,07/02/2024 00:00,2023,11,15058,K1515,Building Maintenance,D2003,Materials,DBX45,Property Services,DBX,Support Service and Management Costs,DB,Children's Social Care,E,Childrens and Education Services
GUILDFORD BOROUGH COUNCIL,Housing Services,969700,A Star Maintenance Contractors Ltd (CIS),20/02/2024,30122706,2000,0,Services,Property Maintenance Contractors,Invoice,BACS,No,07/02/2024 00:00,2023,11,15057,K1515,Building Maintenance,D6004,Services,DBX45,Property Services,DBX,Support Service and Management Costs,DB,Children's Social Care,E,Childrens and Education Services
GUILDFORD BOROUGH COUNCIL,Housing Services,969700,A Star Maintenance Contractors Ltd (CIS),05/03/2024,30123718,1100,0,Services,Property Maintenance Contractors,Invoice,BACS,No,22/02/2024 00:00,2023,12,15073,K1515,Building Maintenance,D6004,Services,DBX45,Property Services,DBX,Support Service and Management Costs,DB,Children's Social Care,E,Childrens and Education Services
GUILDFORD BOROUGH COUNCIL,Housing Services,969700,A Star Maintenance Contractors Ltd (CIS),05/03/2024,30123718,3051.11,0,Materials,Property Maintenance Contractors,Invoice,BACS,No,22/02/2024 00:00,2023,12,15073,K1515,Building Maintenance,D2003,Materials,DBX45,Property Services,DBX,Support Service and Management Costs,DB,Children's Social Care,E,Childrens and Education Services
GUILDFORD BOROUGH COUNCIL,Housing Services,969700,A Star Maintenance Contractors Ltd (CIS),05/03/2024,30123746,1200,0,Services,Property Maintenance Contractors,Invoice,BACS,No,22/02/2024 00:00,2023,12,15072,K1515,Building Maintenance,D6004,Services,DBX45,Property Services,DBX,Support Service and Management Costs,DB,Children's Social Care,E,Childrens and Education Services
GUILDFORD BOROUGH COUNCIL,Housing Services,969700,A Star Maintenance Contractors Ltd (CIS),05/03/2024,30123749,1130.5,0,Services,Property Maintenance Contractors,Invoice,BACS,No,22/02/2024 00:00,2023,12,15070,K1515,Building Maintenance,D6004,Services,DBX45,Property Services,DBX,Support Service and Management Costs,DB,Children's Social Care,E,Childrens and Education Services
GUILDFORD BOROUGH COUNCIL,Housing Services,969700,A Star Maintenance Contractors Ltd (CIS),05/03/2024,30123750,2700,0,Services,Property Maintenance Contractors,Invoice,BACS,No,27/02/2024 00:00,2023,12,15080,K1515,Building Maintenance,D6004,Services,DBX45,Property Services,DBX,Support Service and Management Costs,DB,Children's Social Care,E,Childrens and Education Services
GUILDFORD BOROUGH COUNCIL,Housing Services,969700,A Star Maintenance Contractors Ltd (CIS),05/03/2024,30123750,3950.05,0,Materials,Property Maintenance Contractors,Invoice,BACS,No,27/02/2024 00:00,2023,12,15080,K1515,Building Maintenance,D2003,Materials,DBX45,Property Services,DBX,Support Service and Management Costs,DB,Children's Social Care,E,Childrens and Education Services
GUILDFORD BOROUGH COUNCIL,Housing Services,969700,A Star Maintenance Contractors Ltd (CIS),05/03/2024,30123793,2000,0,Services,Property Maintenance Contractors,Invoice,BACS,No,27/02/2024 00:00,2023,12,15082,K1515,Building Maintenance,D6004,Services,DBX45,Property Services,DBX,Support Service and Management Costs,DB,Children's Social Care,E,Childrens and Education Services
GUILDFORD BOROUGH COUNCIL,Housing Services,969700,A Star Maintenance Contractors Ltd (CIS),30/01/2024,30121255,1200,0,Services,Property Maintenance Contractors,Invoice,BACS,No,16/01/2024 00:00,2023,10,15025,K1515,Building Maintenance,D6004,Services,DBX45,Property Services,DBX,Support Service and Management Costs,DB,Children's Social Care,E,Childrens and Education Services
GUILDFORD BOROUGH COUNCIL,Housing Services,969700,A Star Maintenance Contractors Ltd (CIS),30/01/2024,30121255,1252.8,0,Materials,Property Maintenance Contractors,Invoice,BACS,No,16/01/2024 00:00,2023,10,15025,K1515,Building Maintenance,D2003,Materials,DBX45,Property Services,DBX,Support Service and Management Costs,DB,Children's Social Care,E,Childrens and Education Services
GUILDFORD BOROUGH COUNCIL,Housing Services,969700,A Star Maintenance Contractors Ltd (CIS),30/01/2024,30121247,2000,0,Services,Property Maintenance Contractors,Invoice,BACS,No,10/01/2024 00:00,2023,10,15022,K1515,Building Maintenance,D6004,Services,DBX45,Property Services,DBX,Support Service and Management Costs,DB,Children's Social Care,E,Childrens and Education Services
GUILDFORD BOROUGH COUNCIL,Housing Services,969700,A Star Maintenance Contractors Ltd (CIS),30/01/2024,30121247,3125.01,0,Materials,Property Maintenance Contractors,Invoice,BACS,No,10/01/2024 00:00,2023,10,15022,K1515,Building Maintenance,D2003,Materials,DBX45,Property Services,DBX,Support Service and Management Costs,DB,Children's Social Care,E,Childrens and Education Services
GUILDFORD BOROUGH COUNCIL,Housing Services,969700,A Star Maintenance Contractors Ltd (CIS),30/01/2024,30121273,869.5,0,Services,Property Maintenance Contractors,Invoice,BACS,No,16/01/2024 00:00,2023,10,15030,K1515,Building Maintenance,D6004,Services,DBX45,Property Services,DBX,Support Service and Management Costs,DB,Children's Social Care,E,Childrens and Education Services
GUILDFORD BOROUGH COUNCIL,Housing Services,969700,A Star Maintenance Contractors Ltd (CIS),30/01/2024,30121273,685.57,0,Materials,Property Maintenance Contractors,Invoice,BACS,No,16/01/2024 00:00,2023,10,15030,K1515,Building Maintenance,D2003,Materials,DBX45,Property Services,DBX,Support Service and Management Costs,DB,Children's Social Care,E,Childrens and Education Services
GUILDFORD BOROUGH COUNCIL,Housing Services,969700,A Star Maintenance Contractors Ltd (CIS),30/01/2024,30121274,6144.78,0,Materials,Property Maintenance Contractors,Invoice,BACS,No,18/01/2024 00:00,2023,10,15037,K1515,Building Maintenance,D2003,Materials,DBX45,Property Services,DBX,Support Service and Management Costs,DB,Children's Social Care,E,Childrens and Education Services
GUILDFORD BOROUGH COUNCIL,Housing Services,969700,A Star Maintenance Contractors Ltd (CIS),05/03/2024,30123736,1200,0,Services,Property Maintenance Contractors,Invoice,BACS,No,27/02/2024 00:00,2023,12,15081,K1515,Building Maintenance,D6004,Services,DBX45,Property Services,DBX,Support Service and Management Costs,DB,Children's Social Care,E,Childrens and Education Services
GUILDFORD BOROUGH COUNCIL,Housing Services,969700,A Star Maintenance Contractors Ltd (CIS),22/02/2024,30123095,1000,0,Services,Property Maintenance Contractors,Invoice,BACS,No,13/02/2024 00:00,2023,11,15065,K1515,Building Maintenance,D6004,Services,DBX45,Property Services,DBX,Support Service and Management Costs,DB,Children's Social Care,E,Childrens and Education Services
GUILDFORD BOROUGH COUNCIL,Housing Services,969700,A Star Maintenance Contractors Ltd (CIS),22/02/2024,30123095,2490.96,0,Materials,Property Maintenance Contractors,Invoice,BACS,No,13/02/2024 00:00,2023,11,15065,K1515,Building Maintenance,D2003,Materials,DBX45,Property Services,DBX,Support Service and Management Costs,DB,Children's Social Care,E,Childrens and Education Services
GUILDFORD BOROUGH COUNCIL,Housing Services,969700,A Star Maintenance Contractors Ltd (CIS),22/02/2024,30123101,2000,0,Services,Property Maintenance Contractors,Invoice,BACS,No,13/02/2024 00:00,2023,11,15066,K1515,Building Maintenance,D6004,Services,DBX45,Property Services,DBX,Support Service and Management Costs,DB,Children's Social Care,E,Childrens and Education Services
GUILDFORD BOROUGH COUNCIL,Housing Services,969700,A Star Maintenance Contractors Ltd (CIS),14/03/2024,30124375,4801.5,0,Materials,Property Maintenance Contractors,Invoice,BACS,No,06/03/2024 00:00,2023,12,15087,K1515,Building Maintenance,D2003,Materials,DBX45,Property Services,DBX,Support Service and Management Costs,DB,Children's Social Care,E,Childrens and Education Services
GUILDFORD BOROUGH COUNCIL,Housing Services,969700,A Star Maintenance Contractors Ltd (CIS),14/03/2024,30124396,1500,0,Services,Property Maintenance Contractors,Invoice,BACS,No,06/03/2024 00:00,2023,12,15086,K1515,Building Maintenance,D6004,Services,DBX45,Property Services,DBX,Support Service and Management Costs,DB,Children's Social Care,E,Childrens and Education Services
GUILDFORD BOROUGH COUNCIL,Housing Services,969700,A Star Maintenance Contractors Ltd (CIS),14/03/2024,30124396,1430.8,0,Materials,Property Maintenance Contractors,Invoice,BACS,No,06/03/2024 00:00,2023,12,15086,K1515,Building Maintenance,D2003,Materials,DBX45,Property Services,DBX,Support Service and Management Costs,DB,Children's Social Care,E,Childrens and Education Services
GUILDFORD BOROUGH COUNCIL,HRA Service Delivery,718130,A.I.M. Removals & Deliveries,15/02/2024,30120995,1500,0,Expenses,Removal Service Providers,Invoice,BACS,No,22/01/2024 00:00,2023,10,1425,M8121,Strategic Support (SHS),D8004,Expenses,W3A05,Current Service Costs - Housing Services,W3A,Current Service Costs adjustment,W3,Current Service Costs,W,Other Operating Income and Expenditure
GUILDFORD BOROUGH COUNCIL,Commercial Services,667000,A.S.L. Ltd (CIS),22/02/2024,30122323,1680,0,Asset Maintenance,Sewerage And Drainage Service Providers,Invoice,BACS,No,09/02/2024 00:00,2023,11,76142,B5205,Merrow Park And Ride,B1001,Asset Maintenance,HTT11,Support to Public Transport Operators - Bus Services,HTT,Public Transport,HT,"Highways, Roads and Transport Services",H,"Highways, Roads and Transport Services"
GUILDFORD BOROUGH COUNCIL,Commercial Services,667000,A.S.L. Ltd (CIS),28/03/2024,30124113,275,0,GF Assets - Maintenance,Sewerage And Drainage Service Providers,Invoice,BACS,No,06/03/2024 00:00,2023,12,76339,B2291,York Road Mscp,B1004,GF Assets - Maintenance,HTP10,Off-Street Parking,HTP,Parking Services,HT,"Highways, Roads and Transport Services",H,"Highways, Roads and Transport Services"
GUILDFORD BOROUGH COUNCIL,Environmental Services,667000,A.S.L. Ltd (CIS),12/03/2024,30124240,480,0,Services,Sewerage And Drainage Service Providers,Invoice,BACS,No,08/03/2024 00:00,2023,12,76354,A1300,Trees And Countryside,D6004,Services,CCE00,Community Parks & Open Spaces,CCE,Open Spaces,CC,Cultural & Related Services,C,"Cultural, Environmental & Planning Services"
GUILDFORD BOROUGH COUNCIL,Environmental Services,667000,A.S.L. Ltd (CIS),12/03/2024,30124240,480,0,Services,Sewerage And Drainage Service Providers,Invoice,BACS,No,08/03/2024 00:00,2023,12,76354,A1300,Countryside,D6004,Services,CCE00,Community Parks & Open Spaces,CCE,Open Spaces,CC,Cultural & Related Services,C,"Cultural, Environmental & Planning Services"
GUILDFORD BOROUGH COUNCIL,Assets and Property,667000,A.S.L. Ltd (CIS),22/02/2024,30122276,320,0,Asset Maintenance,Sewerage And Drainage Service Providers,Invoice,BACS,No,29/01/2024 00:00,2023,11,76040,B5351,Slyfield Industrial Estate,B1001,Asset Maintenance,CPJ00,Market Undertakings,CPJ,Economic Development,CP,Planning and Development Services,C,"Cultural, Environmental & Planning Services"
GUILDFORD BOROUGH COUNCIL,Commercial Services,667000,A.S.L. Ltd (CIS),18/01/2024,30119730,655,0,GF Assets - Maintenance,Sewerage And Drainage Service Providers,Invoice,BACS,No,12/01/2024 00:00,2023,10,75928,B2219,Bedford Road Mscp,B1004,GF Assets - Maintenance,HTP10,Off-Street Parking,HTP,Parking Services,HT,"Highways, Roads and Transport Services",H,"Highways, Roads and Transport Services"
GUILDFORD BOROUGH COUNCIL,Assets and Property,667000,A.S.L. Ltd (CIS),28/03/2024,30125256,7825,0,Asset Maintenance,Sewerage And Drainage Service Providers,Invoice,BACS,No,22/03/2024 00:00,2023,12,76440,B5351,Slyfield Industrial Estate,B1001,Asset Maintenance,CPJ00,Market Undertakings,CPJ,Economic Development,CP,Planning and Development Services,C,"Cultural, Environmental & Planning Services"
GUILDFORD BOROUGH COUNCIL,Assets and Property,941010,A1 Wokingham Wet Waste Limited Ltd,25/01/2024,30119978,1728.6,0,Services,Car And Van Parts Suppliers,Invoice,BACS,No,31/12/2023 00:00,2023,10,7949,B4452,Woking Road Depot,D6004,Services,XXX99,*** UNASSIGNED ***,WCC,CEC Recharges,WC,CEC Recharges,A,Central Services
GUILDFORD BOROUGH COUNCIL,Assets and Property,941010,A1 Wokingham Wet Waste Limited Ltd,21/03/2024,30123538,1329.8,0,Services,Car And Van Parts Suppliers,Invoice,BACS,No,26/02/2024 00:00,2023,11,8723,B4452,Woking Road Depot,D6004,Services,XXX99,*** UNASSIGNED ***,WCC,CEC Recharges,WC,CEC Recharges,A,Central Services
GUILDFORD BOROUGH COUNCIL,Housing Services,1000154,Acacia Villas Guest House,05/03/2024,30122259,700,0,Emergency Accomodation,,Invoice,BACS,No,08/02/2024 00:00,2023,11,AVGH-SG25,C3311,Homelessness,D8009,Emergency Accomodation,KGU00,Supporting People - Strategy,KGU,Supporting People,KG,Housing General Fund,K,Housing Services
GUILDFORD BOROUGH COUNCIL,Housing Services,1000154,Acacia Villas Guest House,05/03/2024,30122311,700,0,Emergency Accomodation,,Invoice,BACS,No,08/02/2024 00:00,2023,11,AVGH-SG24,C3311,Homelessness,D8009,Emergency Accomodation,KGU00,Supporting People - Strategy,KGU,Supporting People,KG,Housing General Fund,K,Housing Services
GUILDFORD BOROUGH COUNCIL,Housing Services,1000154,Acacia Villas Guest House,27/02/2024,30122255,700,0,Emergency Accomodation,,Invoice,BACS,No,31/01/2024 00:00,2023,11,AVGH-SG23,C3311,Homelessness,D8009,Emergency Accomodation,KGU00,Supporting People - Strategy,KGU,Supporting People,KG,Housing General Fund,K,Housing Services
GUILDFORD BOROUGH COUNCIL,Housing Services,1000424,Acorn Housing (Cedar Housing Solutions Limited),20/02/2024,30122665,326.1,0,Partnerships,,Invoice,BACS,No,16/02/2024 00:00,2023,11,Rent in advance,C3311,Homelessness,D6013,Partnerships,KGU00,Supporting People - Strategy,KGU,Supporting People,KG,Housing General Fund,K,Housing Services
GUILDFORD BOROUGH COUNCIL,Housing Services,1000424,Acorn Housing (Cedar Housing Solutions Limited),15/02/2024,30122581,4500,0,Partnerships,,Invoice,BACS,No,14/02/2024 00:00,2023,11,Rent in advance,C3311,Homelessness,D6013,Partnerships,KGU00,Supporting People - Strategy,KGU,Supporting People,KG,Housing General Fund,K,Housing Services
GUILDFORD BOROUGH COUNCIL,Housing Services,1000424,Acorn Housing (Cedar Housing Solutions Limited),20/02/2024,30122666,5421,0,Partnerships,,Invoice,BACS,No,16/02/2024 00:00,2023,11,Rent in advance,C3311,Homelessness,D6013,Partnerships,KGU00,Supporting People - Strategy,KGU,Supporting People,KG,Housing General Fund,K,Housing Services
GUILDFORD BOROUGH COUNCIL,Housing Services,1000424,Acorn Housing (Cedar Housing Solutions Limited),04/01/2024,30119119,5090.12,0,Partnerships,,Invoice,BACS,No,03/01/2024 00:00,2023,10,Rent in advance,C3311,Homelessness,D6013,Partnerships,KGU00,Supporting People - Strategy,KGU,Supporting People,KG,Housing General Fund,K,Housing Services
GUILDFORD BOROUGH COUNCIL,Housing Services,1000424,Acorn Housing (Cedar Housing Solutions Limited),19/02/2024,30122878,4500,0,Partnerships,,Invoice,CHAPS,No,14/02/2024 00:00,2023,11,Rent in advance,C3311,Homelessness,D6013,Partnerships,KGU00,Supporting People - Strategy,KGU,Supporting People,KG,Housing General Fund,K,Housing Services
GUILDFORD BOROUGH COUNCIL,Grants,1000568,Adaptec Mobility,09/01/2024,30119236,5745,0,Grants To Private Owners,,Invoice,BACS,No,15/12/2023 00:00,2023,10,Adaptec Mobility INV-0900 re 1 John Ades Close,N51008,Mandatory DFG,1311,Grants To Private Owners,XXX99,*** UNASSIGNED ***,WCC,CEC Recharges,WC,CEC Recharges,A,Central Services
GUILDFORD BOROUGH COUNCIL,Commercial Services,777090,Addex Group,26/03/2024,30123847,1150,0,Asset Maintenance,Power And Hand Tool Suppliers,Invoice,BACS,No,01/03/2024 00:00,2023,12,INAU100405,B2216,General Upkeep- Urban Car Pks,B1001,Asset Maintenance,HTP10,Off-Street Parking,HTP,Parking Services,HT,"Highways, Roads and Transport Services",H,"Highways, Roads and Transport Services"
GUILDFORD BOROUGH COUNCIL,Commercial Services,777090,Addex Group,07/03/2024,30122631,2293,0,Asset Maintenance,Power And Hand Tool Suppliers,Invoice,BACS,No,13/02/2024 00:00,2023,11,INAU100369,B2216,General Upkeep- Urban Car Pks,B1001,Asset Maintenance,HTP10,Off-Street Parking,HTP,Parking Services,HT,"Highways, Roads and Transport Services",H,"Highways, Roads and Transport Services"
GUILDFORD BOROUGH COUNCIL,Environmental Services,459000,Addison Glass & Windscreens Ltd,19/03/2024,30118847,371.25,0,Insurance,Window And Door Installers,Invoice,BACS,No,05/12/2023 00:00,2023,12,INV-7039,A1000,Parks Contracts,A7124,Insurance,CCE00,Community Parks & Open Spaces,CCE,Open Spaces,CC,Cultural & Related Services,C,"Cultural, Environmental & Planning Services"
GUILDFORD BOROUGH COUNCIL,Environmental Services,459000,Addison Glass & Windscreens Ltd,19/03/2024,30118847,371.25,0,Insurance,Window And Door Installers,Invoice,BACS,No,05/12/2023 00:00,2023,12,INV-7039,A1000,Mobile Works,A7124,Insurance,CCE00,Community Parks & Open Spaces,CCE,Open Spaces,CC,Cultural & Related Services,C,"Cultural, Environmental & Planning Services"
GUILDFORD BOROUGH COUNCIL,Environmental Services,459000,Addison Glass & Windscreens Ltd,19/03/2024,30123175,287.5,0,Materials,Window And Door Installers,Invoice,BACS,No,21/02/2024 00:00,2023,11,INV-7497,K5551,Fleet Workshops,D2003,Materials,W3A48,Current Service Costs - Fleet Management,W3A,Current Service Costs adjustment,W3,Current Service Costs,W,Other Operating Income and Expenditure
GUILDFORD BOROUGH COUNCIL,Environmental Services,459000,Addison Glass & Windscreens Ltd,07/03/2024,30123006,307.5,0,Materials,Window And Door Installers,Invoice,BACS,No,13/02/2024 00:00,2023,11,INV-7433,K5551,Fleet Workshops,D2003,Materials,W3A48,Current Service Costs - Fleet Management,W3A,Current Service Costs adjustment,W3,Current Service Costs,W,Other Operating Income and Expenditure
GUILDFORD BOROUGH COUNCIL,Environmental Services,459000,Addison Glass & Windscreens Ltd,07/03/2024,30123833,307.5,0,Materials,Window And Door Installers,Invoice,BACS,No,02/02/2024 00:00,2023,12,INV-7386,K5551,Fleet Workshops,D2003,Materials,W3A48,Current Service Costs - Fleet Management,W3A,Current Service Costs adjustment,W3,Current Service Costs,W,Other Operating Income and Expenditure
GUILDFORD BOROUGH COUNCIL,Environmental Services,459000,Addison Glass & Windscreens Ltd,25/01/2024,30119159,309.37,0,Insurance,Window And Door Installers,Invoice,BACS,No,02/01/2024 00:00,2023,10,INV-7172,A1000,Parks Contracts,A7124,Insurance,CCE00,Community Parks & Open Spaces,CCE,Open Spaces,CC,Cultural & Related Services,C,"Cultural, Environmental & Planning Services"
GUILDFORD BOROUGH COUNCIL,Environmental Services,459000,Addison Glass & Windscreens Ltd,25/01/2024,30119159,309.37,0,Insurance,Window And Door Installers,Invoice,BACS,No,02/01/2024 00:00,2023,10,INV-7172,A1000,Mobile Works,A7124,Insurance,CCE00,Community Parks & Open Spaces,CCE,Open Spaces,CC,Cultural & Related Services,C,"Cultural, Environmental & Planning Services"
GUILDFORD BOROUGH COUNCIL,Finance,789120,Adelante Software Ltd,26/03/2024,30123699,5600,0,Licences,Software Developers,Invoice,BACS,No,28/02/2024 00:00,2023,12,153016,F1111,Corporate Services,D8001,Licences,DBX70,Other Management Costs,DBX,Support Service and Management Costs,DB,Children's Social Care,E,Childrens and Education Services
GUILDFORD BOROUGH COUNCIL,Finance,789120,Adelante Software Ltd,26/03/2024,30123699,9800,0,Licences,Software Developers,Invoice,BACS,No,28/02/2024 00:00,2023,12,153016,F1111,Corporate Services,D8001,Licences,DBX70,Other Management Costs,DBX,Support Service and Management Costs,DB,Children's Social Care,E,Childrens and Education Services
GUILDFORD BOROUGH COUNCIL,Finance,789120,Adelante Software Ltd,29/02/2024,30122133,798.96,0,Bank Charges,Software Developers,Invoice,BACS,No,06/02/2024 00:00,2023,11,152334,F1111,Corporate Services,D8002,Bank Charges,DBX70,Other Management Costs,DBX,Support Service and Management Costs,DB,Children's Social Care,E,Childrens and Education Services
GUILDFORD BOROUGH COUNCIL,Finance,789120,Adelante Software Ltd,26/03/2024,30123913,523.32,0,Bank Charges,Software Developers,Invoice,BACS,No,04/03/2024 00:00,2023,12,153126,F1111,Corporate Services,D8002,Bank Charges,DBX70,Other Management Costs,DBX,Support Service and Management Costs,DB,Children's Social Care,E,Childrens and Education Services
GUILDFORD BOROUGH COUNCIL,Finance,789120,Adelante Software Ltd,26/03/2024,30123685,12250,0,ICT Software,Software Developers,Invoice,BACS,No,28/02/2024 00:00,2023,12,153017,G3565,Finance Specialists,D7002,ICT Software,DBX35,Finance (including Internal Audit),DBX,Support Service and Management Costs,DB,Children's Social Care,E,Childrens and Education Services
GUILDFORD BOROUGH COUNCIL,Finance,789120,Adelante Software Ltd,26/03/2024,30123685,4500,0,ICT Software,Software Developers,Invoice,BACS,No,28/02/2024 00:00,2023,12,153017,G3565,Finance Specialists,D7002,ICT Software,DBX35,Finance (including Internal Audit),DBX,Support Service and Management Costs,DB,Children's Social Care,E,Childrens and Education Services
GUILDFORD BOROUGH COUNCIL,Finance,789120,Adelante Software Ltd,26/03/2024,30123685,5312.5,0,ICT Software,Software Developers,Invoice,BACS,No,28/02/2024 00:00,2023,12,153017,G3565,Finance Specialists,D7002,ICT Software,DBX35,Finance (including Internal Audit),DBX,Support Service and Management Costs,DB,Children's Social Care,E,Childrens and Education Services
GUILDFORD BOROUGH COUNCIL,Finance,789120,Adelante Software Ltd,26/03/2024,30123685,750,0,Licences,Software Developers,Invoice,BACS,No,28/02/2024 00:00,2023,12,153017,F1111,Corporate Services,D8001,Licences,DBX70,Other Management Costs,DBX,Support Service and Management Costs,DB,Children's Social Care,E,Childrens and Education Services
GUILDFORD BOROUGH COUNCIL,Finance,789120,Adelante Software Ltd,30/01/2024,30119293,521.7,0,Bank Charges,Software Developers,Invoice,BACS,No,03/01/2024 00:00,2023,10,151538,F1111,Corporate Services,D8002,Bank Charges,DBX70,Other Management Costs,DBX,Support Service and Management Costs,DB,Children's Social Care,E,Childrens and Education Services
GUILDFORD BOROUGH COUNCIL,Housing Services,774120,Advanced Electronic Security Ltd,19/03/2024,30123984,1290,0,Services,Other Security Equipment Suppliers,Invoice,BACS,No,25/01/2024 00:00,2023,12,12760,F7540,Town Centre CCTV System,D6004,Services,HTX10,Highways & Transport - Professional and Engineering Services,HTX,Highways Management and Support,HT,"Highways, Roads and Transport Services",H,"Highways, Roads and Transport Services"
GUILDFORD BOROUGH COUNCIL,Housing Services,774120,Advanced Electronic Security Ltd,08/02/2024,30120237,1400,0,Services,Other Security Equipment Suppliers,Invoice,BACS,No,16/01/2024 00:00,2023,10,12759,F7540,Town Centre CCTV System,D6004,Services,HTX10,Highways & Transport - Professional and Engineering Services,HTX,Highways Management and Support,HT,"Highways, Roads and Transport Services",H,"Highways, Roads and Transport Services"
GUILDFORD BOROUGH COUNCIL,Housing Services,774120,Advanced Electronic Security Ltd,26/03/2024,30123996,1400,0,Services,Other Security Equipment Suppliers,Invoice,BACS,No,05/03/2024 00:00,2023,12,12762,F7540,Town Centre CCTV System,D6004,Services,HTX10,Highways & Transport - Professional and Engineering Services,HTX,Highways Management and Support,HT,"Highways, Roads and Transport Services",H,"Highways, Roads and Transport Services"
GUILDFORD BOROUGH COUNCIL,Housing Services,774120,Advanced Electronic Security Ltd,26/03/2024,30123968,1490,0,Services,Other Security Equipment Suppliers,Invoice,BACS,No,05/03/2024 00:00,2023,12,12761,F7540,Town Centre CCTV System,D6004,Services,HTX10,Highways & Transport - Professional and Engineering Services,HTX,Highways Management and Support,HT,"Highways, Roads and Transport Services",H,"Highways, Roads and Transport Services"
GUILDFORD BOROUGH COUNCIL,Housing Services,774120,Advanced Electronic Security Ltd,26/03/2024,30123961,1470,0,Equipment,Other Security Equipment Suppliers,Invoice,BACS,No,05/03/2024 00:00,2023,12,12763,F7540,Town Centre CCTV System,D2001,Equipment,HTX10,Highways & Transport - Professional and Engineering Services,HTX,Highways Management and Support,HT,"Highways, Roads and Transport Services",H,"Highways, Roads and Transport Services"
GUILDFORD BOROUGH COUNCIL,Housing Services,774120,Advanced Electronic Security Ltd,25/01/2024,30119077,840,0,Services,Other Security Equipment Suppliers,Invoice,BACS,No,01/01/2024 00:00,2023,10,12758,F7540,Town Centre CCTV System,D6004,Services,HTX10,Highways & Transport - Professional and Engineering Services,HTX,Highways Management and Support,HT,"Highways, Roads and Transport Services",H,"Highways, Roads and Transport Services"
GUILDFORD BOROUGH COUNCIL,Environmental Services,221340,Aebi Schmidt UK Limited,06/02/2024,30119849,565.8,0,Materials,Other Vehicle Dealers,Invoice,BACS,No,12/01/2024 00:00,2023,10,60296216,K5551,Fleet Workshops,D2003,Materials,W3A48,Current Service Costs - Fleet Management,W3A,Current Service Costs adjustment,W3,Current Service Costs,W,Other Operating Income and Expenditure
GUILDFORD BOROUGH COUNCIL,Environmental Services,221340,Aebi Schmidt UK Limited,06/02/2024,30119850,1562.13,0,Materials,Other Vehicle Dealers,Invoice,BACS,No,11/01/2024 00:00,2023,10,60296191,K5551,Fleet Workshops,D2003,Materials,W3A48,Current Service Costs - Fleet Management,W3A,Current Service Costs adjustment,W3,Current Service Costs,W,Other Operating Income and Expenditure
GUILDFORD BOROUGH COUNCIL,Environmental Services,221340,Aebi Schmidt UK Limited,12/03/2024,30123041,4351.64,0,Materials,Other Vehicle Dealers,Invoice,BACS,No,14/02/2024 00:00,2023,11,60297170,K5551,Fleet Workshops,D2003,Materials,W3A48,Current Service Costs - Fleet Management,W3A,Current Service Costs adjustment,W3,Current Service Costs,W,Other Operating Income and Expenditure
GUILDFORD BOROUGH COUNCIL,Environmental Services,221340,Aebi Schmidt UK Limited,29/02/2024,30122099,602.75,0,Materials,Other Vehicle Dealers,Invoice,BACS,No,06/02/2024 00:00,2023,11,60296964,K5551,Fleet Workshops,D2003,Materials,W3A48,Current Service Costs - Fleet Management,W3A,Current Service Costs adjustment,W3,Current Service Costs,W,Other Operating Income and Expenditure
GUILDFORD BOROUGH COUNCIL,Environmental Services,221340,Aebi Schmidt UK Limited,06/02/2024,30119860,1589.33,0,Materials,Other Vehicle Dealers,Invoice,BACS,No,11/01/2024 00:00,2023,10,60296192,K5551,Fleet Workshops,D2003,Materials,W3A48,Current Service Costs - Fleet Management,W3A,Current Service Costs adjustment,W3,Current Service Costs,W,Other Operating Income and Expenditure
GUILDFORD BOROUGH COUNCIL,Environmental Services,221340,Aebi Schmidt UK Limited,06/02/2024,30119876,329,0,Materials,Other Vehicle Dealers,Invoice,BACS,No,12/01/2024 00:00,2023,10,60296194,K5551,Fleet Workshops,D2003,Materials,W3A48,Current Service Costs - Fleet Management,W3A,Current Service Costs adjustment,W3,Current Service Costs,W,Other Operating Income and Expenditure
GUILDFORD BOROUGH COUNCIL,Environmental Services,221340,Aebi Schmidt UK Limited,06/02/2024,30119869,1043.89,0,Materials,Other Vehicle Dealers,Invoice,BACS,No,12/01/2024 00:00,2023,10,60296193,K5551,Fleet Workshops,D2003,Materials,W3A48,Current Service Costs - Fleet Management,W3A,Current Service Costs adjustment,W3,Current Service Costs,W,Other Operating Income and Expenditure
GUILDFORD BOROUGH COUNCIL,Environmental Services,221340,Aebi Schmidt UK Limited,06/02/2024,30119875,1700.58,0,Materials,Other Vehicle Dealers,Invoice,BACS,No,12/01/2024 00:00,2023,10,60296215,K5551,Fleet Workshops,D2003,Materials,W3A48,Current Service Costs - Fleet Management,W3A,Current Service Costs adjustment,W3,Current Service Costs,W,Other Operating Income and Expenditure
GUILDFORD BOROUGH COUNCIL,New Build,761720,Aecom Limited,14/03/2024,30123022,25859.03,0,Consultants Fees,Construction Project Management Consultants,Invoice,BACS,No,19/02/2024 00:00,2023,11,28552323,N30011,Guildford Park,1221,Consultants Fees,XXX99,*** UNASSIGNED ***,WCC,CEC Recharges,WC,CEC Recharges,A,Central Services
GUILDFORD BOROUGH COUNCIL,HRA Service Delivery,1000746,Aestima Law Consultants,19/03/2024,30124483,724.5,0,Consultancy,,Invoice,BACS,No,08/01/2024 00:00,2023,12,24019,M5113,Repairs-Responsive (BHS),D6001,Consultancy,W3A05,Current Service Costs - Housing Services,W3A,Current Service Costs adjustment,W3,Current Service Costs,W,Other Operating Income and Expenditure
GUILDFORD BOROUGH COUNCIL,Community Services,904780,Affinity Water Limited (HSE PROP),26/03/2024,30125136,23862.08,0,Utilities,Mains Water Suppliers,Invoice,BACS,No,24/08/2022 00:00,2023,12,2146376-2   240823,C1500,Traveller Caravan Sites,B2001,Utilities,KGT00,Travellers' Sites,KGT,Other Council Property,KG,Housing General Fund,K,Housing Services
GUILDFORD BOROUGH COUNCIL,Environmental Services,766060,AGB Contractors Limited,27/02/2024,30123102,2400,0,Grounds Maintenance,General Builders,Invoice,BACS,No,21/02/2024 00:00,2023,11,240221,A1300,Trees And Countryside,B6001,Grounds Maintenance,CCE00,Community Parks & Open Spaces,CCE,Open Spaces,CC,Cultural & Related Services,C,"Cultural, Environmental & Planning Services"
GUILDFORD BOROUGH COUNCIL,Commercial Services,766060,AGB Contractors Limited,27/03/2024,30125094,1800,0,GF Assets - Maintenance,General Builders,Invoice,BACS,No,20/03/2024 00:00,2023,12,240320,B2257,Leapale Road Mscp,B1004,GF Assets - Maintenance,HTP10,Off-Street Parking,HTP,Parking Services,HT,"Highways, Roads and Transport Services",H,"Highways, Roads and Transport Services"
GUILDFORD BOROUGH COUNCIL,Environmental Services,766060,AGB Contractors Limited,29/02/2024,30122257,456,0,GF Assets - Maintenance,General Builders,Invoice,BACS,No,08/02/2024 00:00,2023,11,240208,A1500,Crematorium,B1004,GF Assets - Maintenance,CEA10,Crematoria,CEA,"Cemetery, Cremation and Mortuary Services",CE,Environmental & Regulatory Services,C,"Cultural, Environmental & Planning Services"
GUILDFORD BOROUGH COUNCIL,Commercial Services,766060,AGB Contractors Limited,27/03/2024,30125094,486,0,GF Assets - Maintenance,General Builders,Invoice,BACS,No,20/03/2024 00:00,2023,12,240320,B2257,Leapale Road Mscp,B1004,GF Assets - Maintenance,HTP10,Off-Street Parking,HTP,Parking Services,HT,"Highways, Roads and Transport Services",H,"Highways, Roads and Transport Services"
GUILDFORD BOROUGH COUNCIL,Environmental Services,766060,AGB Contractors Limited,29/02/2024,30122257,1680,0,GF Assets - Maintenance,General Builders,Invoice,BACS,No,08/02/2024 00:00,2023,11,240208,A1500,Crematorium,B1004,GF Assets - Maintenance,CEA10,Crematoria,CEA,"Cemetery, Cremation and Mortuary Services",CE,Environmental & Regulatory Services,C,"Cultural, Environmental & Planning Services"
GUILDFORD BOROUGH COUNCIL,Environmental Services,766060,AGB Contractors Limited,29/02/2024,30122304,1120,0,GF Assets - Maintenance,General Builders,Invoice,BACS,No,08/02/2024 00:00,2023,11,240208A,A1500,Crematorium,B1004,GF Assets - Maintenance,CEA10,Crematoria,CEA,"Cemetery, Cremation and Mortuary Services",CE,Environmental & Regulatory Services,C,"Cultural, Environmental & Planning Services"
GUILDFORD BOROUGH COUNCIL,Environmental Services,766060,AGB Contractors Limited,06/02/2024,30121547,480,0,GF Assets - Maintenance,General Builders,Invoice,BACS,No,09/01/2024 00:00,2023,11,240109,A1220,Shalford Park And Pavilion,B1004,GF Assets - Maintenance,CCE00,Community Parks & Open Spaces,CCE,Open Spaces,CC,Cultural & Related Services,C,"Cultural, Environmental & Planning Services"
GUILDFORD BOROUGH COUNCIL,Environmental Services,766060,AGB Contractors Limited,06/02/2024,30121601,600,0,GF Assets - Maintenance,General Builders,Invoice,BACS,No,09/01/2024 00:00,2023,11,240109A,A1220,Shalford Park And Pavilion,B1004,GF Assets - Maintenance,CCE00,Community Parks & Open Spaces,CCE,Open Spaces,CC,Cultural & Related Services,C,"Cultural, Environmental & Planning Services"
GUILDFORD BOROUGH COUNCIL,Environmental Services,766060,AGB Contractors Limited,18/01/2024,30119845,290,0,GF Assets - Maintenance,General Builders,Invoice,BACS,No,11/01/2024 00:00,2023,10,240111,A1600,Stoke Park Depot,B1004,GF Assets - Maintenance,CCE00,Community Parks & Open Spaces,CCE,Open Spaces,CC,Cultural & Related Services,C,"Cultural, Environmental & Planning Services"
GUILDFORD BOROUGH COUNCIL,Assets and Property,766060,AGB Contractors Limited,06/02/2024,30119350,540,0,GF Assets - Maintenance,General Builders,Invoice,BACS,No,06/01/2024 00:00,2023,11,240106,B6111,Investment Property,B1004,GF Assets - Maintenance,CPJ00,Market Undertakings,CPJ,Economic Development,CP,Planning and Development Services,C,"Cultural, Environmental & Planning Services"
GUILDFORD BOROUGH COUNCIL,Commercial Services,766060,AGB Contractors Limited,02/01/2024,30118905,3422,0,GF Assets - Maintenance,General Builders,Invoice,BACS,No,22/12/2023 00:00,2023,10,231222,A5511,Museum,B1004,GF Assets - Maintenance,CCA30,Museums & Galleries,CCA,Culture & Heritage,CC,Cultural & Related Services,C,"Cultural, Environmental & Planning Services"
GUILDFORD BOROUGH COUNCIL,Commercial Services,766060,AGB Contractors Limited,27/03/2024,30124004,1560,0,GF Assets - Maintenance,General Builders,Invoice,BACS,No,05/03/2024 00:00,2023,12,240305,B2219,Bedford Road Mscp,B1004,GF Assets - Maintenance,HTP10,Off-Street Parking,HTP,Parking Services,HT,"Highways, Roads and Transport Services",H,"Highways, Roads and Transport Services"
GUILDFORD BOROUGH COUNCIL,Commercial Services,766060,AGB Contractors Limited,27/03/2024,30124101,1680,0,GF Assets - Maintenance,General Builders,Invoice,BACS,No,06/03/2024 00:00,2023,12,240306,B2219,Bedford Road Mscp,B1004,GF Assets - Maintenance,HTP10,Off-Street Parking,HTP,Parking Services,HT,"Highways, Roads and Transport Services",H,"Highways, Roads and Transport Services"
GUILDFORD BOROUGH COUNCIL,Commercial Services,766060,AGB Contractors Limited,27/03/2024,30124101,318,0,GF Assets - Maintenance,General Builders,Invoice,BACS,No,06/03/2024 00:00,2023,12,240306,B2219,Bedford Road Mscp,B1004,GF Assets - Maintenance,HTP10,Off-Street Parking,HTP,Parking Services,HT,"Highways, Roads and Transport Services",H,"Highways, Roads and Transport Services"
GUILDFORD BOROUGH COUNCIL,Environmental Services,766060,AGB Contractors Limited,27/02/2024,30123102,2400,0,Grounds Maintenance,General Builders,Invoice,BACS,No,21/02/2024 00:00,2023,11,240221,A1300,Countryside,B6001,Grounds Maintenance,CCE00,Community Parks & Open Spaces,CCE,Open Spaces,CC,Cultural & Related Services,C,"Cultural, Environmental & Planning Services"
GUILDFORD BOROUGH COUNCIL,Commercial Services,766060,AGB Contractors Limited,22/02/2024,30123085,2400,0,GF Assets - Maintenance,General Builders,Invoice,BACS,No,21/11/2023 00:00,2023,11,240221A,B2219,Bedford Road Mscp,B1004,GF Assets - Maintenance,HTP10,Off-Street Parking,HTP,Parking Services,HT,"Highways, Roads and Transport Services",H,"Highways, Roads and Transport Services"
GUILDFORD BOROUGH COUNCIL,Commercial Services,766060,AGB Contractors Limited,02/01/2024,30118905,4652,0,GF Assets - Maintenance,General Builders,Invoice,BACS,No,22/12/2023 00:00,2023,10,231222,A5511,Museum,B1004,GF Assets - Maintenance,CCA30,Museums & Galleries,CCA,Culture & Heritage,CC,Cultural & Related Services,C,"Cultural, Environmental & Planning Services"
GUILDFORD BOROUGH COUNCIL,Commercial Services,766060,AGB Contractors Limited,27/03/2024,30124004,426,0,GF Assets - Maintenance,General Builders,Invoice,BACS,No,05/03/2024 00:00,2023,12,240305,B2219,Bedford Road Mscp,B1004,GF Assets - Maintenance,HTP10,Off-Street Parking,HTP,Parking Services,HT,"Highways, Roads and Transport Services",H,"Highways, Roads and Transport Services"
GUILDFORD BOROUGH COUNCIL,Commercial Services,766060,AGB Contractors Limited,27/03/2024,30124166,1040,0,GF Assets - Maintenance,General Builders,Invoice,BACS,No,07/03/2024 00:00,2023,12,240307,B2219,Bedford Road Mscp,B1004,GF Assets - Maintenance,HTP10,Off-Street Parking,HTP,Parking Services,HT,"Highways, Roads and Transport Services",H,"Highways, Roads and Transport Services"
GUILDFORD BOROUGH COUNCIL,Commercial Services,766060,AGB Contractors Limited,27/03/2024,30124166,348,0,GF Assets - Maintenance,General Builders,Invoice,BACS,No,07/03/2024 00:00,2023,12,240307,B2219,Bedford Road Mscp,B1004,GF Assets - Maintenance,HTP10,Off-Street Parking,HTP,Parking Services,HT,"Highways, Roads and Transport Services",H,"Highways, Roads and Transport Services"
GUILDFORD BOROUGH COUNCIL,Commercial Services,766060,AGB Contractors Limited,05/03/2024,30122653,1374,0,GF Assets - Maintenance,General Builders,Invoice,BACS,No,14/11/2023 00:00,2023,12,240214,B2219,Bedford Road Mscp,B1004,GF Assets - Maintenance,HTP10,Off-Street Parking,HTP,Parking Services,HT,"Highways, Roads and Transport Services",H,"Highways, Roads and Transport Services"
GUILDFORD BOROUGH COUNCIL,Commercial Services,766060,AGB Contractors Limited,05/03/2024,30122653,600,0,GF Assets - Maintenance,General Builders,Invoice,BACS,No,14/11/2023 00:00,2023,12,240214,B2219,Bedford Road Mscp,B1004,GF Assets - Maintenance,HTP10,Off-Street Parking,HTP,Parking Services,HT,"Highways, Roads and Transport Services",H,"Highways, Roads and Transport Services"
GUILDFORD BOROUGH COUNCIL,Environmental Services,879390,Agrigem Limited,19/03/2024,30123346,509.8,0,Materials,Other Retailers,Invoice,BACS,No,23/02/2024 00:00,2023,11,226086,A1100,Horticulture,D2003,Materials,CCE00,Community Parks & Open Spaces,CCE,Open Spaces,CC,Cultural & Related Services,C,"Cultural, Environmental & Planning Services"
GUILDFORD BOROUGH COUNCIL,Environmental Services,879390,Agrigem Limited,19/03/2024,30123346,289.6,0,Materials,Other Retailers,Invoice,BACS,No,23/02/2024 00:00,2023,11,226086,A1100,Horticulture,D2003,Materials,CCE00,Community Parks & Open Spaces,CCE,Open Spaces,CC,Cultural & Related Services,C,"Cultural, Environmental & Planning Services"
GUILDFORD BOROUGH COUNCIL,Environmental Services,491000,Air Products Plc,25/01/2024,30119712,1252.46,0,Vehicle Operating Costs,Other Chemical Suppliers,Invoice,BACS,No,01/01/2024 00:00,2023,10,426406235,K5551,Fleet Workshops,C1001,Vehicle Operating Costs,W3A48,Current Service Costs - Fleet Management,W3A,Current Service Costs adjustment,W3,Current Service Costs,W,Other Operating Income and Expenditure
GUILDFORD BOROUGH COUNCIL,New Build,1001017,Airey Miller Limited,15/02/2024,30120610,1051.14,0,Consultants Fees,,Invoice,BACS,No,22/01/2024 00:00,2023,10,230976/L,N30034,17 Wharf Lane,1221,Consultants Fees,XXX99,*** UNASSIGNED ***,WCC,CEC Recharges,WC,CEC Recharges,A,Central Services
GUILDFORD BOROUGH COUNCIL,New Build,1001017,Airey Miller Limited,15/02/2024,30120607,1061.68,0,Consultants Fees,,Invoice,BACS,No,22/01/2024 00:00,2023,10,230977/L,N30033,27 Broomfield,1221,Consultants Fees,XXX99,*** UNASSIGNED ***,WCC,CEC Recharges,WC,CEC Recharges,A,Central Services
GUILDFORD BOROUGH COUNCIL,New Build,1001017,Airey Miller Limited,16/01/2024,30118852,1061.68,0,Consultants Fees,,Invoice,BACS,No,21/12/2023 00:00,2023,10,230857/L,N30033,27 Broomfield,1221,Consultants Fees,XXX99,*** UNASSIGNED ***,WCC,CEC Recharges,WC,CEC Recharges,A,Central Services
GUILDFORD BOROUGH COUNCIL,New Build,1001017,Airey Miller Limited,15/02/2024,30120619,1457.68,0,Consultants Fees,,Invoice,BACS,No,22/01/2024 00:00,2023,10,230975/L,N30028,Dunmore Garden Land,1221,Consultants Fees,XXX99,*** UNASSIGNED ***,WCC,CEC Recharges,WC,CEC Recharges,A,Central Services
GUILDFORD BOROUGH COUNCIL,New Build,1001017,Airey Miller Limited,14/03/2024,30122983,1051.15,0,Consultants Fees,,Invoice,BACS,No,19/02/2024 00:00,2023,11,231070/L,N30034,17 Wharf Lane,1221,Consultants Fees,XXX99,*** UNASSIGNED ***,WCC,CEC Recharges,WC,CEC Recharges,A,Central Services
GUILDFORD BOROUGH COUNCIL,New Build,1001017,Airey Miller Limited,14/03/2024,30122986,1061.68,0,Consultants Fees,,Invoice,BACS,No,19/02/2024 00:00,2023,11,231071/L,N30033,27 Broomfield,1221,Consultants Fees,XXX99,*** UNASSIGNED ***,WCC,CEC Recharges,WC,CEC Recharges,A,Central Services
GUILDFORD BOROUGH COUNCIL,New Build,1001017,Airey Miller Limited,16/01/2024,30118840,1051.15,0,Consultants Fees,,Invoice,BACS,No,21/12/2023 00:00,2023,10,230856/L,N30034,17 Wharf Lane,1221,Consultants Fees,XXX99,*** UNASSIGNED ***,WCC,CEC Recharges,WC,CEC Recharges,A,Central Services
GUILDFORD BOROUGH COUNCIL,New Build,1001017,Airey Miller Limited,16/01/2024,30118842,1457.68,0,Consultants Fees,,Invoice,BACS,No,21/12/2023 00:00,2023,10,230855/L,N30028,Dunmore Garden Land,1221,Consultants Fees,XXX99,*** UNASSIGNED ***,WCC,CEC Recharges,WC,CEC Recharges,A,Central Services
GUILDFORD BOROUGH COUNCIL,New Build,1001017,Airey Miller Limited,14/03/2024,30122985,1457.68,0,Consultants Fees,,Invoice,BACS,No,19/02/2024 00:00,2023,11,231069/L,N30028,Dunmore Garden Land,1221,Consultants Fees,XXX99,*** UNASSIGNED ***,WCC,CEC Recharges,WC,CEC Recharges,A,Central Services
GUILDFORD BOROUGH COUNCIL,HRA Service Delivery,1000835,AJR Management Ltd,29/02/2024,30122144,270,0,Services,,Invoice,BACS,No,05/02/2024 00:00,2023,11,SI-1909,M5106,Repairs-Shelt-Responsive (BHS),D6004,Services,W3A05,Current Service Costs - Housing Services,W3A,Current Service Costs adjustment,W3,Current Service Costs,W,Other Operating Income and Expenditure
GUILDFORD BOROUGH COUNCIL,Inventories,178400,Akw Medi-Care Limited,06/02/2024,30120517,662.28,0,Purchases,Mobility Disability Equipment Suppliers,Invoice,BACS,No,11/01/2024 00:00,2023,10,2267323,I01001,Stocks,2591,Purchases,DBX45,Property Services,DBX,Support Service and Management Costs,DB,Children's Social Care,E,Childrens and Education Services
GUILDFORD BOROUGH COUNCIL,Inventories,178400,Akw Medi-Care Limited,19/03/2024,30123789,882.39,0,Purchases,Mobility Disability Equipment Suppliers,Invoice,BACS,No,21/02/2024 00:00,2023,12,2284646,I01001,Stocks,2591,Purchases,DBX45,Property Services,DBX,Support Service and Management Costs,DB,Children's Social Care,E,Childrens and Education Services
GUILDFORD BOROUGH COUNCIL,Inventories,178400,Akw Medi-Care Limited,26/03/2024,30124196,1346.9,0,Purchases,Mobility Disability Equipment Suppliers,Invoice,BACS,No,29/02/2024 00:00,2023,12,2288926,I01001,Stocks,2591,Purchases,DBX45,Property Services,DBX,Support Service and Management Costs,DB,Children's Social Care,E,Childrens and Education Services
GUILDFORD BOROUGH COUNCIL,Inventories,178400,Akw Medi-Care Limited,26/03/2024,30124331,427.56,0,Purchases,Mobility Disability Equipment Suppliers,Invoice,BACS,No,06/03/2024 00:00,2023,12,2290981,I01001,Stocks,2591,Purchases,DBX45,Property Services,DBX,Support Service and Management Costs,DB,Children's Social Care,E,Childrens and Education Services
GUILDFORD BOROUGH COUNCIL,Inventories,178400,Akw Medi-Care Limited,14/03/2024,30123249,325.09,0,Purchases,Mobility Disability Equipment Suppliers,Invoice,BACS,No,20/02/2024 00:00,2023,11,2284160,I01001,Stocks,2591,Purchases,DBX45,Property Services,DBX,Support Service and Management Costs,DB,Children's Social Care,E,Childrens and Education Services
GUILDFORD BOROUGH COUNCIL,Inventories,178400,Akw Medi-Care Limited,22/02/2024,30122303,1039.9,0,Purchases,Mobility Disability Equipment Suppliers,Invoice,BACS,No,29/01/2024 00:00,2023,11,2274388,I01001,Stocks,2591,Purchases,DBX45,Property Services,DBX,Support Service and Management Costs,DB,Children's Social Care,E,Childrens and Education Services
GUILDFORD BOROUGH COUNCIL,Inventories,178400,Akw Medi-Care Limited,15/02/2024,30122134,340.36,0,Purchases,Mobility Disability Equipment Suppliers,Invoice,BACS,No,23/01/2024 00:00,2023,11,2272062,I01001,Stocks,2591,Purchases,DBX45,Property Services,DBX,Support Service and Management Costs,DB,Children's Social Care,E,Childrens and Education Services
GUILDFORD BOROUGH COUNCIL,Inventories,178400,Akw Medi-Care Limited,09/01/2024,30119080,360.08,0,Purchases,Mobility Disability Equipment Suppliers,Invoice,BACS,No,15/12/2023 00:00,2023,10,2261400,I01001,Stocks,2591,Purchases,DBX45,Property Services,DBX,Support Service and Management Costs,DB,Children's Social Care,E,Childrens and Education Services
GUILDFORD BOROUGH COUNCIL,Inventories,178400,Akw Medi-Care Limited,27/02/2024,30122560,260.35,0,Purchases,Mobility Disability Equipment Suppliers,Invoice,BACS,No,31/01/2024 00:00,2023,11,2275652,I01001,Stocks,2591,Purchases,DBX45,Property Services,DBX,Support Service and Management Costs,DB,Children's Social Care,E,Childrens and Education Services
GUILDFORD BOROUGH COUNCIL,GBC Holdings Accounts,1000496,ALD Automotive Ltd,05/03/2024,30123707,6012.02,0,Car Leasing,,Invoice,BACS,No,26/01/2024 00:00,2023,12,19063720,G1131,Car Leasing Holding Code,C3002,Car Leasing,DBX70,Other Management Costs,DBX,Support Service and Management Costs,DB,Children's Social Care,E,Childrens and Education Services
GUILDFORD BOROUGH COUNCIL,Planning & Development,454730,Alexander Advertising (International) Ltd,19/03/2024,30123274,264.71,0,"Advertising, Publicity & Promotion",Full Service Marketing Agencies,Invoice,BACS,No,23/02/2024 00:00,2023,12,INV-0551,D5100,Development Control - Fee Earn,D5002,"Advertising, Publicity & Promotion",CPC00,Development Control Advice,CPC,Development Control,CP,Planning and Development Services,C,"Cultural, Environmental & Planning Services"
GUILDFORD BOROUGH COUNCIL,Planning & Development,454730,Alexander Advertising (International) Ltd,19/03/2024,30123289,308.83,0,"Advertising, Publicity & Promotion",Full Service Marketing Agencies,Invoice,BACS,No,23/02/2024 00:00,2023,12,INV-0540,D5100,Development Control - Fee Earn,D5002,"Advertising, Publicity & Promotion",CPC00,Development Control Advice,CPC,Development Control,CP,Planning and Development Services,C,"Cultural, Environmental & Planning Services"
GUILDFORD BOROUGH COUNCIL,Planning & Development,454730,Alexander Advertising (International) Ltd,16/01/2024,30119111,670.6,0,"Advertising, Publicity & Promotion",Full Service Marketing Agencies,Invoice,BACS,No,22/12/2023 00:00,2023,10,INV-0407,D5100,Development Control - Fee Earn,D5002,"Advertising, Publicity & Promotion",CPC00,Development Control Advice,CPC,Development Control,CP,Planning and Development Services,C,"Cultural, Environmental & Planning Services"
GUILDFORD BOROUGH COUNCIL,Planning & Development,454730,Alexander Advertising (International) Ltd,05/03/2024,30122881,970.6,0,"Advertising, Publicity & Promotion",Full Service Marketing Agencies,Invoice,BACS,No,09/02/2024 00:00,2023,11,INV-0506,D5100,Development Control - Fee Earn,D5002,"Advertising, Publicity & Promotion",CPC00,Development Control Advice,CPC,Development Control,CP,Planning and Development Services,C,"Cultural, Environmental & Planning Services"
GUILDFORD BOROUGH COUNCIL,Planning & Development,454730,Alexander Advertising (International) Ltd,20/02/2024,30121253,397.06,0,"Advertising, Publicity & Promotion",Full Service Marketing Agencies,Invoice,BACS,No,26/01/2024 00:00,2023,10,INV-0462,D5100,Development Control - Fee Earn,D5002,"Advertising, Publicity & Promotion",CPC00,Development Control Advice,CPC,Development Control,CP,Planning and Development Services,C,"Cultural, Environmental & Planning Services"
GUILDFORD BOROUGH COUNCIL,Planning & Development,454730,Alexander Advertising (International) Ltd,12/03/2024,30123017,352.94,0,"Advertising, Publicity & Promotion",Full Service Marketing Agencies,Invoice,BACS,No,16/02/2024 00:00,2023,11,INV-0521,D5100,Development Control - Fee Earn,D5002,"Advertising, Publicity & Promotion",CPC00,Development Control Advice,CPC,Development Control,CP,Planning and Development Services,C,"Cultural, Environmental & Planning Services"
GUILDFORD BOROUGH COUNCIL,Planning & Development,454730,Alexander Advertising (International) Ltd,06/02/2024,30119858,441.18,0,"Advertising, Publicity & Promotion",Full Service Marketing Agencies,Invoice,BACS,No,12/01/2024 00:00,2023,10,INV-0437,D5100,Development Control - Fee Earn,D5002,"Advertising, Publicity & Promotion",CPC00,Development Control Advice,CPC,Development Control,CP,Planning and Development Services,C,"Cultural, Environmental & Planning Services"
GUILDFORD BOROUGH COUNCIL,Planning & Development,454730,Alexander Advertising (International) Ltd,13/02/2024,30120620,617.65,0,"Advertising, Publicity & Promotion",Full Service Marketing Agencies,Invoice,BACS,No,19/01/2024 00:00,2023,10,INV-0450,D5100,Development Control - Fee Earn,D5002,"Advertising, Publicity & Promotion",CPC00,Development Control Advice,CPC,Development Control,CP,Planning and Development Services,C,"Cultural, Environmental & Planning Services"
GUILDFORD BOROUGH COUNCIL,Planning & Development,454730,Alexander Advertising (International) Ltd,12/03/2024,30123030,529.42,0,"Advertising, Publicity & Promotion",Full Service Marketing Agencies,Invoice,BACS,No,16/02/2024 00:00,2023,11,INV-0522,D5100,Development Control - Fee Earn,D5002,"Advertising, Publicity & Promotion",CPC00,Development Control Advice,CPC,Development Control,CP,Planning and Development Services,C,"Cultural, Environmental & Planning Services"
GUILDFORD BOROUGH COUNCIL,Long Term Debtors,27886,redacted,27/02/2024,30123245,8000,0,Advances Made,,Invoice,BACS,No,23/02/2024 00:00,2023,11,Car Loan ,G02001,Car Purchase Loans,2120,Advances Made,XXX99,*** UNASSIGNED ***,WCC,CEC Recharges,WC,CEC Recharges,A,Central Services
GUILDFORD BOROUGH COUNCIL,Community Services,544480,Allocate Software Ltd,23/01/2024,30120617,500,0,ICT Software,Software Developers,Invoice,BACS,No,15/12/2023 00:00,2023,10,IN-GBA29316,C3115,Community Transport,D7002,ICT Software,XXX99,*** UNASSIGNED ***,WCC,CEC Recharges,WC,CEC Recharges,A,Central Services
GUILDFORD BOROUGH COUNCIL,Community Services,544480,Allocate Software Ltd,23/01/2024,30120617,500,0,ICT Software,Software Developers,Invoice,BACS,No,15/12/2023 00:00,2023,10,IN-GBA29316,C8142,Community Meals Service,D7002,ICT Software,KGU00,Supporting People - Strategy,KGU,Supporting People,KG,Housing General Fund,K,Housing Services
GUILDFORD BOROUGH COUNCIL,Community Services,544480,Allocate Software Ltd,23/01/2024,30120618,2500,0,ICT Software,Software Developers,Invoice,BACS,No,15/12/2023 00:00,2023,10,IN-GBB29316,C3115,Community Transport,D7002,ICT Software,XXX99,*** UNASSIGNED ***,WCC,CEC Recharges,WC,CEC Recharges,A,Central Services
GUILDFORD BOROUGH COUNCIL,Community Services,544480,Allocate Software Ltd,23/01/2024,30120618,2500,0,ICT Software,Software Developers,Invoice,BACS,No,15/12/2023 00:00,2023,10,IN-GBB29316,C8142,Community Meals Service,D7002,ICT Software,KGU00,Supporting People - Strategy,KGU,Supporting People,KG,Housing General Fund,K,Housing Services
GUILDFORD BOROUGH COUNCIL,Community Services,544480,Allocate Software Ltd,23/01/2024,30120617,333.34,0,ICT Software,Software Developers,Invoice,BACS,No,15/12/2023 00:00,2023,10,IN-GBA29316,C8100,Community Hubs,D7002,ICT Software,KGU00,Supporting People - Strategy,KGU,Supporting People,KG,Housing General Fund,K,Housing Services
GUILDFORD BOROUGH COUNCIL,Community Services,544480,Allocate Software Ltd,23/01/2024,30120618,1666.67,0,ICT Software,Software Developers,Invoice,BACS,No,15/12/2023 00:00,2023,10,IN-GBB29316,C8100,Community Hubs,D7002,ICT Software,KGU00,Supporting People - Strategy,KGU,Supporting People,KG,Housing General Fund,K,Housing Services
GUILDFORD BOROUGH COUNCIL,HRA Service Delivery,914220,Allpay Ltd,26/03/2024,30123846,1334.61,0,Bank Charges,Other Financial Service Providers,Invoice,BACS,No,29/02/2024 00:00,2023,12,0000812201GBDD,M1121,Income Collection (BHS),D8002,Bank Charges,W3A05,Current Service Costs - Housing Services,W3A,Current Service Costs adjustment,W3,Current Service Costs,W,Other Operating Income and Expenditure
GUILDFORD BOROUGH COUNCIL,HRA Service Delivery,914220,Allpay Ltd,25/01/2024,30119086,1439,0,Bank Charges,Other Financial Service Providers,Invoice,BACS,No,31/12/2023 00:00,2023,10,0000805013GBDD,M1121,Income Collection (BHS),D8002,Bank Charges,W3A05,Current Service Costs - Housing Services,W3A,Current Service Costs adjustment,W3,Current Service Costs,W,Other Operating Income and Expenditure
GUILDFORD BOROUGH COUNCIL,HRA Service Delivery,914220,Allpay Ltd,27/02/2024,30121659,1477.82,0,Bank Charges,Other Financial Service Providers,Invoice,BACS,No,31/01/2024 00:00,2023,11,808626,M1121,Income Collection (BHS),D8002,Bank Charges,W3A05,Current Service Costs - Housing Services,W3A,Current Service Costs adjustment,W3,Current Service Costs,W,Other Operating Income and Expenditure
GUILDFORD BOROUGH COUNCIL,GBC Holdings Accounts,878400,Alphabet (GB) Ltd,22/02/2024,30123042,562.72,0,Car Leasing,Fleet Management Agencies,Invoice,BACS,No,01/11/2023 00:00,2023,11,80318533,G1131,Car Leasing Holding Code,C3002,Car Leasing,DBX70,Other Management Costs,DBX,Support Service and Management Costs,DB,Children's Social Care,E,Childrens and Education Services
GUILDFORD BOROUGH COUNCIL,GBC Holdings Accounts,878400,Alphabet (GB) Ltd,26/03/2024,30124698,276.95,0,Car Leasing,Fleet Management Agencies,Invoice,BACS,No,29/02/2024 00:00,2023,12,80327344,G1131,Car Leasing Holding Code,C3002,Car Leasing,DBX70,Other Management Costs,DBX,Support Service and Management Costs,DB,Children's Social Care,E,Childrens and Education Services
GUILDFORD BOROUGH COUNCIL,GBC Holdings Accounts,878400,Alphabet (GB) Ltd,22/02/2024,30123014,286.5,0,Car Leasing,Fleet Management Agencies,Invoice,BACS,No,30/11/2023 00:00,2023,11,80319972,G1131,Car Leasing Holding Code,C3002,Car Leasing,DBX70,Other Management Costs,DBX,Support Service and Management Costs,DB,Children's Social Care,E,Childrens and Education Services
GUILDFORD BOROUGH COUNCIL,GBC Holdings Accounts,878400,Alphabet (GB) Ltd,05/03/2024,30119736,296.05,0,Car Leasing,Fleet Management Agencies,Invoice,BACS,No,31/12/2023 00:00,2023,12,80322196,G1131,Car Leasing Holding Code,C3002,Car Leasing,DBX70,Other Management Costs,DBX,Support Service and Management Costs,DB,Children's Social Care,E,Childrens and Education Services
GUILDFORD BOROUGH COUNCIL,Planning & Development,976360,Amanda Reynolds Urbanism Limited,20/02/2024,30121045,10890,0,Consultancy,Professional Associations,Invoice,BACS,No,24/01/2024 00:00,2023,10,INV-0716,D5100,Development Control - Fee Earn,D6001,Consultancy,CPC00,Development Control Advice,CPC,Development Control,CP,Planning and Development Services,C,"Cultural, Environmental & Planning Services"
GUILDFORD BOROUGH COUNCIL,HRA Service Delivery,951330,Amazon Payments Europe S.C.A.,05/03/2024,30120626,291.66,0,Equipment,Other Retailers,Invoice,BACS,No,19/01/2024 00:00,2023,11,GB45XT6ABEI,M3690,Supported Hsg-General (SHS),D2001,Equipment,W3A05,Current Service Costs - Housing Services,W3A,Current Service Costs adjustment,W3,Current Service Costs,W,Other Operating Income and Expenditure
GUILDFORD BOROUGH COUNCIL,Communication & Customer Services,951330,Amazon Payments Europe S.C.A.,29/02/2024,30121562,262,0,ICT Hardware And Consumables,Other Retailers,Invoice,BACS,No,31/01/2024 00:00,2023,11,GB4AQ8XABEI,G3550,Resources Caseworker,D7001,ICT Hardware And Consumables,DBX35,Finance (including Internal Audit),DBX,Support Service and Management Costs,DB,Children's Social Care,E,Childrens and Education Services
GUILDFORD BOROUGH COUNCIL,Housing Services,1000451,AMG Electrical Ltd,29/02/2024,30123523,966.85,0,Services,,Invoice,BACS,No,20/02/2024 00:00,2023,11,2402-02,K1515,Building Maintenance,D6004,Services,DBX45,Property Services,DBX,Support Service and Management Costs,DB,Children's Social Care,E,Childrens and Education Services
GUILDFORD BOROUGH COUNCIL,Housing Services,1000451,AMG Electrical Ltd,30/01/2024,30121167,760.59,0,Services,,Invoice,BACS,No,09/01/2024 00:00,2023,10,2401-02,K1515,Building Maintenance,D6004,Services,DBX45,Property Services,DBX,Support Service and Management Costs,DB,Children's Social Care,E,Childrens and Education Services
GUILDFORD BOROUGH COUNCIL,Housing Services,1000451,AMG Electrical Ltd,05/03/2024,30123774,3500,0,Services,,Invoice,BACS,No,27/02/2024 00:00,2023,12,XLRIP-24,K1515,Building Maintenance,D6004,Services,DBX45,Property Services,DBX,Support Service and Management Costs,DB,Children's Social Care,E,Childrens and Education Services
GUILDFORD BOROUGH COUNCIL,Housing Services,1000451,AMG Electrical Ltd,16/01/2024,30119683,1726.4,0,Services,,Invoice,BACS,No,08/01/2024 00:00,2023,10,S/11/23,K1515,Building Maintenance,D6004,Services,DBX45,Property Services,DBX,Support Service and Management Costs,DB,Children's Social Care,E,Childrens and Education Services
GUILDFORD BOROUGH COUNCIL,Housing Services,1000451,AMG Electrical Ltd,12/03/2024,30123995,1404.84,0,Services,,Invoice,BACS,No,03/03/2024 00:00,2023,12,2403-01,K1515,Building Maintenance,D6004,Services,DBX45,Property Services,DBX,Support Service and Management Costs,DB,Children's Social Care,E,Childrens and Education Services
GUILDFORD BOROUGH COUNCIL,Housing Services,1000451,AMG Electrical Ltd,13/02/2024,30122200,5428,0,Services,,Invoice,BACS,No,02/02/2024 00:00,2023,11,XLHS-24,K1515,Building Maintenance,D6004,Services,DBX45,Property Services,DBX,Support Service and Management Costs,DB,Children's Social Care,E,Childrens and Education Services
GUILDFORD BOROUGH COUNCIL,Housing Services,1000451,AMG Electrical Ltd,14/03/2024,30124366,1819.1,0,Services,,Invoice,BACS,No,04/03/2024 00:00,2023,12,S/02/24,K1515,Building Maintenance,D6004,Services,DBX45,Property Services,DBX,Support Service and Management Costs,DB,Children's Social Care,E,Childrens and Education Services
GUILDFORD BOROUGH COUNCIL,Housing Services,1000451,AMG Electrical Ltd,14/03/2024,30124373,913.12,0,Services,,Invoice,BACS,No,04/03/2024 00:00,2023,12,2403-02,K1515,Building Maintenance,D6004,Services,DBX45,Property Services,DBX,Support Service and Management Costs,DB,Children's Social Care,E,Childrens and Education Services
GUILDFORD BOROUGH COUNCIL,Housing Services,1000451,AMG Electrical Ltd,01/02/2024,30121342,1181.17,0,Services,,Invoice,BACS,No,22/01/2024 00:00,2023,10,2401-03,K1515,Building Maintenance,D6004,Services,DBX45,Property Services,DBX,Support Service and Management Costs,DB,Children's Social Care,E,Childrens and Education Services
GUILDFORD BOROUGH COUNCIL,Housing Services,1000451,AMG Electrical Ltd,01/02/2024,30121342,417.96,0,Materials,,Invoice,BACS,No,22/01/2024 00:00,2023,10,2401-03,K1515,Building Maintenance,D2003,Materials,DBX45,Property Services,DBX,Support Service and Management Costs,DB,Children's Social Care,E,Childrens and Education Services
GUILDFORD BOROUGH COUNCIL,Housing Services,1000451,AMG Electrical Ltd,08/02/2024,30122096,1116.17,0,Services,,Invoice,BACS,No,29/01/2024 00:00,2023,11,2401-04,K1515,Building Maintenance,D6004,Services,DBX45,Property Services,DBX,Support Service and Management Costs,DB,Children's Social Care,E,Childrens and Education Services
GUILDFORD BOROUGH COUNCIL,Housing Services,1000451,AMG Electrical Ltd,27/03/2024,30124777,888.8,0,Services,,Invoice,BACS,No,14/03/2024 00:00,2023,12,2403-03,K1515,Building Maintenance,D6004,Services,DBX45,Property Services,DBX,Support Service and Management Costs,DB,Children's Social Care,E,Childrens and Education Services
GUILDFORD BOROUGH COUNCIL,Housing Services,1000451,AMG Electrical Ltd,05/03/2024,30123779,1220,0,Services,,Invoice,BACS,No,27/02/2024 00:00,2023,12,XLSD-24,K1515,Building Maintenance,D6004,Services,DBX45,Property Services,DBX,Support Service and Management Costs,DB,Children's Social Care,E,Childrens and Education Services
GUILDFORD BOROUGH COUNCIL,Housing Services,1000451,AMG Electrical Ltd,16/01/2024,30119658,1063.67,0,Services,,Invoice,BACS,No,09/01/2024 00:00,2023,10,2401-01,K1515,Building Maintenance,D6004,Services,DBX45,Property Services,DBX,Support Service and Management Costs,DB,Children's Social Care,E,Childrens and Education Services
GUILDFORD BOROUGH COUNCIL,Housing Services,1000451,AMG Electrical Ltd,12/03/2024,30123995,422.73,0,Materials,,Invoice,BACS,No,03/03/2024 00:00,2023,12,2403-01,K1515,Building Maintenance,D2003,Materials,DBX45,Property Services,DBX,Support Service and Management Costs,DB,Children's Social Care,E,Childrens and Education Services
GUILDFORD BOROUGH COUNCIL,Housing Services,1000451,AMG Electrical Ltd,13/02/2024,30122216,375,0,Services,,Invoice,BACS,No,02/02/2024 00:00,2023,11,XLEF-24,K1515,Building Maintenance,D6004,Services,DBX45,Property Services,DBX,Support Service and Management Costs,DB,Children's Social Care,E,Childrens and Education Services
GUILDFORD BOROUGH COUNCIL,Housing Services,1000451,AMG Electrical Ltd,13/02/2024,30122226,3983.2,0,Services,,Invoice,BACS,No,02/02/2024 00:00,2023,11,XLHSST-24,K1515,Building Maintenance,D6004,Services,DBX45,Property Services,DBX,Support Service and Management Costs,DB,Children's Social Care,E,Childrens and Education Services
GUILDFORD BOROUGH COUNCIL,Housing Services,1000451,AMG Electrical Ltd,13/02/2024,30122191,3060,0,Services,,Invoice,BACS,No,02/02/2024 00:00,2023,11,XLLP-24,K1515,Building Maintenance,D6004,Services,DBX45,Property Services,DBX,Support Service and Management Costs,DB,Children's Social Care,E,Childrens and Education Services
GUILDFORD BOROUGH COUNCIL,Housing Services,1000451,AMG Electrical Ltd,13/02/2024,30122211,2680,0,Services,,Invoice,BACS,No,02/02/2024 00:00,2023,11,XLEH-24,K1515,Building Maintenance,D6004,Services,DBX45,Property Services,DBX,Support Service and Management Costs,DB,Children's Social Care,E,Childrens and Education Services
GUILDFORD BOROUGH COUNCIL,Housing Services,1000451,AMG Electrical Ltd,08/02/2024,30122122,1012.33,0,Services,,Invoice,BACS,No,04/02/2024 00:00,2023,11,2402-01,K1515,Building Maintenance,D6004,Services,DBX45,Property Services,DBX,Support Service and Management Costs,DB,Children's Social Care,E,Childrens and Education Services
GUILDFORD BOROUGH COUNCIL,Housing Services,1000451,AMG Electrical Ltd,27/03/2024,30125023,898.39,0,Services,,Invoice,BACS,No,18/03/2024 00:00,2023,12,2403-04,K1515,Building Maintenance,D6004,Services,DBX45,Property Services,DBX,Support Service and Management Costs,DB,Children's Social Care,E,Childrens and Education Services
GUILDFORD BOROUGH COUNCIL,Assets and Property,1000098,Amiri Construction Limited,13/02/2024,30122250,650,0,Asset Maintenance,,Invoice,BACS,No,08/02/2024 00:00,2023,11,GUIL01,B5341,Midleton Industrial Estate,B1001,Asset Maintenance,CPJ00,Market Undertakings,CPJ,Economic Development,CP,Planning and Development Services,C,"Cultural, Environmental & Planning Services"
GUILDFORD BOROUGH COUNCIL,Long Term Debtors,33290,redacted,20/02/2024,30122608,6000,0,Advances Made,,Invoice,BACS,No,14/02/2024 00:00,2023,11,AC CAR LOAN PAYMENT REQUISITION,G02001,Car Purchase Loans,2120,Advances Made,XXX99,*** UNASSIGNED ***,WCC,CEC Recharges,WC,CEC Recharges,A,Central Services
GUILDFORD BOROUGH COUNCIL,HRA Service Delivery,32190,redacted,01/02/2024,30121370,322,0,Professional Subscriptions,,Invoice,BACS,No,31/01/2024 00:00,2023,11,AD CIOB membership claim,M5111,Repairs-Admin (BHS),A7102,Professional Subscriptions,W3A05,Current Service Costs - Housing Services,W3A,Current Service Costs adjustment,W3,Current Service Costs,W,Other Operating Income and Expenditure
GUILDFORD BOROUGH COUNCIL,HRA Service Delivery,32190,redacted,16/01/2024,30119700,412.85,0,Staff Training,,Invoice,BACS,No,24/05/2023 00:00,2023,10,A Davidson - accommodation re DDVS training course,M5111,Repairs-Admin (BHS),A7100,Staff Training,W3A05,Current Service Costs - Housing Services,W3A,Current Service Costs adjustment,W3,Current Service Costs,W,Other Operating Income and Expenditure
GUILDFORD BOROUGH COUNCIL,Assets and Property,933760,Ant Structures Ltd,26/03/2024,30123840,12480,0,GF Assets - Maintenance,Scaffolders,Invoice,BACS,No,29/02/2024 00:00,2023,12,535,B6100,Other Property Admin,B1004,GF Assets - Maintenance,CPJ00,Market Undertakings,CPJ,Economic Development,CP,Planning and Development Services,C,"Cultural, Environmental & Planning Services"
GUILDFORD BOROUGH COUNCIL,Organisational Development,851950,Aon UK Limited (acct *091),13/02/2024,30122267,5250,0,Insurance,Other Insurance Service Providers,Invoice,BACS,No,23/11/2023 00:00,2023,11,528823267,F8531,Insurance Revenue Account,A7124,Insurance,DBX70,Other Management Costs,DBX,Support Service and Management Costs,DB,Children's Social Care,E,Childrens and Education Services
GUILDFORD BOROUGH COUNCIL,Community Services,604000,Apetito Ltd,25/01/2024,30119462,1943.78,0,Catering,Frozen Food Suppliers,Invoice,BACS,No,31/12/2023 00:00,2023,10,9004690917,C8100,Community Hubs,D3001,Catering,KGU00,Supporting People - Strategy,KGU,Supporting People,KG,Housing General Fund,K,Housing Services
GUILDFORD BOROUGH COUNCIL,Community Services,604000,Apetito Ltd,26/03/2024,30123907,2166.72,0,External Vehicle Hire,Frozen Food Suppliers,Invoice,BACS,No,01/03/2024 00:00,2023,12,9004762949,C8142,Community Meals Service,C3001,External Vehicle Hire,KGU00,Supporting People - Strategy,KGU,Supporting People,KG,Housing General Fund,K,Housing Services
GUILDFORD BOROUGH COUNCIL,Community Services,604000,Apetito Ltd,27/02/2024,30122296,1645.61,0,Catering,Frozen Food Suppliers,Invoice,BACS,No,31/01/2024 00:00,2023,11,9004701777,C8100,Community Hubs,D3001,Catering,KGU00,Supporting People - Strategy,KGU,Supporting People,KG,Housing General Fund,K,Housing Services
GUILDFORD BOROUGH COUNCIL,Community Services,604000,Apetito Ltd,27/02/2024,30122244,7563.9,0,Catering,Frozen Food Suppliers,Invoice,BACS,No,31/01/2024 00:00,2023,11,9004691789,C8142,Community Meals Service,D3001,Catering,KGU00,Supporting People - Strategy,KGU,Supporting People,KG,Housing General Fund,K,Housing Services
GUILDFORD BOROUGH COUNCIL,Community Services,604000,Apetito Ltd,15/02/2024,30122532,7282.54,0,Catering,Frozen Food Suppliers,Invoice,BACS,No,31/12/2023 00:00,2023,11,9004690834,C8142,Community Meals Service,D3001,Catering,KGU00,Supporting People - Strategy,KGU,Supporting People,KG,Housing General Fund,K,Housing Services
GUILDFORD BOROUGH COUNCIL,Community Services,604000,Apetito Ltd,16/01/2024,30118886,2166.72,0,External Vehicle Hire,Frozen Food Suppliers,Invoice,BACS,No,22/12/2023 00:00,2023,10,9004668530,C8142,Community Meals Service,C3001,External Vehicle Hire,KGU00,Supporting People - Strategy,KGU,Supporting People,KG,Housing General Fund,K,Housing Services
GUILDFORD BOROUGH COUNCIL,Community Services,604000,Apetito Ltd,26/03/2024,30123976,2646.75,0,Catering,Frozen Food Suppliers,Invoice,BACS,No,29/02/2024 00:00,2023,12,9004774758,C8100,Community Hubs,D3001,Catering,KGU00,Supporting People - Strategy,KGU,Supporting People,KG,Housing General Fund,K,Housing Services
GUILDFORD BOROUGH COUNCIL,Community Services,604000,Apetito Ltd,26/03/2024,30123962,7299.37,0,Catering,Frozen Food Suppliers,Invoice,BACS,No,29/02/2024 00:00,2023,12,9004774681,C8142,Community Meals Service,D3001,Catering,KGU00,Supporting People - Strategy,KGU,Supporting People,KG,Housing General Fund,K,Housing Services
GUILDFORD BOROUGH COUNCIL,Community Services,604000,Apetito Ltd,27/02/2024,30121593,2166.72,0,External Vehicle Hire,Frozen Food Suppliers,Invoice,BACS,No,01/02/2024 00:00,2023,11,9004710358,C8142,Community Meals Service,C3001,External Vehicle Hire,KGU00,Supporting People - Strategy,KGU,Supporting People,KG,Housing General Fund,K,Housing Services
GUILDFORD BOROUGH COUNCIL,Regulatory Services,822600,Applied Resilience Limited,26/03/2024,30123827,2149,0,Services,Other Business Service Providers,Invoice,BACS,No,01/03/2024 00:00,2023,12,GBC159,F1511,Civil Emergencies,D6004,Services,ACG00,Emergency Planning,ACG,Emergency Planning,AC,Central Services to the Public,A,Central Services
GUILDFORD BOROUGH COUNCIL,Regulatory Services,822600,Applied Resilience Limited,27/02/2024,30121568,2149,0,Services,Other Business Service Providers,Invoice,BACS,No,01/02/2024 00:00,2023,11,GBC157,F1511,Civil Emergencies,D6004,Services,ACG00,Emergency Planning,ACG,Emergency Planning,AC,Central Services to the Public,A,Central Services
GUILDFORD BOROUGH COUNCIL,Community Services,822600,Applied Resilience Limited,25/01/2024,30119101,700.42,0,Grants And Subscriptions,Other Business Service Providers,Invoice,BACS,No,01/01/2024 00:00,2023,10,GBC156,F5724,Safer Guildford Partnership,D9001,Grants And Subscriptions,CEH00,Community Safety (Safety Services),CEH,Community Safety (Safety Services),CE,Environmental & Regulatory Services,C,"Cultural, Environmental & Planning Services"
GUILDFORD BOROUGH COUNCIL,Regulatory Services,822600,Applied Resilience Limited,25/01/2024,30119085,2149,0,Services,Other Business Service Providers,Invoice,BACS,No,01/01/2024 00:00,2023,10,GBC155,F1511,Civil Emergencies,D6004,Services,ACG00,Emergency Planning,ACG,Emergency Planning,AC,Central Services to the Public,A,Central Services
GUILDFORD BOROUGH COUNCIL,Organisational Development,105080,APSE,08/02/2024,30120176,650,0,Consultancy,Trade Associations And Regulatory Bodies,Invoice,BACS,No,16/01/2024 00:00,2023,10,2324/2344,B3911,Climate Change Strategy,D6001,Consultancy,CEZ00,Climate Change Costs,CEZ,Climate Change Costs,CE,Environmental & Regulatory Services,C,"Cultural, Environmental & Planning Services"
GUILDFORD BOROUGH COUNCIL,Environmental Services,105080,APSE,30/01/2024,30121219,263,0,Staff Training,Trade Associations And Regulatory Bodies,Invoice,BACS,No,13/06/2023 00:00,2023,10,2324/677,A1500,Crematorium,A7100,Staff Training,CEA10,Crematoria,CEA,"Cemetery, Cremation and Mortuary Services",CE,Environmental & Regulatory Services,C,"Cultural, Environmental & Planning Services"
GUILDFORD BOROUGH COUNCIL,Grants,622420,Aquaneed Limited,26/03/2024,30124039,8883.69,0,Grants To Private Owners,Fixed Disability Equipment Suppliers,Invoice,BACS,No,29/02/2024 00:00,2023,12,Aquaneed SI4020 re 73 Church View,N51008,Mandatory DFG,1311,Grants To Private Owners,XXX99,*** UNASSIGNED ***,WCC,CEC Recharges,WC,CEC Recharges,A,Central Services
GUILDFORD BOROUGH COUNCIL,Grants,870700,Architectural Survey Services Ltd,20/02/2024,30121189,649.8,0,Grants To Private Owners,Architects And Design Consultants,Invoice,BACS,No,25/01/2024 00:00,2023,10,Architectural Services - 1195 re 8 Beech Court,N51019,BCF Non Grant Expenditure,1311,Grants To Private Owners,XXX99,*** UNASSIGNED ***,WCC,CEC Recharges,WC,CEC Recharges,A,Central Services
GUILDFORD BOROUGH COUNCIL,Industrial Estates,874420,Artelia Projects UK Limited,28/03/2024,30123519,5538,0,Consultants Fees,Civil Engineers,Invoice,BACS,No,31/01/2024 00:00,2023,12,PIN014597,P72037,Midleton Ind Est Redevelop,1221,Consultants Fees,XXX99,*** UNASSIGNED ***,WCC,CEC Recharges,WC,CEC Recharges,A,Central Services
GUILDFORD BOROUGH COUNCIL,Industrial Estates,874420,Artelia Projects UK Limited,28/03/2024,30123585,8328,0,Consultants Fees,Civil Engineers,Invoice,BACS,No,31/01/2024 00:00,2023,12,PIN014598,P72037,Midleton Ind Est Redevelop,1221,Consultants Fees,XXX99,*** UNASSIGNED ***,WCC,CEC Recharges,WC,CEC Recharges,A,Central Services
GUILDFORD BOROUGH COUNCIL,Industrial Estates,874420,Artelia Projects UK Limited,26/03/2024,30124316,2125,0,Consultants Fees,Civil Engineers,Invoice,BACS,No,29/02/2024 00:00,2023,12,PIN014652,P72037,Midleton Ind Est Redevelop,1221,Consultants Fees,XXX99,*** UNASSIGNED ***,WCC,CEC Recharges,WC,CEC Recharges,A,Central Services
GUILDFORD BOROUGH COUNCIL,Industrial Estates,874420,Artelia Projects UK Limited,19/03/2024,30123522,2125,0,Consultants Fees,Civil Engineers,Invoice,BACS,No,31/01/2024 00:00,2023,12,PIN014599,P72037,Midleton Ind Est Redevelop,1221,Consultants Fees,XXX99,*** UNASSIGNED ***,WCC,CEC Recharges,WC,CEC Recharges,A,Central Services
GUILDFORD BOROUGH COUNCIL,Environmental Services,775190,Arton Monoseal Ltd,05/03/2024,30122252,980,0,Waste Removal,Asbestos Removal Service Providers,Invoice,BACS,No,09/02/2024 00:00,2023,11,INV-5811,K4551,Street Cleansing,D6010,Waste Removal,CES00,Street Cleansing (not chargeable to highways),CES,Street Cleansing (not chargeable to highways),CE,Environmental & Regulatory Services,C,"Cultural, Environmental & Planning Services"
GUILDFORD BOROUGH COUNCIL,Environmental Services,775190,Arton Monoseal Ltd,05/03/2024,30122193,490,0,Waste Removal,Asbestos Removal Service Providers,Invoice,BACS,No,08/02/2024 00:00,2023,11,INV-5807,K4551,Street Cleansing,D6010,Waste Removal,CES00,Street Cleansing (not chargeable to highways),CES,Street Cleansing (not chargeable to highways),CE,Environmental & Regulatory Services,C,"Cultural, Environmental & Planning Services"
GUILDFORD BOROUGH COUNCIL,Environmental Services,775190,Arton Monoseal Ltd,30/01/2024,30119272,980,0,Waste Removal,Asbestos Removal Service Providers,Invoice,BACS,No,04/01/2024 00:00,2023,10,INV-5798,K4551,Street Cleansing,D6010,Waste Removal,CES00,Street Cleansing (not chargeable to highways),CES,Street Cleansing (not chargeable to highways),CE,Environmental & Regulatory Services,C,"Cultural, Environmental & Planning Services"
GUILDFORD BOROUGH COUNCIL,Environmental Services,775190,Arton Monoseal Ltd,05/03/2024,30122248,980,0,Waste Removal,Asbestos Removal Service Providers,Invoice,BACS,No,09/02/2024 00:00,2023,11,INV-5809,K4551,Street Cleansing,D6010,Waste Removal,CES00,Street Cleansing (not chargeable to highways),CES,Street Cleansing (not chargeable to highways),CE,Environmental & Regulatory Services,C,"Cultural, Environmental & Planning Services"
GUILDFORD BOROUGH COUNCIL,Long Term Debtors,32265,redacted,19/03/2024,30124468,10000,0,Advances Made,,Invoice,BACS,No,11/03/2024 00:00,2023,12,AB Car Loan payment,G02001,Car Purchase Loans,2120,Advances Made,XXX99,*** UNASSIGNED ***,WCC,CEC Recharges,WC,CEC Recharges,A,Central Services
GUILDFORD BOROUGH COUNCIL,Assets and Property,840480,Ash Contracting Ltd,23/01/2024,30120182,90445.07,0,GF Assets - Maintenance,General Builders,Invoice,BACS,No,15/01/2024 00:00,2023,10,2568-2,B6100,Other Property Admin,B1004,GF Assets - Maintenance,CPJ00,Market Undertakings,CPJ,Economic Development,CP,Planning and Development Services,C,"Cultural, Environmental & Planning Services"
GUILDFORD BOROUGH COUNCIL,Commercial Services,840480,Ash Contracting Ltd,12/03/2024,30124117,25541.92,0,GF Assets - Maintenance,General Builders,Invoice,BACS,No,29/02/2024 00:00,2023,12,2575-2,A4511,Guildford House Administration,B1004,GF Assets - Maintenance,CCA30,Museums & Galleries,CCA,Culture & Heritage,CC,Cultural & Related Services,C,"Cultural, Environmental & Planning Services"
GUILDFORD BOROUGH COUNCIL,Commercial Services,840480,Ash Contracting Ltd,11/01/2024,30119345,11692.7,0,GF Assets - Maintenance,General Builders,Invoice,BACS,No,15/12/2023 00:00,2023,10,2575-1,A4511,Guildford House Administration,B1004,GF Assets - Maintenance,CCA30,Museums & Galleries,CCA,Culture & Heritage,CC,Cultural & Related Services,C,"Cultural, Environmental & Planning Services"
GUILDFORD BOROUGH COUNCIL,Community Services,1001009,Austin Medical Products Ltd,21/03/2024,30124976,499.6,0,Equipment,,Invoice,BACS,No,24/01/2024 00:00,2023,12,328915,C2511,Careline/Telecare,D2001,Equipment,KGU00,Supporting People - Strategy,KGU,Supporting People,KG,Housing General Fund,K,Housing Services
GUILDFORD BOROUGH COUNCIL,Finance,1000779,Aylen Consulting Ltd,25/01/2024,30120625,31500,0,Consultancy,,Invoice,BACS,No,11/12/2023 00:00,2023,10,42,G3565,Finance Specialists,D6001,Consultancy,DBX35,Finance (including Internal Audit),DBX,Support Service and Management Costs,DB,Children's Social Care,E,Childrens and Education Services
GUILDFORD BOROUGH COUNCIL,Communication & Customer Services,834160,Banner Group Limited,26/03/2024,30123692,268.85,0,Stationery & Paper,Other Office Equipment Suppliers,Invoice,BACS,No,28/02/2024 00:00,2023,12,AF77308,G3550,Resources Caseworker,D5007,Stationery & Paper,DBX35,Finance (including Internal Audit),DBX,Support Service and Management Costs,DB,Children's Social Care,E,Childrens and Education Services
GUILDFORD BOROUGH COUNCIL,Communication & Customer Services,834160,Banner Group Limited,16/01/2024,30119113,420.4,0,Stationery & Paper,Other Office Equipment Suppliers,Invoice,BACS,No,22/12/2023 00:00,2023,10,AD84212,G3550,Resources Caseworker,D5007,Stationery & Paper,DBX35,Finance (including Internal Audit),DBX,Support Service and Management Costs,DB,Children's Social Care,E,Childrens and Education Services
GUILDFORD BOROUGH COUNCIL,Communication & Customer Services,834160,Banner Group Limited,20/02/2024,30122490,1148.02,0,Stationery & Paper,Other Office Equipment Suppliers,Invoice,BACS,No,01/01/2024 00:00,2023,11,AE67643,G3550,Resources Caseworker,D5007,Stationery & Paper,DBX35,Finance (including Internal Audit),DBX,Support Service and Management Costs,DB,Children's Social Care,E,Childrens and Education Services
GUILDFORD BOROUGH COUNCIL,Commercial Services,834160,Banner Group Limited,16/01/2024,30119113,600,0,Stationery & Paper,Other Office Equipment Suppliers,Invoice,BACS,No,22/12/2023 00:00,2023,10,AD84212,B2111,Car Parks - Administration,D5007,Stationery & Paper,HTP10,Off-Street Parking,HTP,Parking Services,HT,"Highways, Roads and Transport Services",H,"Highways, Roads and Transport Services"
GUILDFORD BOROUGH COUNCIL,Planning & Development,982780,Barker-Mills Conservation,19/03/2024,30123328,5200,0,Consultancy,Third Party Supplier,Invoice,BACS,No,23/02/2024 00:00,2023,11,NPBM23/38-01,D5100,Development Control - Fee Earn,D6001,Consultancy,CPC00,Development Control Advice,CPC,Development Control,CP,Planning and Development Services,C,"Cultural, Environmental & Planning Services"
GUILDFORD BOROUGH COUNCIL,Community Services,908000,Beeline Taxis,26/03/2024,30123959,1040,0,Expenses,Taxis And Private Hire Companies,Invoice,BACS,No,01/03/2024 00:00,2023,12,1398,C8100,Community Hubs,D8004,Expenses,KGU00,Supporting People - Strategy,KGU,Supporting People,KG,Housing General Fund,K,Housing Services
GUILDFORD BOROUGH COUNCIL,Community Services,908000,Beeline Taxis,01/02/2024,30119357,1280,0,Expenses,Taxis And Private Hire Companies,Invoice,BACS,No,08/01/2024 00:00,2023,10,1321,C8100,Community Hubs,D8004,Expenses,KGU00,Supporting People - Strategy,KGU,Supporting People,KG,Housing General Fund,K,Housing Services
GUILDFORD BOROUGH COUNCIL,Community Services,908000,Beeline Taxis,27/02/2024,30121670,1360,0,Expenses,Taxis And Private Hire Companies,Invoice,BACS,No,31/01/2024 00:00,2023,11,1360,C8100,Community Hubs,D8004,Expenses,KGU00,Supporting People - Strategy,KGU,Supporting People,KG,Housing General Fund,K,Housing Services
GUILDFORD BOROUGH COUNCIL,Commercial Services,953400,Bemrose Booth Paragon Ltd,21/03/2024,30123515,1014,0,Materials,Printing Service Providers,Invoice,BACS,No,26/02/2024 00:00,2023,12,519743,B2217,Guildford On-Street,D2003,Materials,HTP00,On-Street Parking,HTP,Parking Services,HT,"Highways, Roads and Transport Services",H,"Highways, Roads and Transport Services"
GUILDFORD BOROUGH COUNCIL,Commercial Services,953400,Bemrose Booth Paragon Ltd,29/02/2024,30122145,555,0,Materials,Printing Service Providers,Invoice,BACS,No,06/02/2024 00:00,2023,11,519364,B2111,Car Parks - Administration,D2003,Materials,HTP10,Off-Street Parking,HTP,Parking Services,HT,"Highways, Roads and Transport Services",H,"Highways, Roads and Transport Services"
GUILDFORD BOROUGH COUNCIL,Grants,929000,Bentley Mobility Services Limited,16/01/2024,30119696,6313,0,Grants To Private Owners,Mobility Disability Equipment Suppliers,Invoice,BACS,No,15/12/2023 00:00,2023,10,Bentley Mobility Services 30359 re T-3533,N51019,BCF Non Grant Expenditure,1311,Grants To Private Owners,XXX99,*** UNASSIGNED ***,WCC,CEC Recharges,WC,CEC Recharges,A,Central Services
GUILDFORD BOROUGH COUNCIL,Grants,929000,Bentley Mobility Services Limited,23/01/2024,30119417,3309,0,Grants To Private Owners,Mobility Disability Equipment Suppliers,Invoice,BACS,No,27/12/2023 00:00,2023,10,Bentley Mobility Services 30378,N51019,BCF Non Grant Expenditure,1311,Grants To Private Owners,XXX99,*** UNASSIGNED ***,WCC,CEC Recharges,WC,CEC Recharges,A,Central Services
GUILDFORD BOROUGH COUNCIL,Grants,929000,Bentley Mobility Services Limited,08/02/2024,30121021,3495,0,Grants To Private Owners,Mobility Disability Equipment Suppliers,Invoice,BACS,No,15/01/2024 00:00,2023,10,BMS 30413 re T-3554,N51019,BCF Non Grant Expenditure,1311,Grants To Private Owners,XXX99,*** UNASSIGNED ***,WCC,CEC Recharges,WC,CEC Recharges,A,Central Services
GUILDFORD BOROUGH COUNCIL,Grants,929000,Bentley Mobility Services Limited,05/03/2024,30123712,5835.35,0,Grants To Private Owners,Mobility Disability Equipment Suppliers,Invoice,CHAPS,No,28/02/2024 00:00,2023,12,BMS 30586 re T-3597,N51019,BCF Non Grant Expenditure,1311,Grants To Private Owners,XXX99,*** UNASSIGNED ***,WCC,CEC Recharges,WC,CEC Recharges,A,Central Services
GUILDFORD BOROUGH COUNCIL,Assets and Property,817300,Berendsen Workwear Ltd T/A Elis,25/01/2024,30119151,550.32,0,Maintenance Contracts,Linen And Blanket Suppliers,Invoice,BACS,No,01/01/2024 00:00,2023,10,IN234852,B4452,Woking Road Depot,D1002,Maintenance Contracts,XXX99,*** UNASSIGNED ***,WCC,CEC Recharges,WC,CEC Recharges,A,Central Services
GUILDFORD BOROUGH COUNCIL,Assets and Property,817300,Berendsen Workwear Ltd T/A Elis,27/02/2024,30121563,495.19,0,Maintenance Contracts,Linen And Blanket Suppliers,Invoice,BACS,No,01/02/2024 00:00,2023,11,IN235774,B4452,Woking Road Depot,D1002,Maintenance Contracts,XXX99,*** UNASSIGNED ***,WCC,CEC Recharges,WC,CEC Recharges,A,Central Services
GUILDFORD BOROUGH COUNCIL,Environmental Services,817300,Berendsen Workwear Ltd T/A Elis,26/03/2024,30124865,495.19,0,Services,Linen And Blanket Suppliers,Invoice,BACS,No,01/03/2024 00:00,2023,12,IN245592,K5551,Fleet Workshops,D6004,Services,W3A48,Current Service Costs - Fleet Management,W3A,Current Service Costs adjustment,W3,Current Service Costs,W,Other Operating Income and Expenditure
GUILDFORD BOROUGH COUNCIL,Assets and Property,817300,Berendsen Workwear Ltd T/A Elis,25/01/2024,30119161,495.19,0,Maintenance Contracts,Linen And Blanket Suppliers,Invoice,BACS,No,01/01/2024 00:00,2023,10,IN226173,B4452,Woking Road Depot,D1002,Maintenance Contracts,XXX99,*** UNASSIGNED ***,WCC,CEC Recharges,WC,CEC Recharges,A,Central Services
GUILDFORD BOROUGH COUNCIL,Commercial Services,817300,Berendsen Workwear Ltd T/A Elis,26/03/2024,30124078,305.91,0,Services,Linen And Blanket Suppliers,Invoice,BACS,No,01/03/2024 00:00,2023,12,IN254850,F3311,Guildhall,D6004,Services,CCA30,Museums & Galleries,CCA,Culture & Heritage,CC,Cultural & Related Services,C,"Cultural, Environmental & Planning Services"
GUILDFORD BOROUGH COUNCIL,Commercial Services,817300,Berendsen Workwear Ltd T/A Elis,26/03/2024,30125003,305.91,0,Maintenance Contracts,Linen And Blanket Suppliers,Invoice,BACS,No,01/02/2024 00:00,2023,12,IN244604,F3311,Guildhall,D1002,Maintenance Contracts,CCA30,Museums & Galleries,CCA,Culture & Heritage,CC,Cultural & Related Services,C,"Cultural, Environmental & Planning Services"
GUILDFORD BOROUGH COUNCIL,Assets and Property,685740,Bernard Sims Associates,16/01/2024,30118861,350,0,Consultancy,Health And Safety Consultants,Invoice,BACS,No,20/12/2023 00:00,2023,10,59156,G4575,Asset Management,D6001,Consultancy,DBX45,Property Services,DBX,Support Service and Management Costs,DB,Children's Social Care,E,Childrens and Education Services
GUILDFORD BOROUGH COUNCIL,Assets and Property,685740,Bernard Sims Associates,11/01/2024,30119437,400,0,Consultancy,Health And Safety Consultants,Invoice,BACS,No,30/11/2023 00:00,2023,10,58933,G4575,Asset Management,D6001,Consultancy,DBX45,Property Services,DBX,Support Service and Management Costs,DB,Children's Social Care,E,Childrens and Education Services
GUILDFORD BOROUGH COUNCIL,Commercial Services,685740,Bernard Sims Associates,15/02/2024,30121048,1410,0,Consultancy,Health And Safety Consultants,Invoice,BACS,No,23/01/2024 00:00,2023,10,59381,B2219,Bedford Road Mscp,D6001,Consultancy,HTP10,Off-Street Parking,HTP,Parking Services,HT,"Highways, Roads and Transport Services",H,"Highways, Roads and Transport Services"
GUILDFORD BOROUGH COUNCIL,Commercial Services,685740,Bernard Sims Associates,05/03/2024,30122206,400,0,Consultancy,Health And Safety Consultants,Invoice,BACS,No,07/02/2024 00:00,2023,11,59590,B2219,Bedford Road Mscp,D6001,Consultancy,HTP10,Off-Street Parking,HTP,Parking Services,HT,"Highways, Roads and Transport Services",H,"Highways, Roads and Transport Services"
GUILDFORD BOROUGH COUNCIL,Environmental Services,656290,Binscombe Medical Centre,06/02/2024,30120240,418,0,Services,Other Medical Professionals,Invoice,BACS,No,12/01/2024 00:00,2023,10,3592,A1500,Crematorium,D6004,Services,CEA10,Crematoria,CEA,"Cemetery, Cremation and Mortuary Services",CE,Environmental & Regulatory Services,C,"Cultural, Environmental & Planning Services"
GUILDFORD BOROUGH COUNCIL,Revenue Balances,1000456,Birketts LLP,26/03/2024,30124221,1587,0,OOE - G/L On Disp - Rev Inc,,Invoice,BACS,No,29/02/2024 00:00,2023,12,945420,V02005,Hra Net Revenue Account,2300,OOE - G/L On Disp - Rev Inc,XXX99,*** UNASSIGNED ***,WCC,CEC Recharges,WC,CEC Recharges,A,Central Services
GUILDFORD BOROUGH COUNCIL,Grants,938540,BJC Design (Southeast) Ltd,26/03/2024,30124256,678,0,Grants To Private Owners,Surveyors And Inspectors,Invoice,BACS,No,05/03/2024 00:00,2023,12,BJC Designs INV 001198 re Goacher,N51008,Mandatory DFG,1311,Grants To Private Owners,XXX99,*** UNASSIGNED ***,WCC,CEC Recharges,WC,CEC Recharges,A,Central Services
GUILDFORD BOROUGH COUNCIL,Grants,938540,BJC Design (Southeast) Ltd,19/03/2024,30123301,620.5,0,Grants To Private Owners,Surveyors And Inspectors,Invoice,BACS,No,21/02/2024 00:00,2023,11,BJC Design Inv 001194 re T-3415,N51008,Mandatory DFG,1311,Grants To Private Owners,XXX99,*** UNASSIGNED ***,WCC,CEC Recharges,WC,CEC Recharges,A,Central Services
GUILDFORD BOROUGH COUNCIL,Grants,938540,BJC Design (Southeast) Ltd,30/01/2024,30119237,574.5,0,Grants To Private Owners,Surveyors And Inspectors,Invoice,BACS,No,03/01/2024 00:00,2023,10,BJC Design Inv 001176 re T-3489,N51008,Mandatory DFG,1311,Grants To Private Owners,XXX99,*** UNASSIGNED ***,WCC,CEC Recharges,WC,CEC Recharges,A,Central Services
GUILDFORD BOROUGH COUNCIL,Grants,938540,BJC Design (Southeast) Ltd,16/01/2024,30119478,658,0,Grants To Private Owners,Surveyors And Inspectors,Invoice,BACS,No,05/12/2023 00:00,2023,10,BJC Design Inv 001159,N51008,Mandatory DFG,1311,Grants To Private Owners,XXX99,*** UNASSIGNED ***,WCC,CEC Recharges,WC,CEC Recharges,A,Central Services
GUILDFORD BOROUGH COUNCIL,Executive - Miscellaneous,1000280,Blakedown Landscapes (SE) Ltd,16/01/2024,30119682,11264.61,0,Consultants Fees,,Invoice,BACS,No,03/01/2024 00:00,2023,10,L34030,P79100,Wuv - Allotment Relocation,1221,Consultants Fees,XXX99,*** UNASSIGNED ***,WCC,CEC Recharges,WC,CEC Recharges,A,Central Services
GUILDFORD BOROUGH COUNCIL,Executive - Miscellaneous,1000280,Blakedown Landscapes (SE) Ltd,28/03/2024,30124762,15768.32,0,Consultants Fees,,Invoice,BACS,No,01/03/2024 00:00,2023,12,L34084,P79100,Wuv - Allotment Relocation,1221,Consultants Fees,XXX99,*** UNASSIGNED ***,WCC,CEC Recharges,WC,CEC Recharges,A,Central Services
GUILDFORD BOROUGH COUNCIL,Commercial Services,1000986,Blue Horizon Ventures Ltd.,25/01/2024,30119110,1591.81,0,Consultancy,,Invoice,BACS,No,31/12/2023 00:00,2023,10,INV-0061,A2141,G Live,D6001,Consultancy,CCA10,Arts Development & Support,CCA,Culture & Heritage,CC,Cultural & Related Services,C,"Cultural, Environmental & Planning Services"
GUILDFORD BOROUGH COUNCIL,Commercial Services,1000986,Blue Horizon Ventures Ltd.,26/03/2024,30123691,1591.81,0,Consultancy,,Invoice,BACS,No,28/02/2024 00:00,2023,12,INV-0070,A2141,G Live,D6001,Consultancy,CCA10,Arts Development & Support,CCA,Culture & Heritage,CC,Cultural & Related Services,C,"Cultural, Environmental & Planning Services"
GUILDFORD BOROUGH COUNCIL,Commercial Services,1000986,Blue Horizon Ventures Ltd.,27/02/2024,30121627,1591.81,0,Consultancy,,Invoice,BACS,No,31/01/2024 00:00,2023,11,INV-0068,A2141,G Live,D6001,Consultancy,CCA10,Arts Development & Support,CCA,Culture & Heritage,CC,Cultural & Related Services,C,"Cultural, Environmental & Planning Services"
GUILDFORD BOROUGH COUNCIL,Commercial Services,1000986,Blue Horizon Ventures Ltd.,09/01/2024,30117540,1591.81,0,Consultancy,,Invoice,BACS,No,30/11/2023 00:00,2023,10,INV-0058,A2141,G Live,D6001,Consultancy,CCA10,Arts Development & Support,CCA,Culture & Heritage,CC,Cultural & Related Services,C,"Cultural, Environmental & Planning Services"
GUILDFORD BOROUGH COUNCIL,IT Renewals,892850,Bolderwood Solutions Ltd,07/03/2024,30123834,14025,0,Contractor Payments,Computer Systems Integrators,Invoice,BACS,No,10/01/2024 00:00,2023,12,GBC-0097,P81002,IT Renewals Reserve Funded General,1233,Contractor Payments,XXX99,*** UNASSIGNED ***,WCC,CEC Recharges,WC,CEC Recharges,A,Central Services
GUILDFORD BOROUGH COUNCIL,Community Services,495400,Bolton Gate Services Ltd,23/01/2024,30120848,433,0,Asset Maintenance,"Security Shutter, Door And Gate Contractors",Invoice,BACS,No,11/12/2023 00:00,2023,10,SI1021392,C8100,Community Hubs,B1001,Asset Maintenance,KGU00,Supporting People - Strategy,KGU,Supporting People,KG,Housing General Fund,K,Housing Services
GUILDFORD BOROUGH COUNCIL,Assets and Property,1000845,BPS Dorking Limited t/a BPS Chartered Surveyors,19/03/2024,30123205,3600,0,Valuers Fees,,Invoice,BACS,No,21/02/2024 00:00,2023,11,158001/2601,B5311,Industrial Estates Admin,D6002,Valuers Fees,CPJ00,Market Undertakings,CPJ,Economic Development,CP,Planning and Development Services,C,"Cultural, Environmental & Planning Services"
GUILDFORD BOROUGH COUNCIL,Environmental Services,202390,Brand Pest Control,08/02/2024,30121937,415,0,Contractors,Pest And Vermin Control Service Providers,Invoice,BACS,No,23/11/2023 00:00,2023,11,3611,A1500,Crematorium,D6012,Contractors,CEA10,Crematoria,CEA,"Cemetery, Cremation and Mortuary Services",CE,Environmental & Regulatory Services,C,"Cultural, Environmental & Planning Services"
GUILDFORD BOROUGH COUNCIL,Commercial Services,239620,redacted,30/01/2024,30119241,430.55,0,Sale of Items,,Invoice,BACS,No,04/01/2024 00:00,2023,10,Sones December 2023,A4511,Guildford House Administration,K3001,Sale of Items,CCA30,Museums & Galleries,CCA,Culture & Heritage,CC,Cultural & Related Services,C,"Cultural, Environmental & Planning Services"
GUILDFORD BOROUGH COUNCIL,Modern Homes,129090,Breyer Group Plc,28/03/2024,30125429,7300,0,Contractor Payments,General Builders,Invoice,BACS,No,31/01/2024 00:00,2023,12,SIN-000851,N42068,"Kitchen, bathroom and electrical upgrades",1233,Contractor Payments,XXX99,*** UNASSIGNED ***,WCC,CEC Recharges,WC,CEC Recharges,A,Central Services
GUILDFORD BOROUGH COUNCIL,Modern Homes,129090,Breyer Group Plc,28/03/2024,30125429,1300,0,Contractor Payments,General Builders,Invoice,BACS,No,31/01/2024 00:00,2023,12,SIN-000851,N42068,"Kitchen, bathroom and electrical upgrades",1233,Contractor Payments,XXX99,*** UNASSIGNED ***,WCC,CEC Recharges,WC,CEC Recharges,A,Central Services
GUILDFORD BOROUGH COUNCIL,Modern Homes,129090,Breyer Group Plc,28/03/2024,30125514,4700,0,Contractor Payments,General Builders,Invoice,BACS,No,31/01/2024 00:00,2023,12,SIN-000854,N42068,"Kitchen, bathroom and electrical upgrades",1233,Contractor Payments,XXX99,*** UNASSIGNED ***,WCC,CEC Recharges,WC,CEC Recharges,A,Central Services
GUILDFORD BOROUGH COUNCIL,Modern Homes,129090,Breyer Group Plc,28/03/2024,30125515,8400,0,Contractor Payments,General Builders,Invoice,BACS,No,31/01/2024 00:00,2023,12,SIN-000855,N42068,"Kitchen, bathroom and electrical upgrades",1233,Contractor Payments,XXX99,*** UNASSIGNED ***,WCC,CEC Recharges,WC,CEC Recharges,A,Central Services
GUILDFORD BOROUGH COUNCIL,Modern Homes,129090,Breyer Group Plc,28/03/2024,30125421,5000,0,Contractor Payments,General Builders,Invoice,BACS,No,15/01/2024 00:00,2023,12,SIN-000804,N42068,"Kitchen, bathroom and electrical upgrades",1233,Contractor Payments,XXX99,*** UNASSIGNED ***,WCC,CEC Recharges,WC,CEC Recharges,A,Central Services
GUILDFORD BOROUGH COUNCIL,Modern Homes,129090,Breyer Group Plc,28/03/2024,30125422,4500,0,Contractor Payments,General Builders,Invoice,BACS,No,15/01/2024 00:00,2023,12,SIN-000806,N42068,"Kitchen, bathroom and electrical upgrades",1233,Contractor Payments,XXX99,*** UNASSIGNED ***,WCC,CEC Recharges,WC,CEC Recharges,A,Central Services
GUILDFORD BOROUGH COUNCIL,Modern Homes,129090,Breyer Group Plc,28/03/2024,30125423,7500,0,Contractor Payments,General Builders,Invoice,BACS,No,15/01/2024 00:00,2023,12,SIN-000807,N42068,"Kitchen, bathroom and electrical upgrades",1233,Contractor Payments,XXX99,*** UNASSIGNED ***,WCC,CEC Recharges,WC,CEC Recharges,A,Central Services
GUILDFORD BOROUGH COUNCIL,Modern Homes,129090,Breyer Group Plc,28/03/2024,30125423,21539.42,0,Contractor Payments,General Builders,Invoice,BACS,No,15/01/2024 00:00,2023,12,SIN-000807,N42068,"Kitchen, bathroom and electrical upgrades",1233,Contractor Payments,XXX99,*** UNASSIGNED ***,WCC,CEC Recharges,WC,CEC Recharges,A,Central Services
GUILDFORD BOROUGH COUNCIL,Modern Homes,129090,Breyer Group Plc,28/03/2024,30125427,8000,0,Contractor Payments,General Builders,Invoice,BACS,No,15/01/2024 00:00,2023,12,SIN-000812,N42068,"Kitchen, bathroom and electrical upgrades",1233,Contractor Payments,XXX99,*** UNASSIGNED ***,WCC,CEC Recharges,WC,CEC Recharges,A,Central Services
GUILDFORD BOROUGH COUNCIL,Modern Homes,129090,Breyer Group Plc,22/01/2024,30120396,9000,0,Contractor Payments,General Builders,Invoice,BACS,No,05/10/2023 00:00,2023,10,SIN-000485,N42068,"Kitchen, bathroom and electrical upgrades",1233,Contractor Payments,XXX99,*** UNASSIGNED ***,WCC,CEC Recharges,WC,CEC Recharges,A,Central Services
GUILDFORD BOROUGH COUNCIL,Renovations,129090,Breyer Group Plc,28/03/2024,30125513,21665.96,0,Contractor Payments,General Builders,Invoice,BACS,No,31/01/2024 00:00,2023,12,SIN-000852,N40268,Elctrical Dist Board St Martha,1233,Contractor Payments,XXX99,*** UNASSIGNED ***,WCC,CEC Recharges,WC,CEC Recharges,A,Central Services
GUILDFORD BOROUGH COUNCIL,Renovations,129090,Breyer Group Plc,28/03/2024,30125513,1900,0,Contractor Payments,General Builders,Invoice,BACS,No,31/01/2024 00:00,2023,12,SIN-000852,N40269,Lighting Upgrade 2019-20,1233,Contractor Payments,XXX99,*** UNASSIGNED ***,WCC,CEC Recharges,WC,CEC Recharges,A,Central Services
GUILDFORD BOROUGH COUNCIL,Renovations,129090,Breyer Group Plc,28/03/2024,30125513,4900,0,Contractor Payments,General Builders,Invoice,BACS,No,31/01/2024 00:00,2023,12,SIN-000852,N40269,Lighting Upgrade 2019-20,1233,Contractor Payments,XXX99,*** UNASSIGNED ***,WCC,CEC Recharges,WC,CEC Recharges,A,Central Services
GUILDFORD BOROUGH COUNCIL,Modern Homes,129090,Breyer Group Plc,28/03/2024,30125515,5000,0,Contractor Payments,General Builders,Invoice,BACS,No,31/01/2024 00:00,2023,12,SIN-000855,N42068,"Kitchen, bathroom and electrical upgrades",1233,Contractor Payments,XXX99,*** UNASSIGNED ***,WCC,CEC Recharges,WC,CEC Recharges,A,Central Services
GUILDFORD BOROUGH COUNCIL,HRA Service Delivery,129090,Breyer Group Plc,13/02/2024,30122352,599.84,0,Consultancy,General Builders,Invoice,BACS,No,15/01/2024 00:00,2023,11,SIN-000805,M5113,Repairs-Responsive (BHS),D6001,Consultancy,W3A05,Current Service Costs - Housing Services,W3A,Current Service Costs adjustment,W3,Current Service Costs,W,Other Operating Income and Expenditure
GUILDFORD BOROUGH COUNCIL,Environmental Services,129090,Breyer Group Plc,28/03/2024,30124667,1038.42,0,GF Assets - Maintenance,General Builders,Invoice,BACS,No,15/03/2024 00:00,2023,12,SPN-000580,A1260,Allen House Grounds,B1004,GF Assets - Maintenance,CCE00,Community Parks & Open Spaces,CCE,Open Spaces,CC,Cultural & Related Services,C,"Cultural, Environmental & Planning Services"
GUILDFORD BOROUGH COUNCIL,Modern Homes,129090,Breyer Group Plc,28/03/2024,30125423,9000,0,Contractor Payments,General Builders,Invoice,BACS,No,15/01/2024 00:00,2023,12,SIN-000807,N42068,"Kitchen, bathroom and electrical upgrades",1233,Contractor Payments,XXX99,*** UNASSIGNED ***,WCC,CEC Recharges,WC,CEC Recharges,A,Central Services
GUILDFORD BOROUGH COUNCIL,Modern Homes,129090,Breyer Group Plc,28/03/2024,30125426,8500,0,Contractor Payments,General Builders,Invoice,BACS,No,15/01/2024 00:00,2023,12,SIN-000811,N42068,"Kitchen, bathroom and electrical upgrades",1233,Contractor Payments,XXX99,*** UNASSIGNED ***,WCC,CEC Recharges,WC,CEC Recharges,A,Central Services
GUILDFORD BOROUGH COUNCIL,Modern Homes,129090,Breyer Group Plc,28/03/2024,30125426,4500,0,Contractor Payments,General Builders,Invoice,BACS,No,15/01/2024 00:00,2023,12,SIN-000811,N42068,"Kitchen, bathroom and electrical upgrades",1233,Contractor Payments,XXX99,*** UNASSIGNED ***,WCC,CEC Recharges,WC,CEC Recharges,A,Central Services
GUILDFORD BOROUGH COUNCIL,Modern Homes,129090,Breyer Group Plc,28/03/2024,30125427,4500,0,Contractor Payments,General Builders,Invoice,BACS,No,15/01/2024 00:00,2023,12,SIN-000812,N42068,"Kitchen, bathroom and electrical upgrades",1233,Contractor Payments,XXX99,*** UNASSIGNED ***,WCC,CEC Recharges,WC,CEC Recharges,A,Central Services
GUILDFORD BOROUGH COUNCIL,Modern Homes,129090,Breyer Group Plc,28/03/2024,30125421,8000,0,Contractor Payments,General Builders,Invoice,BACS,No,15/01/2024 00:00,2023,12,SIN-000804,N42069,Void Properties - refurbishment,1233,Contractor Payments,XXX99,*** UNASSIGNED ***,WCC,CEC Recharges,WC,CEC Recharges,A,Central Services
GUILDFORD BOROUGH COUNCIL,Modern Homes,129090,Breyer Group Plc,28/03/2024,30125421,24595.92,0,Contractor Payments,General Builders,Invoice,BACS,No,15/01/2024 00:00,2023,12,SIN-000804,N42069,Void Properties - refurbishment,1233,Contractor Payments,XXX99,*** UNASSIGNED ***,WCC,CEC Recharges,WC,CEC Recharges,A,Central Services
GUILDFORD BOROUGH COUNCIL,Modern Homes,129090,Breyer Group Plc,28/03/2024,30125422,7000,0,Contractor Payments,General Builders,Invoice,BACS,No,15/01/2024 00:00,2023,12,SIN-000806,N42069,Void Properties - refurbishment,1233,Contractor Payments,XXX99,*** UNASSIGNED ***,WCC,CEC Recharges,WC,CEC Recharges,A,Central Services
GUILDFORD BOROUGH COUNCIL,Modern Homes,129090,Breyer Group Plc,28/03/2024,30125426,10992.57,0,Contractor Payments,General Builders,Invoice,BACS,No,15/01/2024 00:00,2023,12,SIN-000811,N42069,Void Properties - refurbishment,1233,Contractor Payments,XXX99,*** UNASSIGNED ***,WCC,CEC Recharges,WC,CEC Recharges,A,Central Services
GUILDFORD BOROUGH COUNCIL,Finance,129090,Breyer Group Plc,04/01/2024,30118349,20000,0,Contractors,General Builders,Invoice,BACS,No,14/12/2023 00:00,2023,10,SIN-000754,F7539,COVID-19,D6012,Contractors,DBX70,Other Management Costs,DBX,Support Service and Management Costs,DB,Children's Social Care,E,Childrens and Education Services
GUILDFORD BOROUGH COUNCIL,Modern Homes,129090,Breyer Group Plc,22/01/2024,30120395,8600,0,Contractor Payments,General Builders,Invoice,BACS,No,05/10/2023 00:00,2023,10,SIN-000483,N42069,Void Properties - refurbishment,1233,Contractor Payments,XXX99,*** UNASSIGNED ***,WCC,CEC Recharges,WC,CEC Recharges,A,Central Services
GUILDFORD BOROUGH COUNCIL,Modern Homes,129090,Breyer Group Plc,22/01/2024,30120402,750,0,Contractor Payments,General Builders,Invoice,BACS,No,30/10/2023 00:00,2023,10,SIN-000582,N42068,"Kitchen, bathroom and electrical upgrades",1233,Contractor Payments,XXX99,*** UNASSIGNED ***,WCC,CEC Recharges,WC,CEC Recharges,A,Central Services
GUILDFORD BOROUGH COUNCIL,Modern Homes,129090,Breyer Group Plc,28/03/2024,30125429,11304.66,0,Contractor Payments,General Builders,Invoice,BACS,No,31/01/2024 00:00,2023,12,SIN-000851,N42069,Void Properties - refurbishment,1233,Contractor Payments,XXX99,*** UNASSIGNED ***,WCC,CEC Recharges,WC,CEC Recharges,A,Central Services
GUILDFORD BOROUGH COUNCIL,Modern Homes,129090,Breyer Group Plc,28/03/2024,30125514,1900,0,Contractor Payments,General Builders,Invoice,BACS,No,31/01/2024 00:00,2023,12,SIN-000854,N42069,Void Properties - refurbishment,1233,Contractor Payments,XXX99,*** UNASSIGNED ***,WCC,CEC Recharges,WC,CEC Recharges,A,Central Services
GUILDFORD BOROUGH COUNCIL,Modern Homes,129090,Breyer Group Plc,22/01/2024,30120407,5000,0,Contractor Payments,General Builders,Invoice,BACS,No,10/11/2023 00:00,2023,10,SIN-000635,N42068,"Kitchen, bathroom and electrical upgrades",1233,Contractor Payments,XXX99,*** UNASSIGNED ***,WCC,CEC Recharges,WC,CEC Recharges,A,Central Services
GUILDFORD BOROUGH COUNCIL,Renovations,129090,Breyer Group Plc,22/01/2024,30120413,35052.91,0,Contractor Payments,General Builders,Invoice,BACS,No,30/11/2023 00:00,2023,10,SIN-000695,N40269,Lighting Upgrade 2019-20,1233,Contractor Payments,XXX99,*** UNASSIGNED ***,WCC,CEC Recharges,WC,CEC Recharges,A,Central Services
GUILDFORD BOROUGH COUNCIL,Modern Homes,129090,Breyer Group Plc,22/01/2024,30120416,8000,0,Contractor Payments,General Builders,Invoice,BACS,No,30/11/2023 00:00,2023,10,SIN-000698,N42068,"Kitchen, bathroom and electrical upgrades",1233,Contractor Payments,XXX99,*** UNASSIGNED ***,WCC,CEC Recharges,WC,CEC Recharges,A,Central Services
GUILDFORD BOROUGH COUNCIL,Modern Homes,129090,Breyer Group Plc,28/03/2024,30125514,8603.63,0,Contractor Payments,General Builders,Invoice,BACS,No,31/01/2024 00:00,2023,12,SIN-000854,N42069,Void Properties - refurbishment,1233,Contractor Payments,XXX99,*** UNASSIGNED ***,WCC,CEC Recharges,WC,CEC Recharges,A,Central Services
GUILDFORD BOROUGH COUNCIL,Modern Homes,129090,Breyer Group Plc,28/03/2024,30125515,13843.75,0,Contractor Payments,General Builders,Invoice,BACS,No,31/01/2024 00:00,2023,12,SIN-000855,N42069,Void Properties - refurbishment,1233,Contractor Payments,XXX99,*** UNASSIGNED ***,WCC,CEC Recharges,WC,CEC Recharges,A,Central Services
GUILDFORD BOROUGH COUNCIL,Finance,129090,Breyer Group Plc,18/01/2024,30118381,70000,0,Contractors,General Builders,Invoice,BACS,No,14/12/2023 00:00,2023,10,SIN-000753,F7539,COVID-19,D6012,Contractors,DBX70,Other Management Costs,DBX,Support Service and Management Costs,DB,Children's Social Care,E,Childrens and Education Services
GUILDFORD BOROUGH COUNCIL,Modern Homes,129090,Breyer Group Plc,28/03/2024,30125422,22624.27,0,Contractor Payments,General Builders,Invoice,BACS,No,15/01/2024 00:00,2023,12,SIN-000806,N42069,Void Properties - refurbishment,1233,Contractor Payments,XXX99,*** UNASSIGNED ***,WCC,CEC Recharges,WC,CEC Recharges,A,Central Services
GUILDFORD BOROUGH COUNCIL,Modern Homes,129090,Breyer Group Plc,28/03/2024,30125424,8050.72,0,Contractor Payments,General Builders,Invoice,BACS,No,15/01/2024 00:00,2023,12,SIN-000808,N42069,Void Properties - refurbishment,1233,Contractor Payments,XXX99,*** UNASSIGNED ***,WCC,CEC Recharges,WC,CEC Recharges,A,Central Services
GUILDFORD BOROUGH COUNCIL,Modern Homes,129090,Breyer Group Plc,28/03/2024,30125425,4315.38,0,Contractor Payments,General Builders,Invoice,BACS,No,15/01/2024 00:00,2023,12,SIN-000810,N42069,Void Properties - refurbishment,1233,Contractor Payments,XXX99,*** UNASSIGNED ***,WCC,CEC Recharges,WC,CEC Recharges,A,Central Services
GUILDFORD BOROUGH COUNCIL,Modern Homes,129090,Breyer Group Plc,28/03/2024,30125427,12442.47,0,Contractor Payments,General Builders,Invoice,BACS,No,15/01/2024 00:00,2023,12,SIN-000812,N42069,Void Properties - refurbishment,1233,Contractor Payments,XXX99,*** UNASSIGNED ***,WCC,CEC Recharges,WC,CEC Recharges,A,Central Services
GUILDFORD BOROUGH COUNCIL,Modern Homes,129090,Breyer Group Plc,28/03/2024,30125428,10500,0,Contractor Payments,General Builders,Invoice,BACS,No,15/01/2024 00:00,2023,12,SIN-000813,N42069,Void Properties - refurbishment,1233,Contractor Payments,XXX99,*** UNASSIGNED ***,WCC,CEC Recharges,WC,CEC Recharges,A,Central Services
GUILDFORD BOROUGH COUNCIL,Modern Homes,129090,Breyer Group Plc,28/03/2024,30125428,29325.97,0,Contractor Payments,General Builders,Invoice,BACS,No,15/01/2024 00:00,2023,12,SIN-000813,N42069,Void Properties - refurbishment,1233,Contractor Payments,XXX99,*** UNASSIGNED ***,WCC,CEC Recharges,WC,CEC Recharges,A,Central Services
GUILDFORD BOROUGH COUNCIL,Modern Homes,129090,Breyer Group Plc,22/01/2024,30120395,18989.37,0,Contractor Payments,General Builders,Invoice,BACS,No,05/10/2023 00:00,2023,10,SIN-000483,N42069,Void Properties - refurbishment,1233,Contractor Payments,XXX99,*** UNASSIGNED ***,WCC,CEC Recharges,WC,CEC Recharges,A,Central Services
GUILDFORD BOROUGH COUNCIL,Modern Homes,129090,Breyer Group Plc,22/01/2024,30120395,5500,0,Contractor Payments,General Builders,Invoice,BACS,No,05/10/2023 00:00,2023,10,SIN-000483,N42069,Void Properties - refurbishment,1233,Contractor Payments,XXX99,*** UNASSIGNED ***,WCC,CEC Recharges,WC,CEC Recharges,A,Central Services
GUILDFORD BOROUGH COUNCIL,Modern Homes,129090,Breyer Group Plc,22/01/2024,30120398,4142.15,0,Contractor Payments,General Builders,Invoice,BACS,No,26/10/2023 00:00,2023,10,SIN-000560,N42069,Void Properties - refurbishment,1233,Contractor Payments,XXX99,*** UNASSIGNED ***,WCC,CEC Recharges,WC,CEC Recharges,A,Central Services
GUILDFORD BOROUGH COUNCIL,Heating,129090,Breyer Group Plc,22/01/2024,30120399,11500,0,Contractor Payments,General Builders,Invoice,BACS,No,27/10/2023 00:00,2023,10,SIN-000576,N44075,Central heating boiler upgrades,1233,Contractor Payments,XXX99,*** UNASSIGNED ***,WCC,CEC Recharges,WC,CEC Recharges,A,Central Services
GUILDFORD BOROUGH COUNCIL,Modern Homes,129090,Breyer Group Plc,22/01/2024,30120400,41519.91,0,Contractor Payments,General Builders,Invoice,BACS,No,27/10/2023 00:00,2023,10,SIN-000577,N42069,Void Properties - refurbishment,1233,Contractor Payments,XXX99,*** UNASSIGNED ***,WCC,CEC Recharges,WC,CEC Recharges,A,Central Services
GUILDFORD BOROUGH COUNCIL,Modern Homes,129090,Breyer Group Plc,22/01/2024,30120400,11000,0,Contractor Payments,General Builders,Invoice,BACS,No,27/10/2023 00:00,2023,10,SIN-000577,N42069,Void Properties - refurbishment,1233,Contractor Payments,XXX99,*** UNASSIGNED ***,WCC,CEC Recharges,WC,CEC Recharges,A,Central Services
GUILDFORD BOROUGH COUNCIL,Modern Homes,129090,Breyer Group Plc,28/03/2024,30125428,5500,0,Contractor Payments,General Builders,Invoice,BACS,No,15/01/2024 00:00,2023,12,SIN-000813,N42068,"Kitchen, bathroom and electrical upgrades",1233,Contractor Payments,XXX99,*** UNASSIGNED ***,WCC,CEC Recharges,WC,CEC Recharges,A,Central Services
GUILDFORD BOROUGH COUNCIL,Modern Homes,129090,Breyer Group Plc,22/01/2024,30120396,5500,0,Contractor Payments,General Builders,Invoice,BACS,No,05/10/2023 00:00,2023,10,SIN-000485,N42068,"Kitchen, bathroom and electrical upgrades",1233,Contractor Payments,XXX99,*** UNASSIGNED ***,WCC,CEC Recharges,WC,CEC Recharges,A,Central Services
GUILDFORD BOROUGH COUNCIL,Modern Homes,129090,Breyer Group Plc,22/01/2024,30120401,6000,0,Contractor Payments,General Builders,Invoice,BACS,No,27/10/2023 00:00,2023,10,SIN-000578,N42068,"Kitchen, bathroom and electrical upgrades",1233,Contractor Payments,XXX99,*** UNASSIGNED ***,WCC,CEC Recharges,WC,CEC Recharges,A,Central Services
GUILDFORD BOROUGH COUNCIL,Modern Homes,129090,Breyer Group Plc,22/01/2024,30120402,2000,0,Contractor Payments,General Builders,Invoice,BACS,No,30/10/2023 00:00,2023,10,SIN-000582,N42068,"Kitchen, bathroom and electrical upgrades",1233,Contractor Payments,XXX99,*** UNASSIGNED ***,WCC,CEC Recharges,WC,CEC Recharges,A,Central Services
GUILDFORD BOROUGH COUNCIL,Modern Homes,129090,Breyer Group Plc,22/01/2024,30120406,5500,0,Contractor Payments,General Builders,Invoice,BACS,No,09/11/2023 00:00,2023,10,SIN-000634,N42068,"Kitchen, bathroom and electrical upgrades",1233,Contractor Payments,XXX99,*** UNASSIGNED ***,WCC,CEC Recharges,WC,CEC Recharges,A,Central Services
GUILDFORD BOROUGH COUNCIL,Modern Homes,129090,Breyer Group Plc,22/01/2024,30120410,5200,0,Contractor Payments,General Builders,Invoice,BACS,No,13/11/2023 00:00,2023,10,SIN-000640,N42068,"Kitchen, bathroom and electrical upgrades",1233,Contractor Payments,XXX99,*** UNASSIGNED ***,WCC,CEC Recharges,WC,CEC Recharges,A,Central Services
GUILDFORD BOROUGH COUNCIL,Modern Homes,129090,Breyer Group Plc,22/01/2024,30120411,2000,0,Contractor Payments,General Builders,Invoice,BACS,No,13/11/2023 00:00,2023,10,SIN-000641,N42068,"Kitchen, bathroom and electrical upgrades",1233,Contractor Payments,XXX99,*** UNASSIGNED ***,WCC,CEC Recharges,WC,CEC Recharges,A,Central Services
GUILDFORD BOROUGH COUNCIL,Modern Homes,129090,Breyer Group Plc,22/01/2024,30120413,5500,0,Contractor Payments,General Builders,Invoice,BACS,No,30/11/2023 00:00,2023,10,SIN-000695,N42068,"Kitchen, bathroom and electrical upgrades",1233,Contractor Payments,XXX99,*** UNASSIGNED ***,WCC,CEC Recharges,WC,CEC Recharges,A,Central Services
GUILDFORD BOROUGH COUNCIL,Modern Homes,129090,Breyer Group Plc,22/01/2024,30120415,4500,0,Contractor Payments,General Builders,Invoice,BACS,No,30/11/2023 00:00,2023,10,SIN-000697,N42068,"Kitchen, bathroom and electrical upgrades",1233,Contractor Payments,XXX99,*** UNASSIGNED ***,WCC,CEC Recharges,WC,CEC Recharges,A,Central Services
GUILDFORD BOROUGH COUNCIL,Modern Homes,129090,Breyer Group Plc,22/01/2024,30120417,11325.48,0,Contractor Payments,General Builders,Invoice,BACS,No,30/11/2023 00:00,2023,10,SIN-000699,N42068,"Kitchen, bathroom and electrical upgrades",1233,Contractor Payments,XXX99,*** UNASSIGNED ***,WCC,CEC Recharges,WC,CEC Recharges,A,Central Services
GUILDFORD BOROUGH COUNCIL,Modern Homes,129090,Breyer Group Plc,22/01/2024,30120418,4000,0,Contractor Payments,General Builders,Invoice,BACS,No,30/11/2023 00:00,2023,10,SIN-000700,N42068,"Kitchen, bathroom and electrical upgrades",1233,Contractor Payments,XXX99,*** UNASSIGNED ***,WCC,CEC Recharges,WC,CEC Recharges,A,Central Services
GUILDFORD BOROUGH COUNCIL,Modern Homes,129090,Breyer Group Plc,22/01/2024,30120419,5000,0,Contractor Payments,General Builders,Invoice,BACS,No,30/11/2023 00:00,2023,10,SIN-000705,N42068,"Kitchen, bathroom and electrical upgrades",1233,Contractor Payments,XXX99,*** UNASSIGNED ***,WCC,CEC Recharges,WC,CEC Recharges,A,Central Services
GUILDFORD BOROUGH COUNCIL,Modern Homes,129090,Breyer Group Plc,22/01/2024,30120420,5500,0,Contractor Payments,General Builders,Invoice,BACS,No,30/11/2023 00:00,2023,10,SIN-000706,N42068,"Kitchen, bathroom and electrical upgrades",1233,Contractor Payments,XXX99,*** UNASSIGNED ***,WCC,CEC Recharges,WC,CEC Recharges,A,Central Services
GUILDFORD BOROUGH COUNCIL,Modern Homes,129090,Breyer Group Plc,22/01/2024,30120401,9500,0,Contractor Payments,General Builders,Invoice,BACS,No,27/10/2023 00:00,2023,10,SIN-000578,N42069,Void Properties - refurbishment,1233,Contractor Payments,XXX99,*** UNASSIGNED ***,WCC,CEC Recharges,WC,CEC Recharges,A,Central Services
GUILDFORD BOROUGH COUNCIL,Modern Homes,129090,Breyer Group Plc,22/01/2024,30120402,7491.87,0,Contractor Payments,General Builders,Invoice,BACS,No,30/10/2023 00:00,2023,10,SIN-000582,N42069,Void Properties - refurbishment,1233,Contractor Payments,XXX99,*** UNASSIGNED ***,WCC,CEC Recharges,WC,CEC Recharges,A,Central Services
GUILDFORD BOROUGH COUNCIL,Modern Homes,129090,Breyer Group Plc,22/01/2024,30120405,9786.5,0,Contractor Payments,General Builders,Invoice,BACS,No,09/11/2023 00:00,2023,10,SIN-000633,N42069,Void Properties - refurbishment,1233,Contractor Payments,XXX99,*** UNASSIGNED ***,WCC,CEC Recharges,WC,CEC Recharges,A,Central Services
GUILDFORD BOROUGH COUNCIL,Doors and Windows,129090,Breyer Group Plc,22/01/2024,30120406,7681.5,0,Contractor Payments,General Builders,Invoice,BACS,No,09/11/2023 00:00,2023,10,SIN-000634,N45075,Replacement of windows and doors,1233,Contractor Payments,XXX99,*** UNASSIGNED ***,WCC,CEC Recharges,WC,CEC Recharges,A,Central Services
GUILDFORD BOROUGH COUNCIL,Modern Homes,129090,Breyer Group Plc,22/01/2024,30120407,2200,0,Contractor Payments,General Builders,Invoice,BACS,No,10/11/2023 00:00,2023,10,SIN-000635,N42069,Void Properties - refurbishment,1233,Contractor Payments,XXX99,*** UNASSIGNED ***,WCC,CEC Recharges,WC,CEC Recharges,A,Central Services
GUILDFORD BOROUGH COUNCIL,Modern Homes,129090,Breyer Group Plc,22/01/2024,30120407,22552.94,0,Contractor Payments,General Builders,Invoice,BACS,No,10/11/2023 00:00,2023,10,SIN-000635,N42069,Void Properties - refurbishment,1233,Contractor Payments,XXX99,*** UNASSIGNED ***,WCC,CEC Recharges,WC,CEC Recharges,A,Central Services
GUILDFORD BOROUGH COUNCIL,Modern Homes,129090,Breyer Group Plc,22/01/2024,30120408,19731.46,0,Contractor Payments,General Builders,Invoice,BACS,No,10/11/2023 00:00,2023,10,SIN-000636,N42069,Void Properties - refurbishment,1233,Contractor Payments,XXX99,*** UNASSIGNED ***,WCC,CEC Recharges,WC,CEC Recharges,A,Central Services
GUILDFORD BOROUGH COUNCIL,Modern Homes,129090,Breyer Group Plc,22/01/2024,30120410,9500,0,Contractor Payments,General Builders,Invoice,BACS,No,13/11/2023 00:00,2023,10,SIN-000640,N42069,Void Properties - refurbishment,1233,Contractor Payments,XXX99,*** UNASSIGNED ***,WCC,CEC Recharges,WC,CEC Recharges,A,Central Services
GUILDFORD BOROUGH COUNCIL,Modern Homes,129090,Breyer Group Plc,22/01/2024,30120411,8500,0,Contractor Payments,General Builders,Invoice,BACS,No,13/11/2023 00:00,2023,10,SIN-000641,N42069,Void Properties - refurbishment,1233,Contractor Payments,XXX99,*** UNASSIGNED ***,WCC,CEC Recharges,WC,CEC Recharges,A,Central Services
GUILDFORD BOROUGH COUNCIL,Modern Homes,129090,Breyer Group Plc,22/01/2024,30120412,2507.5,0,Contractor Payments,General Builders,Invoice,BACS,No,30/11/2023 00:00,2023,10,SIN-000694,N49104,Environmental improvements,1233,Contractor Payments,XXX99,*** UNASSIGNED ***,WCC,CEC Recharges,WC,CEC Recharges,A,Central Services
GUILDFORD BOROUGH COUNCIL,Renovations,129090,Breyer Group Plc,22/01/2024,30120413,5500,0,Contractor Payments,General Builders,Invoice,BACS,No,30/11/2023 00:00,2023,10,SIN-000695,N40287,Electrical testing and smoke detectors,1233,Contractor Payments,XXX99,*** UNASSIGNED ***,WCC,CEC Recharges,WC,CEC Recharges,A,Central Services
GUILDFORD BOROUGH COUNCIL,Modern Homes,129090,Breyer Group Plc,22/01/2024,30120414,4900,0,Contractor Payments,General Builders,Invoice,BACS,No,30/11/2023 00:00,2023,10,SIN-000696,N42069,Void Properties - refurbishment,1233,Contractor Payments,XXX99,*** UNASSIGNED ***,WCC,CEC Recharges,WC,CEC Recharges,A,Central Services
GUILDFORD BOROUGH COUNCIL,Modern Homes,129090,Breyer Group Plc,22/01/2024,30120416,14487.98,0,Contractor Payments,General Builders,Invoice,BACS,No,30/11/2023 00:00,2023,10,SIN-000698,N42069,Void Properties - refurbishment,1233,Contractor Payments,XXX99,*** UNASSIGNED ***,WCC,CEC Recharges,WC,CEC Recharges,A,Central Services
GUILDFORD BOROUGH COUNCIL,Modern Homes,129090,Breyer Group Plc,22/01/2024,30120417,8000,0,Contractor Payments,General Builders,Invoice,BACS,No,30/11/2023 00:00,2023,10,SIN-000699,N42069,Void Properties - refurbishment,1233,Contractor Payments,XXX99,*** UNASSIGNED ***,WCC,CEC Recharges,WC,CEC Recharges,A,Central Services
GUILDFORD BOROUGH COUNCIL,Modern Homes,129090,Breyer Group Plc,22/01/2024,30120418,10500,0,Contractor Payments,General Builders,Invoice,BACS,No,30/11/2023 00:00,2023,10,SIN-000700,N42069,Void Properties - refurbishment,1233,Contractor Payments,XXX99,*** UNASSIGNED ***,WCC,CEC Recharges,WC,CEC Recharges,A,Central Services
GUILDFORD BOROUGH COUNCIL,Modern Homes,129090,Breyer Group Plc,22/01/2024,30120419,8000,0,Contractor Payments,General Builders,Invoice,BACS,No,30/11/2023 00:00,2023,10,SIN-000705,N42069,Void Properties - refurbishment,1233,Contractor Payments,XXX99,*** UNASSIGNED ***,WCC,CEC Recharges,WC,CEC Recharges,A,Central Services
GUILDFORD BOROUGH COUNCIL,Modern Homes,129090,Breyer Group Plc,22/01/2024,30120420,5000,0,Contractor Payments,General Builders,Invoice,BACS,No,30/11/2023 00:00,2023,10,SIN-000706,N42069,Void Properties - refurbishment,1233,Contractor Payments,XXX99,*** UNASSIGNED ***,WCC,CEC Recharges,WC,CEC Recharges,A,Central Services
GUILDFORD BOROUGH COUNCIL,Modern Homes,129090,Breyer Group Plc,22/01/2024,30120421,16823.61,0,Contractor Payments,General Builders,Invoice,BACS,No,14/12/2023 00:00,2023,10,SIN-000741,N42069,Void Properties - refurbishment,1233,Contractor Payments,XXX99,*** UNASSIGNED ***,WCC,CEC Recharges,WC,CEC Recharges,A,Central Services
GUILDFORD BOROUGH COUNCIL,Modern Homes,129090,Breyer Group Plc,22/01/2024,30120422,13161.28,0,Contractor Payments,General Builders,Invoice,BACS,No,14/12/2023 00:00,2023,10,SIN-000742,N42069,Void Properties - refurbishment,1233,Contractor Payments,XXX99,*** UNASSIGNED ***,WCC,CEC Recharges,WC,CEC Recharges,A,Central Services
GUILDFORD BOROUGH COUNCIL,Modern Homes,129090,Breyer Group Plc,22/01/2024,30120423,15275,0,Contractor Payments,General Builders,Invoice,BACS,No,14/12/2023 00:00,2023,10,SIN-000743,N48057,Structural works - various properties,1233,Contractor Payments,XXX99,*** UNASSIGNED ***,WCC,CEC Recharges,WC,CEC Recharges,A,Central Services
GUILDFORD BOROUGH COUNCIL,Modern Homes,129090,Breyer Group Plc,22/01/2024,30120424,24180.16,0,Contractor Payments,General Builders,Invoice,BACS,No,14/12/2023 00:00,2023,10,SIN-000744,N42069,Void Properties - refurbishment,1233,Contractor Payments,XXX99,*** UNASSIGNED ***,WCC,CEC Recharges,WC,CEC Recharges,A,Central Services
GUILDFORD BOROUGH COUNCIL,Modern Homes,129090,Breyer Group Plc,22/01/2024,30120425,22603.5,0,Contractor Payments,General Builders,Invoice,BACS,No,14/12/2023 00:00,2023,10,SIN-000745,N42069,Void Properties - refurbishment,1233,Contractor Payments,XXX99,*** UNASSIGNED ***,WCC,CEC Recharges,WC,CEC Recharges,A,Central Services
GUILDFORD BOROUGH COUNCIL,Modern Homes,129090,Breyer Group Plc,22/01/2024,30120426,33377.93,0,Contractor Payments,General Builders,Invoice,BACS,No,14/12/2023 00:00,2023,10,SIN-000746,N42069,Void Properties - refurbishment,1233,Contractor Payments,XXX99,*** UNASSIGNED ***,WCC,CEC Recharges,WC,CEC Recharges,A,Central Services
GUILDFORD BOROUGH COUNCIL,Modern Homes,129090,Breyer Group Plc,22/01/2024,30120428,8500,0,Contractor Payments,General Builders,Invoice,BACS,No,14/12/2023 00:00,2023,10,SIN-000748,N42069,Void Properties - refurbishment,1233,Contractor Payments,XXX99,*** UNASSIGNED ***,WCC,CEC Recharges,WC,CEC Recharges,A,Central Services
GUILDFORD BOROUGH COUNCIL,Modern Homes,129090,Breyer Group Plc,22/01/2024,30120429,8500,0,Contractor Payments,General Builders,Invoice,BACS,No,14/12/2023 00:00,2023,10,SIN-000749,N42069,Void Properties - refurbishment,1233,Contractor Payments,XXX99,*** UNASSIGNED ***,WCC,CEC Recharges,WC,CEC Recharges,A,Central Services
GUILDFORD BOROUGH COUNCIL,Modern Homes,129090,Breyer Group Plc,22/01/2024,30120429,11432.98,0,Contractor Payments,General Builders,Invoice,BACS,No,14/12/2023 00:00,2023,10,SIN-000749,N42069,Void Properties - refurbishment,1233,Contractor Payments,XXX99,*** UNASSIGNED ***,WCC,CEC Recharges,WC,CEC Recharges,A,Central Services
GUILDFORD BOROUGH COUNCIL,Modern Homes,129090,Breyer Group Plc,22/01/2024,30120430,41711.86,0,Contractor Payments,General Builders,Invoice,BACS,No,14/12/2023 00:00,2023,10,SIN-000750,N42069,Void Properties - refurbishment,1233,Contractor Payments,XXX99,*** UNASSIGNED ***,WCC,CEC Recharges,WC,CEC Recharges,A,Central Services
GUILDFORD BOROUGH COUNCIL,Modern Homes,129090,Breyer Group Plc,22/01/2024,30120421,7515.47,0,Contractor Payments,General Builders,Invoice,BACS,No,14/12/2023 00:00,2023,10,SIN-000741,N42068,"Kitchen, bathroom and electrical upgrades",1233,Contractor Payments,XXX99,*** UNASSIGNED ***,WCC,CEC Recharges,WC,CEC Recharges,A,Central Services
GUILDFORD BOROUGH COUNCIL,Modern Homes,129090,Breyer Group Plc,22/01/2024,30120425,9500,0,Contractor Payments,General Builders,Invoice,BACS,No,14/12/2023 00:00,2023,10,SIN-000745,N42068,"Kitchen, bathroom and electrical upgrades",1233,Contractor Payments,XXX99,*** UNASSIGNED ***,WCC,CEC Recharges,WC,CEC Recharges,A,Central Services
GUILDFORD BOROUGH COUNCIL,Modern Homes,129090,Breyer Group Plc,22/01/2024,30120416,4500,0,Contractor Payments,General Builders,Invoice,BACS,No,30/11/2023 00:00,2023,10,SIN-000698,N42068,"Kitchen, bathroom and electrical upgrades",1233,Contractor Payments,XXX99,*** UNASSIGNED ***,WCC,CEC Recharges,WC,CEC Recharges,A,Central Services
GUILDFORD BOROUGH COUNCIL,Modern Homes,129090,Breyer Group Plc,22/01/2024,30120417,4500,0,Contractor Payments,General Builders,Invoice,BACS,No,30/11/2023 00:00,2023,10,SIN-000699,N42068,"Kitchen, bathroom and electrical upgrades",1233,Contractor Payments,XXX99,*** UNASSIGNED ***,WCC,CEC Recharges,WC,CEC Recharges,A,Central Services
GUILDFORD BOROUGH COUNCIL,Modern Homes,129090,Breyer Group Plc,22/01/2024,30120421,4209,0,Contractor Payments,General Builders,Invoice,BACS,No,14/12/2023 00:00,2023,10,SIN-000741,N42068,"Kitchen, bathroom and electrical upgrades",1233,Contractor Payments,XXX99,*** UNASSIGNED ***,WCC,CEC Recharges,WC,CEC Recharges,A,Central Services
GUILDFORD BOROUGH COUNCIL,Modern Homes,129090,Breyer Group Plc,22/01/2024,30120422,1500,0,Contractor Payments,General Builders,Invoice,BACS,No,14/12/2023 00:00,2023,10,SIN-000742,N42068,"Kitchen, bathroom and electrical upgrades",1233,Contractor Payments,XXX99,*** UNASSIGNED ***,WCC,CEC Recharges,WC,CEC Recharges,A,Central Services
GUILDFORD BOROUGH COUNCIL,Modern Homes,129090,Breyer Group Plc,22/01/2024,30120422,500,0,Contractor Payments,General Builders,Invoice,BACS,No,14/12/2023 00:00,2023,10,SIN-000742,N42068,"Kitchen, bathroom and electrical upgrades",1233,Contractor Payments,XXX99,*** UNASSIGNED ***,WCC,CEC Recharges,WC,CEC Recharges,A,Central Services
GUILDFORD BOROUGH COUNCIL,Modern Homes,129090,Breyer Group Plc,22/01/2024,30120396,16905.12,0,Contractor Payments,General Builders,Invoice,BACS,No,05/10/2023 00:00,2023,10,SIN-000485,N42069,Void Properties - refurbishment,1233,Contractor Payments,XXX99,*** UNASSIGNED ***,WCC,CEC Recharges,WC,CEC Recharges,A,Central Services
GUILDFORD BOROUGH COUNCIL,Modern Homes,129090,Breyer Group Plc,22/01/2024,30120397,9000,0,Contractor Payments,General Builders,Invoice,BACS,No,06/10/2023 00:00,2023,10,SIN-000493,N42069,Void Properties - refurbishment,1233,Contractor Payments,XXX99,*** UNASSIGNED ***,WCC,CEC Recharges,WC,CEC Recharges,A,Central Services
GUILDFORD BOROUGH COUNCIL,Modern Homes,129090,Breyer Group Plc,22/01/2024,30120397,6000,0,Contractor Payments,General Builders,Invoice,BACS,No,06/10/2023 00:00,2023,10,SIN-000493,N42069,Void Properties - refurbishment,1233,Contractor Payments,XXX99,*** UNASSIGNED ***,WCC,CEC Recharges,WC,CEC Recharges,A,Central Services
GUILDFORD BOROUGH COUNCIL,Modern Homes,129090,Breyer Group Plc,22/01/2024,30120397,24410.91,0,Contractor Payments,General Builders,Invoice,BACS,No,06/10/2023 00:00,2023,10,SIN-000493,N42069,Void Properties - refurbishment,1233,Contractor Payments,XXX99,*** UNASSIGNED ***,WCC,CEC Recharges,WC,CEC Recharges,A,Central Services
GUILDFORD BOROUGH COUNCIL,Heating,129090,Breyer Group Plc,22/01/2024,30120399,43689.01,0,Contractor Payments,General Builders,Invoice,BACS,No,27/10/2023 00:00,2023,10,SIN-000576,N44075,Central heating boiler upgrades,1233,Contractor Payments,XXX99,*** UNASSIGNED ***,WCC,CEC Recharges,WC,CEC Recharges,A,Central Services
GUILDFORD BOROUGH COUNCIL,Heating,129090,Breyer Group Plc,22/01/2024,30120399,5100,0,Contractor Payments,General Builders,Invoice,BACS,No,27/10/2023 00:00,2023,10,SIN-000576,N44075,Central heating boiler upgrades,1233,Contractor Payments,XXX99,*** UNASSIGNED ***,WCC,CEC Recharges,WC,CEC Recharges,A,Central Services
GUILDFORD BOROUGH COUNCIL,Modern Homes,129090,Breyer Group Plc,22/01/2024,30120425,5000,0,Contractor Payments,General Builders,Invoice,BACS,No,14/12/2023 00:00,2023,10,SIN-000745,N42068,"Kitchen, bathroom and electrical upgrades",1233,Contractor Payments,XXX99,*** UNASSIGNED ***,WCC,CEC Recharges,WC,CEC Recharges,A,Central Services
GUILDFORD BOROUGH COUNCIL,Modern Homes,129090,Breyer Group Plc,22/01/2024,30120426,6000,0,Contractor Payments,General Builders,Invoice,BACS,No,14/12/2023 00:00,2023,10,SIN-000746,N42068,"Kitchen, bathroom and electrical upgrades",1233,Contractor Payments,XXX99,*** UNASSIGNED ***,WCC,CEC Recharges,WC,CEC Recharges,A,Central Services
GUILDFORD BOROUGH COUNCIL,Modern Homes,129090,Breyer Group Plc,22/01/2024,30120428,6500,0,Contractor Payments,General Builders,Invoice,BACS,No,14/12/2023 00:00,2023,10,SIN-000748,N42068,"Kitchen, bathroom and electrical upgrades",1233,Contractor Payments,XXX99,*** UNASSIGNED ***,WCC,CEC Recharges,WC,CEC Recharges,A,Central Services
GUILDFORD BOROUGH COUNCIL,Modern Homes,129090,Breyer Group Plc,22/01/2024,30120429,4500,0,Contractor Payments,General Builders,Invoice,BACS,No,14/12/2023 00:00,2023,10,SIN-000749,N42068,"Kitchen, bathroom and electrical upgrades",1233,Contractor Payments,XXX99,*** UNASSIGNED ***,WCC,CEC Recharges,WC,CEC Recharges,A,Central Services
GUILDFORD BOROUGH COUNCIL,Modern Homes,129090,Breyer Group Plc,22/01/2024,30120400,4500,0,Contractor Payments,General Builders,Invoice,BACS,No,27/10/2023 00:00,2023,10,SIN-000577,N42069,Void Properties - refurbishment,1233,Contractor Payments,XXX99,*** UNASSIGNED ***,WCC,CEC Recharges,WC,CEC Recharges,A,Central Services
GUILDFORD BOROUGH COUNCIL,Modern Homes,129090,Breyer Group Plc,22/01/2024,30120401,27348.11,0,Contractor Payments,General Builders,Invoice,BACS,No,27/10/2023 00:00,2023,10,SIN-000578,N42069,Void Properties - refurbishment,1233,Contractor Payments,XXX99,*** UNASSIGNED ***,WCC,CEC Recharges,WC,CEC Recharges,A,Central Services
GUILDFORD BOROUGH COUNCIL,Modern Homes,129090,Breyer Group Plc,22/01/2024,30120403,43654.32,0,Contractor Payments,General Builders,Invoice,BACS,No,30/10/2023 00:00,2023,10,SIN-000583,N42069,Void Properties - refurbishment,1233,Contractor Payments,XXX99,*** UNASSIGNED ***,WCC,CEC Recharges,WC,CEC Recharges,A,Central Services
GUILDFORD BOROUGH COUNCIL,Modern Homes,129090,Breyer Group Plc,22/01/2024,30120403,10500,0,Contractor Payments,General Builders,Invoice,BACS,No,30/10/2023 00:00,2023,10,SIN-000583,N42069,Void Properties - refurbishment,1233,Contractor Payments,XXX99,*** UNASSIGNED ***,WCC,CEC Recharges,WC,CEC Recharges,A,Central Services
GUILDFORD BOROUGH COUNCIL,Modern Homes,129090,Breyer Group Plc,22/01/2024,30120403,4600,0,Contractor Payments,General Builders,Invoice,BACS,No,30/10/2023 00:00,2023,10,SIN-000583,N42069,Void Properties - refurbishment,1233,Contractor Payments,XXX99,*** UNASSIGNED ***,WCC,CEC Recharges,WC,CEC Recharges,A,Central Services
GUILDFORD BOROUGH COUNCIL,Modern Homes,129090,Breyer Group Plc,22/01/2024,30120404,22937.32,0,Contractor Payments,General Builders,Invoice,BACS,No,09/11/2023 00:00,2023,10,SIN-000632,N42069,Void Properties - refurbishment,1233,Contractor Payments,XXX99,*** UNASSIGNED ***,WCC,CEC Recharges,WC,CEC Recharges,A,Central Services
GUILDFORD BOROUGH COUNCIL,Modern Homes,129090,Breyer Group Plc,22/01/2024,30120405,22198.25,0,Contractor Payments,General Builders,Invoice,BACS,No,09/11/2023 00:00,2023,10,SIN-000633,N42069,Void Properties - refurbishment,1233,Contractor Payments,XXX99,*** UNASSIGNED ***,WCC,CEC Recharges,WC,CEC Recharges,A,Central Services
GUILDFORD BOROUGH COUNCIL,Modern Homes,129090,Breyer Group Plc,22/01/2024,30120406,8000,0,Contractor Payments,General Builders,Invoice,BACS,No,09/11/2023 00:00,2023,10,SIN-000634,N42069,Void Properties - refurbishment,1233,Contractor Payments,XXX99,*** UNASSIGNED ***,WCC,CEC Recharges,WC,CEC Recharges,A,Central Services
GUILDFORD BOROUGH COUNCIL,Modern Homes,129090,Breyer Group Plc,22/01/2024,30120406,51474.85,0,Contractor Payments,General Builders,Invoice,BACS,No,09/11/2023 00:00,2023,10,SIN-000634,N42069,Void Properties - refurbishment,1233,Contractor Payments,XXX99,*** UNASSIGNED ***,WCC,CEC Recharges,WC,CEC Recharges,A,Central Services
GUILDFORD BOROUGH COUNCIL,Modern Homes,129090,Breyer Group Plc,22/01/2024,30120408,5000,0,Contractor Payments,General Builders,Invoice,BACS,No,10/11/2023 00:00,2023,10,SIN-000636,N42069,Void Properties - refurbishment,1233,Contractor Payments,XXX99,*** UNASSIGNED ***,WCC,CEC Recharges,WC,CEC Recharges,A,Central Services
GUILDFORD BOROUGH COUNCIL,Modern Homes,129090,Breyer Group Plc,22/01/2024,30120408,8500,0,Contractor Payments,General Builders,Invoice,BACS,No,10/11/2023 00:00,2023,10,SIN-000636,N42069,Void Properties - refurbishment,1233,Contractor Payments,XXX99,*** UNASSIGNED ***,WCC,CEC Recharges,WC,CEC Recharges,A,Central Services
GUILDFORD BOROUGH COUNCIL,Modern Homes,129090,Breyer Group Plc,22/01/2024,30120409,8500,0,Contractor Payments,General Builders,Invoice,BACS,No,10/11/2023 00:00,2023,10,SIN-000637,N42069,Void Properties - refurbishment,1233,Contractor Payments,XXX99,*** UNASSIGNED ***,WCC,CEC Recharges,WC,CEC Recharges,A,Central Services
GUILDFORD BOROUGH COUNCIL,Modern Homes,129090,Breyer Group Plc,22/01/2024,30120409,5500,0,Contractor Payments,General Builders,Invoice,BACS,No,10/11/2023 00:00,2023,10,SIN-000637,N42069,Void Properties - refurbishment,1233,Contractor Payments,XXX99,*** UNASSIGNED ***,WCC,CEC Recharges,WC,CEC Recharges,A,Central Services
GUILDFORD BOROUGH COUNCIL,Modern Homes,129090,Breyer Group Plc,22/01/2024,30120409,23806.46,0,Contractor Payments,General Builders,Invoice,BACS,No,10/11/2023 00:00,2023,10,SIN-000637,N42069,Void Properties - refurbishment,1233,Contractor Payments,XXX99,*** UNASSIGNED ***,WCC,CEC Recharges,WC,CEC Recharges,A,Central Services
GUILDFORD BOROUGH COUNCIL,Modern Homes,129090,Breyer Group Plc,22/01/2024,30120410,23989.78,0,Contractor Payments,General Builders,Invoice,BACS,No,13/11/2023 00:00,2023,10,SIN-000640,N42069,Void Properties - refurbishment,1233,Contractor Payments,XXX99,*** UNASSIGNED ***,WCC,CEC Recharges,WC,CEC Recharges,A,Central Services
GUILDFORD BOROUGH COUNCIL,Modern Homes,129090,Breyer Group Plc,22/01/2024,30120411,9558.42,0,Contractor Payments,General Builders,Invoice,BACS,No,13/11/2023 00:00,2023,10,SIN-000641,N42069,Void Properties - refurbishment,1233,Contractor Payments,XXX99,*** UNASSIGNED ***,WCC,CEC Recharges,WC,CEC Recharges,A,Central Services
GUILDFORD BOROUGH COUNCIL,Modern Homes,129090,Breyer Group Plc,22/01/2024,30120413,9500,0,Contractor Payments,General Builders,Invoice,BACS,No,30/11/2023 00:00,2023,10,SIN-000695,N42069,Void Properties - refurbishment,1233,Contractor Payments,XXX99,*** UNASSIGNED ***,WCC,CEC Recharges,WC,CEC Recharges,A,Central Services
GUILDFORD BOROUGH COUNCIL,Doors and Windows,129090,Breyer Group Plc,22/01/2024,30120413,10500,0,Contractor Payments,General Builders,Invoice,BACS,No,30/11/2023 00:00,2023,10,SIN-000695,N45075,Replacement of windows and doors,1233,Contractor Payments,XXX99,*** UNASSIGNED ***,WCC,CEC Recharges,WC,CEC Recharges,A,Central Services
GUILDFORD BOROUGH COUNCIL,Modern Homes,129090,Breyer Group Plc,22/01/2024,30120414,9000,0,Contractor Payments,General Builders,Invoice,BACS,No,30/11/2023 00:00,2023,10,SIN-000696,N42069,Void Properties - refurbishment,1233,Contractor Payments,XXX99,*** UNASSIGNED ***,WCC,CEC Recharges,WC,CEC Recharges,A,Central Services
GUILDFORD BOROUGH COUNCIL,Modern Homes,129090,Breyer Group Plc,22/01/2024,30120414,10828.66,0,Contractor Payments,General Builders,Invoice,BACS,No,30/11/2023 00:00,2023,10,SIN-000696,N42069,Void Properties - refurbishment,1233,Contractor Payments,XXX99,*** UNASSIGNED ***,WCC,CEC Recharges,WC,CEC Recharges,A,Central Services
GUILDFORD BOROUGH COUNCIL,Modern Homes,129090,Breyer Group Plc,22/01/2024,30120415,8500,0,Contractor Payments,General Builders,Invoice,BACS,No,30/11/2023 00:00,2023,10,SIN-000697,N42069,Void Properties - refurbishment,1233,Contractor Payments,XXX99,*** UNASSIGNED ***,WCC,CEC Recharges,WC,CEC Recharges,A,Central Services
GUILDFORD BOROUGH COUNCIL,Modern Homes,129090,Breyer Group Plc,22/01/2024,30120415,11555.61,0,Contractor Payments,General Builders,Invoice,BACS,No,30/11/2023 00:00,2023,10,SIN-000697,N42069,Void Properties - refurbishment,1233,Contractor Payments,XXX99,*** UNASSIGNED ***,WCC,CEC Recharges,WC,CEC Recharges,A,Central Services
GUILDFORD BOROUGH COUNCIL,Modern Homes,129090,Breyer Group Plc,22/01/2024,30120418,42925.06,0,Contractor Payments,General Builders,Invoice,BACS,No,30/11/2023 00:00,2023,10,SIN-000700,N42069,Void Properties - refurbishment,1233,Contractor Payments,XXX99,*** UNASSIGNED ***,WCC,CEC Recharges,WC,CEC Recharges,A,Central Services
GUILDFORD BOROUGH COUNCIL,Modern Homes,129090,Breyer Group Plc,22/01/2024,30120419,11447.28,0,Contractor Payments,General Builders,Invoice,BACS,No,30/11/2023 00:00,2023,10,SIN-000705,N42069,Void Properties - refurbishment,1233,Contractor Payments,XXX99,*** UNASSIGNED ***,WCC,CEC Recharges,WC,CEC Recharges,A,Central Services
GUILDFORD BOROUGH COUNCIL,Modern Homes,129090,Breyer Group Plc,22/01/2024,30120420,9000,0,Contractor Payments,General Builders,Invoice,BACS,No,30/11/2023 00:00,2023,10,SIN-000706,N42069,Void Properties - refurbishment,1233,Contractor Payments,XXX99,*** UNASSIGNED ***,WCC,CEC Recharges,WC,CEC Recharges,A,Central Services
GUILDFORD BOROUGH COUNCIL,Doors and Windows,129090,Breyer Group Plc,22/01/2024,30120420,10500,0,Contractor Payments,General Builders,Invoice,BACS,No,30/11/2023 00:00,2023,10,SIN-000706,N45075,Replacement of windows and doors,1233,Contractor Payments,XXX99,*** UNASSIGNED ***,WCC,CEC Recharges,WC,CEC Recharges,A,Central Services
GUILDFORD BOROUGH COUNCIL,Modern Homes,129090,Breyer Group Plc,22/01/2024,30120420,32626.17,0,Contractor Payments,General Builders,Invoice,BACS,No,30/11/2023 00:00,2023,10,SIN-000706,N42069,Void Properties - refurbishment,1233,Contractor Payments,XXX99,*** UNASSIGNED ***,WCC,CEC Recharges,WC,CEC Recharges,A,Central Services
GUILDFORD BOROUGH COUNCIL,Modern Homes,129090,Breyer Group Plc,22/01/2024,30120424,8000,0,Contractor Payments,General Builders,Invoice,BACS,No,14/12/2023 00:00,2023,10,SIN-000744,N42069,Void Properties - refurbishment,1233,Contractor Payments,XXX99,*** UNASSIGNED ***,WCC,CEC Recharges,WC,CEC Recharges,A,Central Services
GUILDFORD BOROUGH COUNCIL,Modern Homes,129090,Breyer Group Plc,22/01/2024,30120424,5000,0,Contractor Payments,General Builders,Invoice,BACS,No,14/12/2023 00:00,2023,10,SIN-000744,N42069,Void Properties - refurbishment,1233,Contractor Payments,XXX99,*** UNASSIGNED ***,WCC,CEC Recharges,WC,CEC Recharges,A,Central Services
GUILDFORD BOROUGH COUNCIL,Modern Homes,129090,Breyer Group Plc,22/01/2024,30120426,8500,0,Contractor Payments,General Builders,Invoice,BACS,No,14/12/2023 00:00,2023,10,SIN-000746,N42069,Void Properties - refurbishment,1233,Contractor Payments,XXX99,*** UNASSIGNED ***,WCC,CEC Recharges,WC,CEC Recharges,A,Central Services
GUILDFORD BOROUGH COUNCIL,Modern Homes,129090,Breyer Group Plc,22/01/2024,30120427,10000,0,Contractor Payments,General Builders,Invoice,BACS,No,14/12/2023 00:00,2023,10,SIN-000747,N42069,Void Properties - refurbishment,1233,Contractor Payments,XXX99,*** UNASSIGNED ***,WCC,CEC Recharges,WC,CEC Recharges,A,Central Services
GUILDFORD BOROUGH COUNCIL,Modern Homes,129090,Breyer Group Plc,22/01/2024,30120427,40585.89,0,Contractor Payments,General Builders,Invoice,BACS,No,14/12/2023 00:00,2023,10,SIN-000747,N42069,Void Properties - refurbishment,1233,Contractor Payments,XXX99,*** UNASSIGNED ***,WCC,CEC Recharges,WC,CEC Recharges,A,Central Services
GUILDFORD BOROUGH COUNCIL,Modern Homes,129090,Breyer Group Plc,22/01/2024,30120428,26750.06,0,Contractor Payments,General Builders,Invoice,BACS,No,14/12/2023 00:00,2023,10,SIN-000748,N42069,Void Properties - refurbishment,1233,Contractor Payments,XXX99,*** UNASSIGNED ***,WCC,CEC Recharges,WC,CEC Recharges,A,Central Services
GUILDFORD BOROUGH COUNCIL,Modern Homes,129090,Breyer Group Plc,22/01/2024,30120430,8700,0,Contractor Payments,General Builders,Invoice,BACS,No,14/12/2023 00:00,2023,10,SIN-000750,N42069,Void Properties - refurbishment,1233,Contractor Payments,XXX99,*** UNASSIGNED ***,WCC,CEC Recharges,WC,CEC Recharges,A,Central Services
GUILDFORD BOROUGH COUNCIL,Modern Homes,129090,Breyer Group Plc,22/01/2024,30120430,689.28,0,Contractor Payments,General Builders,Invoice,BACS,No,14/12/2023 00:00,2023,10,SIN-000750,N42069,Void Properties - refurbishment,1233,Contractor Payments,XXX99,*** UNASSIGNED ***,WCC,CEC Recharges,WC,CEC Recharges,A,Central Services
GUILDFORD BOROUGH COUNCIL,Modern Homes,129090,Breyer Group Plc,22/01/2024,30120427,5500,0,Contractor Payments,General Builders,Invoice,BACS,No,14/12/2023 00:00,2023,10,SIN-000747,N42068,"Kitchen, bathroom and electrical upgrades",1233,Contractor Payments,XXX99,*** UNASSIGNED ***,WCC,CEC Recharges,WC,CEC Recharges,A,Central Services
GUILDFORD BOROUGH COUNCIL,Modern Homes,129090,Breyer Group Plc,22/01/2024,30120430,6800,0,Contractor Payments,General Builders,Invoice,BACS,No,14/12/2023 00:00,2023,10,SIN-000750,N42068,"Kitchen, bathroom and electrical upgrades",1233,Contractor Payments,XXX99,*** UNASSIGNED ***,WCC,CEC Recharges,WC,CEC Recharges,A,Central Services
GUILDFORD BOROUGH COUNCIL,Environmental Services,341270,British Gas Trading Ltd,13/02/2024,30121542,585.82,0,Utilities,Mains Utility Multiple Service Providers,Invoice,BACS,No,18/01/2024 00:00,2023,11,A11596968,A1500,Crematorium,B2001,Utilities,CEA10,Crematoria,CEA,"Cemetery, Cremation and Mortuary Services",CE,Environmental & Regulatory Services,C,"Cultural, Environmental & Planning Services"
GUILDFORD BOROUGH COUNCIL,Commercial Services,172480,British Parking Association,05/03/2024,30122285,3760,0,Materials,Third Party Supplier,Invoice,BACS,No,08/02/2024 00:00,2023,11,68596,B2111,Car Parks - Administration,D2003,Materials,HTP10,Off-Street Parking,HTP,Parking Services,HT,"Highways, Roads and Transport Services",H,"Highways, Roads and Transport Services"
GUILDFORD BOROUGH COUNCIL,Inventories,100300,British Polythene Limited t/a Berry,09/01/2024,30119094,4099.23,0,Purchases,Recycling Service Providers,Invoice,BACS,No,15/12/2023 00:00,2023,10,INR670171,I01001,Stocks,2591,Purchases,DBX45,Property Services,DBX,Support Service and Management Costs,DB,Children's Social Care,E,Childrens and Education Services
GUILDFORD BOROUGH COUNCIL,GBC Holdings Accounts,105900,British Telecom (Durham),06/02/2024,30121505,9266.55,0,Telephones & Broadband,Fixed Telecoms Service Providers,Invoice,BACS,No,23/01/2024 00:00,2023,11,M2859H,G1151,Telephony Holding Account,D7004,Telephones & Broadband,DBX70,Other Management Costs,DBX,Support Service and Management Costs,DB,Children's Social Care,E,Childrens and Education Services
GUILDFORD BOROUGH COUNCIL,GBC Holdings Accounts,105900,British Telecom (Durham),16/01/2024,30119458,8855.99,0,Telephones & Broadband,Fixed Telecoms Service Providers,Invoice,BACS,No,23/12/2023 00:00,2023,10,M28451,G1151,Telephony Holding Account,D7004,Telephones & Broadband,DBX70,Other Management Costs,DBX,Support Service and Management Costs,DB,Children's Social Care,E,Childrens and Education Services
GUILDFORD BOROUGH COUNCIL,GBC Holdings Accounts,105900,British Telecom (Durham),18/01/2024,30119996,882.57,0,Telephones & Broadband,Fixed Telecoms Service Providers,Invoice,BACS,No,10/01/2024 00:00,2023,10,Q018X7,G1151,Telephony Holding Account,D7004,Telephones & Broadband,DBX70,Other Management Costs,DBX,Support Service and Management Costs,DB,Children's Social Care,E,Childrens and Education Services
GUILDFORD BOROUGH COUNCIL,GBC Holdings Accounts,105900,British Telecom (Durham),05/03/2024,30123581,8819.65,0,Telephones & Broadband,Fixed Telecoms Service Providers,Invoice,BACS,No,23/02/2024 00:00,2023,11,M286D,G1151,Telephony Holding Account,D7004,Telephones & Broadband,DBX70,Other Management Costs,DBX,Support Service and Management Costs,DB,Children's Social Care,E,Childrens and Education Services
GUILDFORD BOROUGH COUNCIL,GBC Holdings Accounts,105900,British Telecom (Durham),05/03/2024,30123571,434.17,0,Telephones & Broadband,Fixed Telecoms Service Providers,Invoice,BACS,No,23/02/2024 00:00,2023,11,Q07276,G1151,Telephony Holding Account,D7004,Telephones & Broadband,DBX70,Other Management Costs,DBX,Support Service and Management Costs,DB,Children's Social Care,E,Childrens and Education Services
GUILDFORD BOROUGH COUNCIL,Modern Homes,148650,Brodie Plant Goddard,27/02/2024,30122394,400,0,Contractor Payments,Quantity Surveyors,Invoice,BACS,No,31/01/2024 00:00,2023,11,14368/4403,N48057,Structural works - various properties,1233,Contractor Payments,XXX99,*** UNASSIGNED ***,WCC,CEC Recharges,WC,CEC Recharges,A,Central Services
GUILDFORD BOROUGH COUNCIL,Environmental Services,106700,Broxap Limited,27/02/2024,30121631,385,0,Grounds Maintenance,Sheet Metal And Fabrication Suppliers,Invoice,BACS,No,02/02/2024 00:00,2023,11,314710,A1300,Trees And Countryside,B6001,Grounds Maintenance,CCE00,Community Parks & Open Spaces,CCE,Open Spaces,CC,Cultural & Related Services,C,"Cultural, Environmental & Planning Services"
GUILDFORD BOROUGH COUNCIL,Environmental Services,106700,Broxap Limited,27/02/2024,30121631,385,0,Grounds Maintenance,Sheet Metal And Fabrication Suppliers,Invoice,BACS,No,02/02/2024 00:00,2023,11,314710,A1300,Countryside,B6001,Grounds Maintenance,CCE00,Community Parks & Open Spaces,CCE,Open Spaces,CC,Cultural & Related Services,C,"Cultural, Environmental & Planning Services"
GUILDFORD BOROUGH COUNCIL,Assets and Property,912150,Bruton Knowles Limited,05/03/2024,30123739,1500,0,Valuers Fees,Surveyors And Inspectors,Invoice,BACS,No,31/01/2024 00:00,2023,12,GFD-24-13150,G4575,Asset Management,D6002,Valuers Fees,DBX45,Property Services,DBX,Support Service and Management Costs,DB,Children's Social Care,E,Childrens and Education Services
GUILDFORD BOROUGH COUNCIL,Executive - Miscellaneous,912150,Bruton Knowles Limited,23/01/2024,30120508,1800,0,Consultants Fees,Surveyors And Inspectors,Invoice,BACS,No,30/11/2023 00:00,2023,10,GFD-24-13094,P79110,WUV – SANG,1221,Consultants Fees,XXX99,*** UNASSIGNED ***,WCC,CEC Recharges,WC,CEC Recharges,A,Central Services
GUILDFORD BOROUGH COUNCIL,Commercial Services,118170,BSI,26/03/2024,30124403,1165,0,Grants And Subscriptions,Other Business Service Providers,Invoice,BACS,No,01/03/2024 00:00,2023,12,96494719,D5700,Building Control - Fee,D9001,Grants And Subscriptions,CPB00,Building Regulations,CPB,Building Control,CP,Planning and Development Services,C,"Cultural, Environmental & Planning Services"
GUILDFORD BOROUGH COUNCIL,HRA Service Delivery,900320,BSW Building Services Ltd,23/01/2024,30120858,310.05,0,Asset Maintenance,"Plumbing, Heating And Ac (Hvac) Contractors",Invoice,BACS,No,30/11/2023 00:00,2023,10,79073,M5106,Repairs-Shelt-Responsive (BHS),B1001,Asset Maintenance,W3A05,Current Service Costs - Housing Services,W3A,Current Service Costs adjustment,W3,Current Service Costs,W,Other Operating Income and Expenditure
GUILDFORD BOROUGH COUNCIL,Heating,900320,BSW Building Services Ltd,23/01/2024,30120736,12400.86,0,Contractor Payments,"Plumbing, Heating And Ac (Hvac) Contractors",Invoice,BACS,No,10/11/2023 00:00,2023,10,79017,N44076,Domestic Air Source Heat Pump heating  systems,1233,Contractor Payments,XXX99,*** UNASSIGNED ***,WCC,CEC Recharges,WC,CEC Recharges,A,Central Services
GUILDFORD BOROUGH COUNCIL,Heating,900320,BSW Building Services Ltd,23/01/2024,30120737,11777.91,0,Contractor Payments,"Plumbing, Heating And Ac (Hvac) Contractors",Invoice,BACS,No,10/11/2023 00:00,2023,10,79018,N44076,Domestic Air Source Heat Pump heating  systems,1233,Contractor Payments,XXX99,*** UNASSIGNED ***,WCC,CEC Recharges,WC,CEC Recharges,A,Central Services
GUILDFORD BOROUGH COUNCIL,Heating,900320,BSW Building Services Ltd,23/01/2024,30120738,11829.2,0,Contractor Payments,"Plumbing, Heating And Ac (Hvac) Contractors",Invoice,BACS,No,28/11/2023 00:00,2023,10,79043,N44076,Domestic Air Source Heat Pump heating  systems,1233,Contractor Payments,XXX99,*** UNASSIGNED ***,WCC,CEC Recharges,WC,CEC Recharges,A,Central Services
GUILDFORD BOROUGH COUNCIL,Heating,900320,BSW Building Services Ltd,23/01/2024,30120735,11805.45,0,Contractor Payments,"Plumbing, Heating And Ac (Hvac) Contractors",Invoice,BACS,No,10/11/2023 00:00,2023,10,79016,N44076,Domestic Air Source Heat Pump heating  systems,1233,Contractor Payments,XXX99,*** UNASSIGNED ***,WCC,CEC Recharges,WC,CEC Recharges,A,Central Services
GUILDFORD BOROUGH COUNCIL,Heating,900320,BSW Building Services Ltd,23/01/2024,30120739,11161.37,0,Contractor Payments,"Plumbing, Heating And Ac (Hvac) Contractors",Invoice,BACS,No,30/11/2023 00:00,2023,10,79045,N44076,Domestic Air Source Heat Pump heating  systems,1233,Contractor Payments,XXX99,*** UNASSIGNED ***,WCC,CEC Recharges,WC,CEC Recharges,A,Central Services
GUILDFORD BOROUGH COUNCIL,HRA Service Delivery,900320,BSW Building Services Ltd,23/01/2024,30120858,555.11,0,Asset Maintenance,"Plumbing, Heating And Ac (Hvac) Contractors",Invoice,BACS,No,30/11/2023 00:00,2023,10,79073,M5113,Repairs-Responsive (BHS),B1001,Asset Maintenance,W3A05,Current Service Costs - Housing Services,W3A,Current Service Costs adjustment,W3,Current Service Costs,W,Other Operating Income and Expenditure
GUILDFORD BOROUGH COUNCIL,HRA Service Delivery,900320,BSW Building Services Ltd,27/02/2024,30123457,250.45,0,Asset Maintenance,"Plumbing, Heating And Ac (Hvac) Contractors",Invoice,BACS,No,31/01/2024 00:00,2023,11,79222,M5113,Repairs-Responsive (BHS),B1001,Asset Maintenance,W3A05,Current Service Costs - Housing Services,W3A,Current Service Costs adjustment,W3,Current Service Costs,W,Other Operating Income and Expenditure
GUILDFORD BOROUGH COUNCIL,Heating,900320,BSW Building Services Ltd,23/01/2024,30120857,13842.36,0,Contractor Payments,"Plumbing, Heating And Ac (Hvac) Contractors",Invoice,BACS,No,30/11/2023 00:00,2023,10,79046,N44076,Domestic Air Source Heat Pump heating  systems,1233,Contractor Payments,XXX99,*** UNASSIGNED ***,WCC,CEC Recharges,WC,CEC Recharges,A,Central Services
GUILDFORD BOROUGH COUNCIL,HRA Service Delivery,900320,BSW Building Services Ltd,23/01/2024,30120858,812.1,0,Asset Maintenance,"Plumbing, Heating And Ac (Hvac) Contractors",Invoice,BACS,No,30/11/2023 00:00,2023,10,79073,M5113,Repairs-Responsive (BHS),B1001,Asset Maintenance,W3A05,Current Service Costs - Housing Services,W3A,Current Service Costs adjustment,W3,Current Service Costs,W,Other Operating Income and Expenditure
GUILDFORD BOROUGH COUNCIL,HRA Service Delivery,900320,BSW Building Services Ltd,23/01/2024,30120858,718.64,0,Asset Maintenance,"Plumbing, Heating And Ac (Hvac) Contractors",Invoice,BACS,No,30/11/2023 00:00,2023,10,79073,M5113,Repairs-Responsive (BHS),B1001,Asset Maintenance,W3A05,Current Service Costs - Housing Services,W3A,Current Service Costs adjustment,W3,Current Service Costs,W,Other Operating Income and Expenditure
GUILDFORD BOROUGH COUNCIL,HRA Service Delivery,900320,BSW Building Services Ltd,23/01/2024,30120858,369.12,0,Asset Maintenance,"Plumbing, Heating And Ac (Hvac) Contractors",Invoice,BACS,No,30/11/2023 00:00,2023,10,79073,M5113,Repairs-Responsive (BHS),B1001,Asset Maintenance,W3A05,Current Service Costs - Housing Services,W3A,Current Service Costs adjustment,W3,Current Service Costs,W,Other Operating Income and Expenditure
GUILDFORD BOROUGH COUNCIL,HRA Service Delivery,900320,BSW Building Services Ltd,27/02/2024,30123457,337.52,0,Asset Maintenance,"Plumbing, Heating And Ac (Hvac) Contractors",Invoice,BACS,No,31/01/2024 00:00,2023,11,79222,M5113,Repairs-Responsive (BHS),B1001,Asset Maintenance,W3A05,Current Service Costs - Housing Services,W3A,Current Service Costs adjustment,W3,Current Service Costs,W,Other Operating Income and Expenditure
GUILDFORD BOROUGH COUNCIL,HRA Service Delivery,900320,BSW Building Services Ltd,27/02/2024,30123457,298.11,0,Asset Maintenance,"Plumbing, Heating And Ac (Hvac) Contractors",Invoice,BACS,No,31/01/2024 00:00,2023,11,79222,M5106,Repairs-Shelt-Responsive (BHS),B1001,Asset Maintenance,W3A05,Current Service Costs - Housing Services,W3A,Current Service Costs adjustment,W3,Current Service Costs,W,Other Operating Income and Expenditure
GUILDFORD BOROUGH COUNCIL,Communication & Customer Services,777540,BT Global Services,15/02/2024,30121034,11665.87,0,Telephones & Broadband,Fixed Telecoms Service Providers,Invoice,BACS,No,23/01/2024 00:00,2023,10,648260,G3548,ICT Technical & Infrastructure,D7004,Telephones & Broadband,DBX70,Other Management Costs,DBX,Support Service and Management Costs,DB,Children's Social Care,E,Childrens and Education Services
GUILDFORD BOROUGH COUNCIL,Communication & Customer Services,777540,BT Global Services,12/03/2024,30122946,11690.25,0,Telephones & Broadband,Fixed Telecoms Service Providers,Invoice,BACS,No,16/02/2024 00:00,2023,11,650348,G3548,ICT Technical & Infrastructure,D7004,Telephones & Broadband,DBX70,Other Management Costs,DBX,Support Service and Management Costs,DB,Children's Social Care,E,Childrens and Education Services
GUILDFORD BOROUGH COUNCIL,Commercial Services,136190,Bug Art Ltd,07/03/2024,30122590,318,0,Stock For Re-Sale,Third Party Supplier,Invoice,BACS,No,12/02/2024 00:00,2023,11,88651,A4511,Guildford House Administration,D2004,Stock For Re-Sale,CCA30,Museums & Galleries,CCA,Culture & Heritage,CC,Cultural & Related Services,C,"Cultural, Environmental & Planning Services"
GUILDFORD BOROUGH COUNCIL,Commercial Services,1001058,Buy it Direct Ltd,19/03/2024,30124686,608.26,0,Specialist Services,,Invoice,BACS,No,13/02/2024 00:00,2023,12,119870714,A5511,Museum,D6009,Specialist Services,CCA30,Museums & Galleries,CCA,Culture & Heritage,CC,Cultural & Related Services,C,"Cultural, Environmental & Planning Services"
GUILDFORD BOROUGH COUNCIL,Housing Services,113100,C A Moore (CIS),07/03/2024,30123980,2000,0,Services,Joiners And Carpenters,Invoice,BACS,No,01/03/2024 00:00,2023,12,642,K1515,Building Maintenance,D6004,Services,DBX45,Property Services,DBX,Support Service and Management Costs,DB,Children's Social Care,E,Childrens and Education Services
GUILDFORD BOROUGH COUNCIL,Housing Services,113100,C A Moore (CIS),07/03/2024,30123980,6000,0,Materials,Joiners And Carpenters,Invoice,BACS,No,01/03/2024 00:00,2023,12,642,K1515,Building Maintenance,D2003,Materials,DBX45,Property Services,DBX,Support Service and Management Costs,DB,Children's Social Care,E,Childrens and Education Services
GUILDFORD BOROUGH COUNCIL,Housing Services,113100,C A Moore (CIS),08/02/2024,30122095,1275,0,Materials,Joiners And Carpenters,Invoice,BACS,No,01/02/2024 00:00,2023,11,640,K1515,Building Maintenance,D2003,Materials,DBX45,Property Services,DBX,Support Service and Management Costs,DB,Children's Social Care,E,Childrens and Education Services
GUILDFORD BOROUGH COUNCIL,Housing Services,113100,C A Moore (CIS),08/02/2024,30122095,1500,0,Services,Joiners And Carpenters,Invoice,BACS,No,01/02/2024 00:00,2023,11,640,K1515,Building Maintenance,D6004,Services,DBX45,Property Services,DBX,Support Service and Management Costs,DB,Children's Social Care,E,Childrens and Education Services
GUILDFORD BOROUGH COUNCIL,Housing Services,113100,C A Moore (CIS),20/02/2024,30122692,1400,0,Materials,Joiners And Carpenters,Invoice,BACS,No,09/02/2024 00:00,2023,11,641,K1515,Building Maintenance,D2003,Materials,DBX45,Property Services,DBX,Support Service and Management Costs,DB,Children's Social Care,E,Childrens and Education Services
GUILDFORD BOROUGH COUNCIL,Housing Services,113100,C A Moore (CIS),08/02/2024,30122112,6800,0,Services,Joiners And Carpenters,Invoice,BACS,No,01/02/2024 00:00,2023,11,639,K1515,Building Maintenance,D6004,Services,DBX45,Property Services,DBX,Support Service and Management Costs,DB,Children's Social Care,E,Childrens and Education Services
GUILDFORD BOROUGH COUNCIL,Housing Services,113100,C A Moore (CIS),08/02/2024,30122112,2500,0,Materials,Joiners And Carpenters,Invoice,BACS,No,01/02/2024 00:00,2023,11,639,K1515,Building Maintenance,D2003,Materials,DBX45,Property Services,DBX,Support Service and Management Costs,DB,Children's Social Care,E,Childrens and Education Services
GUILDFORD BOROUGH COUNCIL,Housing Services,113100,C A Moore (CIS),20/02/2024,30122692,4270,0,Services,Joiners And Carpenters,Invoice,BACS,No,09/02/2024 00:00,2023,11,641,K1515,Building Maintenance,D6004,Services,DBX45,Property Services,DBX,Support Service and Management Costs,DB,Children's Social Care,E,Childrens and Education Services
GUILDFORD BOROUGH COUNCIL,HRA Service Delivery,116200,C F Property Services,06/02/2024,30121182,5000,0,Services,General Builders,Invoice,BACS,No,10/01/2024 00:00,2023,10,G099,M1151,Tenants Services (BHS),D6004,Services,W3A05,Current Service Costs - Housing Services,W3A,Current Service Costs adjustment,W3,Current Service Costs,W,Other Operating Income and Expenditure
GUILDFORD BOROUGH COUNCIL,HRA Service Delivery,982900,C L C Contractors Limited,28/03/2024,30125470,515.15,0,Asset Maintenance,Property Maintenance Contractors,Invoice,BACS,No,20/02/2024 00:00,2023,12,INV024233,M5107,Repairs-Shelt-Cyclical (BHS),B1001,Asset Maintenance,W3A05,Current Service Costs - Housing Services,W3A,Current Service Costs adjustment,W3,Current Service Costs,W,Other Operating Income and Expenditure
GUILDFORD BOROUGH COUNCIL,HRA Service Delivery,982900,C L C Contractors Limited,28/03/2024,30125470,756.28,0,Asset Maintenance,Property Maintenance Contractors,Invoice,BACS,No,20/02/2024 00:00,2023,12,INV024233,M5107,Repairs-Shelt-Cyclical (BHS),B1001,Asset Maintenance,W3A05,Current Service Costs - Housing Services,W3A,Current Service Costs adjustment,W3,Current Service Costs,W,Other Operating Income and Expenditure
GUILDFORD BOROUGH COUNCIL,HRA Service Delivery,982900,C L C Contractors Limited,28/03/2024,30125470,306.9,0,Asset Maintenance,Property Maintenance Contractors,Invoice,BACS,No,20/02/2024 00:00,2023,12,INV024233,M5107,Repairs-Shelt-Cyclical (BHS),B1001,Asset Maintenance,W3A05,Current Service Costs - Housing Services,W3A,Current Service Costs adjustment,W3,Current Service Costs,W,Other Operating Income and Expenditure
GUILDFORD BOROUGH COUNCIL,HRA Service Delivery,982900,C L C Contractors Limited,28/03/2024,30125470,515.15,0,Asset Maintenance,Property Maintenance Contractors,Invoice,BACS,No,20/02/2024 00:00,2023,12,INV024233,M5107,Repairs-Shelt-Cyclical (BHS),B1001,Asset Maintenance,W3A05,Current Service Costs - Housing Services,W3A,Current Service Costs adjustment,W3,Current Service Costs,W,Other Operating Income and Expenditure
GUILDFORD BOROUGH COUNCIL,HRA Service Delivery,982900,C L C Contractors Limited,28/03/2024,30125470,613.79,0,Asset Maintenance,Property Maintenance Contractors,Invoice,BACS,No,20/02/2024 00:00,2023,12,INV024233,M5107,Repairs-Shelt-Cyclical (BHS),B1001,Asset Maintenance,W3A05,Current Service Costs - Housing Services,W3A,Current Service Costs adjustment,W3,Current Service Costs,W,Other Operating Income and Expenditure
GUILDFORD BOROUGH COUNCIL,HRA Service Delivery,982900,C L C Contractors Limited,28/03/2024,30125470,756.28,0,Asset Maintenance,Property Maintenance Contractors,Invoice,BACS,No,20/02/2024 00:00,2023,12,INV024233,M5107,Repairs-Shelt-Cyclical (BHS),B1001,Asset Maintenance,W3A05,Current Service Costs - Housing Services,W3A,Current Service Costs adjustment,W3,Current Service Costs,W,Other Operating Income and Expenditure
GUILDFORD BOROUGH COUNCIL,HRA Service Delivery,982900,C L C Contractors Limited,28/03/2024,30125470,515.15,0,Asset Maintenance,Property Maintenance Contractors,Invoice,BACS,No,20/02/2024 00:00,2023,12,INV024233,M5107,Repairs-Shelt-Cyclical (BHS),B1001,Asset Maintenance,W3A05,Current Service Costs - Housing Services,W3A,Current Service Costs adjustment,W3,Current Service Costs,W,Other Operating Income and Expenditure
GUILDFORD BOROUGH COUNCIL,HRA Service Delivery,982900,C L C Contractors Limited,26/01/2024,30121209,9344.54,0,Building Expenses,Property Maintenance Contractors,Invoice,BACS,No,19/12/2023 00:00,2023,10,INV023056,M5114,Repairs-Cyclical (BHS),B1002,Building Expenses,W3A05,Current Service Costs - Housing Services,W3A,Current Service Costs adjustment,W3,Current Service Costs,W,Other Operating Income and Expenditure
GUILDFORD BOROUGH COUNCIL,HRA Service Delivery,982900,C L C Contractors Limited,23/01/2024,30120926,748.8,0,Asset Maintenance,Property Maintenance Contractors,Invoice,BACS,No,16/11/2023 00:00,2023,10,INV022259,M5114,Repairs-Cyclical (BHS),B1001,Asset Maintenance,W3A05,Current Service Costs - Housing Services,W3A,Current Service Costs adjustment,W3,Current Service Costs,W,Other Operating Income and Expenditure
GUILDFORD BOROUGH COUNCIL,HRA Service Delivery,982900,C L C Contractors Limited,23/01/2024,30120926,4608.62,0,Asset Maintenance,Property Maintenance Contractors,Invoice,BACS,No,16/11/2023 00:00,2023,10,INV022259,M5114,Repairs-Cyclical (BHS),B1001,Asset Maintenance,W3A05,Current Service Costs - Housing Services,W3A,Current Service Costs adjustment,W3,Current Service Costs,W,Other Operating Income and Expenditure
GUILDFORD BOROUGH COUNCIL,HRA Service Delivery,982900,C L C Contractors Limited,23/01/2024,30120927,317.93,0,Asset Maintenance,Property Maintenance Contractors,Invoice,BACS,No,16/11/2023 00:00,2023,10,INV022264,M5114,Repairs-Cyclical (BHS),B1001,Asset Maintenance,W3A05,Current Service Costs - Housing Services,W3A,Current Service Costs adjustment,W3,Current Service Costs,W,Other Operating Income and Expenditure
GUILDFORD BOROUGH COUNCIL,HRA Service Delivery,982900,C L C Contractors Limited,06/02/2024,30121861,964.78,0,Asset Maintenance,Property Maintenance Contractors,Invoice,BACS,No,11/01/2024 00:00,2023,11,INV023402,M2748,Gt Goodwin Dr 159-173(8),B1001,Asset Maintenance,W3A05,Current Service Costs - Housing Services,W3A,Current Service Costs adjustment,W3,Current Service Costs,W,Other Operating Income and Expenditure
GUILDFORD BOROUGH COUNCIL,HRA Service Delivery,982900,C L C Contractors Limited,06/02/2024,30121861,1008.7,0,Asset Maintenance,Property Maintenance Contractors,Invoice,BACS,No,11/01/2024 00:00,2023,11,INV023402,M2752,Great Goodwin Drive 143-157(8),B1001,Asset Maintenance,W3A05,Current Service Costs - Housing Services,W3A,Current Service Costs adjustment,W3,Current Service Costs,W,Other Operating Income and Expenditure
GUILDFORD BOROUGH COUNCIL,HRA Service Delivery,982900,C L C Contractors Limited,23/01/2024,30120927,3505.93,0,Asset Maintenance,Property Maintenance Contractors,Invoice,BACS,No,16/11/2023 00:00,2023,10,INV022264,M2756,Hillcrest Road 18-24 (4),B1001,Asset Maintenance,W3A05,Current Service Costs - Housing Services,W3A,Current Service Costs adjustment,W3,Current Service Costs,W,Other Operating Income and Expenditure
GUILDFORD BOROUGH COUNCIL,HRA Service Delivery,982900,C L C Contractors Limited,23/01/2024,30120927,317.94,0,Asset Maintenance,Property Maintenance Contractors,Invoice,BACS,No,16/11/2023 00:00,2023,10,INV022264,M5114,Repairs-Cyclical (BHS),B1001,Asset Maintenance,W3A05,Current Service Costs - Housing Services,W3A,Current Service Costs adjustment,W3,Current Service Costs,W,Other Operating Income and Expenditure
GUILDFORD BOROUGH COUNCIL,HRA Service Delivery,982900,C L C Contractors Limited,23/01/2024,30120927,317.94,0,Asset Maintenance,Property Maintenance Contractors,Invoice,BACS,No,16/11/2023 00:00,2023,10,INV022264,M5114,Repairs-Cyclical (BHS),B1001,Asset Maintenance,W3A05,Current Service Costs - Housing Services,W3A,Current Service Costs adjustment,W3,Current Service Costs,W,Other Operating Income and Expenditure
GUILDFORD BOROUGH COUNCIL,HRA Service Delivery,982900,C L C Contractors Limited,06/02/2024,30121862,2493.23,0,Asset Maintenance,Property Maintenance Contractors,Invoice,BACS,No,11/01/2024 00:00,2023,11,INV023404,M5114,Repairs-Cyclical (BHS),B1001,Asset Maintenance,W3A05,Current Service Costs - Housing Services,W3A,Current Service Costs adjustment,W3,Current Service Costs,W,Other Operating Income and Expenditure
GUILDFORD BOROUGH COUNCIL,HRA Service Delivery,982900,C L C Contractors Limited,28/03/2024,30125470,548.03,0,Asset Maintenance,Property Maintenance Contractors,Invoice,BACS,No,20/02/2024 00:00,2023,12,INV024233,M5107,Repairs-Shelt-Cyclical (BHS),B1001,Asset Maintenance,W3A05,Current Service Costs - Housing Services,W3A,Current Service Costs adjustment,W3,Current Service Costs,W,Other Operating Income and Expenditure
GUILDFORD BOROUGH COUNCIL,HRA Service Delivery,982900,C L C Contractors Limited,28/03/2024,30125470,372.66,0,Asset Maintenance,Property Maintenance Contractors,Invoice,BACS,No,20/02/2024 00:00,2023,12,INV024233,M5107,Repairs-Shelt-Cyclical (BHS),B1001,Asset Maintenance,W3A05,Current Service Costs - Housing Services,W3A,Current Service Costs adjustment,W3,Current Service Costs,W,Other Operating Income and Expenditure
GUILDFORD BOROUGH COUNCIL,HRA Service Delivery,982900,C L C Contractors Limited,28/03/2024,30125470,13666.9,0,Asset Maintenance,Property Maintenance Contractors,Invoice,BACS,No,20/02/2024 00:00,2023,12,INV024233,M5107,Repairs-Shelt-Cyclical (BHS),B1001,Asset Maintenance,W3A05,Current Service Costs - Housing Services,W3A,Current Service Costs adjustment,W3,Current Service Costs,W,Other Operating Income and Expenditure
GUILDFORD BOROUGH COUNCIL,HRA Service Delivery,982900,C L C Contractors Limited,23/01/2024,30120927,317.94,0,Asset Maintenance,Property Maintenance Contractors,Invoice,BACS,No,16/11/2023 00:00,2023,10,INV022264,M5114,Repairs-Cyclical (BHS),B1001,Asset Maintenance,W3A05,Current Service Costs - Housing Services,W3A,Current Service Costs adjustment,W3,Current Service Costs,W,Other Operating Income and Expenditure
GUILDFORD BOROUGH COUNCIL,HRA Service Delivery,982900,C L C Contractors Limited,23/01/2024,30120927,317.94,0,Asset Maintenance,Property Maintenance Contractors,Invoice,BACS,No,16/11/2023 00:00,2023,10,INV022264,M5114,Repairs-Cyclical (BHS),B1001,Asset Maintenance,W3A05,Current Service Costs - Housing Services,W3A,Current Service Costs adjustment,W3,Current Service Costs,W,Other Operating Income and Expenditure
GUILDFORD BOROUGH COUNCIL,HRA Service Delivery,982900,C L C Contractors Limited,23/01/2024,30120928,455.03,0,Asset Maintenance,Property Maintenance Contractors,Invoice,BACS,No,30/11/2023 00:00,2023,10,INV022665,M5114,Repairs-Cyclical (BHS),B1001,Asset Maintenance,W3A05,Current Service Costs - Housing Services,W3A,Current Service Costs adjustment,W3,Current Service Costs,W,Other Operating Income and Expenditure
GUILDFORD BOROUGH COUNCIL,HRA Service Delivery,982900,C L C Contractors Limited,23/01/2024,30120928,655.62,0,Asset Maintenance,Property Maintenance Contractors,Invoice,BACS,No,30/11/2023 00:00,2023,10,INV022665,M5114,Repairs-Cyclical (BHS),B1001,Asset Maintenance,W3A05,Current Service Costs - Housing Services,W3A,Current Service Costs adjustment,W3,Current Service Costs,W,Other Operating Income and Expenditure
GUILDFORD BOROUGH COUNCIL,HRA Service Delivery,982900,C L C Contractors Limited,26/01/2024,30121208,4815.9,0,Building Expenses,Property Maintenance Contractors,Invoice,BACS,No,28/11/2023 00:00,2023,10,INV022650,M5114,Repairs-Cyclical (BHS),B1002,Building Expenses,W3A05,Current Service Costs - Housing Services,W3A,Current Service Costs adjustment,W3,Current Service Costs,W,Other Operating Income and Expenditure
GUILDFORD BOROUGH COUNCIL,HRA Service Delivery,982900,C L C Contractors Limited,26/01/2024,30121210,6150.22,0,Building Expenses,Property Maintenance Contractors,Invoice,BACS,No,22/12/2023 00:00,2023,10,INV023267,M5114,Repairs-Cyclical (BHS),B1002,Building Expenses,W3A05,Current Service Costs - Housing Services,W3A,Current Service Costs adjustment,W3,Current Service Costs,W,Other Operating Income and Expenditure
GUILDFORD BOROUGH COUNCIL,HRA Service Delivery,982900,C L C Contractors Limited,23/01/2024,30120927,449.55,0,Asset Maintenance,Property Maintenance Contractors,Invoice,BACS,No,16/11/2023 00:00,2023,10,INV022264,M5114,Repairs-Cyclical (BHS),B1001,Asset Maintenance,W3A05,Current Service Costs - Housing Services,W3A,Current Service Costs adjustment,W3,Current Service Costs,W,Other Operating Income and Expenditure
GUILDFORD BOROUGH COUNCIL,HRA Service Delivery,982900,C L C Contractors Limited,23/01/2024,30120927,419.8,0,Asset Maintenance,Property Maintenance Contractors,Invoice,BACS,No,16/11/2023 00:00,2023,10,INV022264,M5114,Repairs-Cyclical (BHS),B1001,Asset Maintenance,W3A05,Current Service Costs - Housing Services,W3A,Current Service Costs adjustment,W3,Current Service Costs,W,Other Operating Income and Expenditure
GUILDFORD BOROUGH COUNCIL,HRA Service Delivery,982900,C L C Contractors Limited,23/01/2024,30120927,795.98,0,Asset Maintenance,Property Maintenance Contractors,Invoice,BACS,No,16/11/2023 00:00,2023,10,INV022264,M5114,Repairs-Cyclical (BHS),B1001,Asset Maintenance,W3A05,Current Service Costs - Housing Services,W3A,Current Service Costs adjustment,W3,Current Service Costs,W,Other Operating Income and Expenditure
GUILDFORD BOROUGH COUNCIL,HRA Service Delivery,982900,C L C Contractors Limited,23/01/2024,30120927,372.76,0,Asset Maintenance,Property Maintenance Contractors,Invoice,BACS,No,16/11/2023 00:00,2023,10,INV022264,M5114,Repairs-Cyclical (BHS),B1001,Asset Maintenance,W3A05,Current Service Costs - Housing Services,W3A,Current Service Costs adjustment,W3,Current Service Costs,W,Other Operating Income and Expenditure
GUILDFORD BOROUGH COUNCIL,Communication & Customer Services,1000065,Canon (UK) Ltd,29/02/2024,30122094,918.4,0,Stationery & Paper,,Invoice,BACS,No,06/02/2024 00:00,2023,11,44276106,G3550,Resources Caseworker,D5007,Stationery & Paper,DBX35,Finance (including Internal Audit),DBX,Support Service and Management Costs,DB,Children's Social Care,E,Childrens and Education Services
GUILDFORD BOROUGH COUNCIL,Commercial Services,297500,Capita Business Services Limited (prev Liberty Printers),22/02/2024,30122693,653.82,0,Postage,Printing Service Providers,Invoice,BACS,No,30/01/2024 00:00,2023,11,6004165591,B2111,Car Parks - Administration,D5003,Postage,HTP10,Off-Street Parking,HTP,Parking Services,HT,"Highways, Roads and Transport Services",H,"Highways, Roads and Transport Services"
GUILDFORD BOROUGH COUNCIL,Commercial Services,297500,Capita Business Services Limited (prev Liberty Printers),20/02/2024,30122680,370.26,0,Postage,Printing Service Providers,Invoice,BACS,No,27/12/2023 00:00,2023,11,6004163572,B2111,Car Parks - Administration,D5003,Postage,HTP10,Off-Street Parking,HTP,Parking Services,HT,"Highways, Roads and Transport Services",H,"Highways, Roads and Transport Services"
GUILDFORD BOROUGH COUNCIL,New Build,1000230,Carter Jonas LLP,26/03/2024,30123978,2398,0,Consultants Fees,,Invoice,BACS,No,29/02/2024 00:00,2023,12,F0259098,N30011,Guildford Park,1221,Consultants Fees,XXX99,*** UNASSIGNED ***,WCC,CEC Recharges,WC,CEC Recharges,A,Central Services
GUILDFORD BOROUGH COUNCIL,Community Services,122900,Cash Control Machines (Flintex Limted),19/03/2024,30123265,722.5,0,Services,Other Office Equipment Suppliers,Invoice,BACS,No,23/02/2024 00:00,2023,11,15587,C8100,Community Hubs,D6004,Services,KGU00,Supporting People - Strategy,KGU,Supporting People,KG,Housing General Fund,K,Housing Services
GUILDFORD BOROUGH COUNCIL,Housing Services,147020,Catalyst Support Limited,13/02/2024,30121532,26270,0,Grants And Subscriptions,Third Party Supplier,Invoice,BACS,No,18/01/2024 00:00,2023,11,2023/72,C3311,Homelessness,D9001,Grants And Subscriptions,KGU00,Supporting People - Strategy,KGU,Supporting People,KG,Housing General Fund,K,Housing Services
GUILDFORD BOROUGH COUNCIL,Housing Services,1001044,Cavender Property Solutions Limited,09/01/2024,30119140,2701,0,Partnerships,,Invoice,BACS,No,03/01/2024 00:00,2023,10,Rent in advance,C3311,Homelessness,D6013,Partnerships,KGU00,Supporting People - Strategy,KGU,Supporting People,KG,Housing General Fund,K,Housing Services
GUILDFORD BOROUGH COUNCIL,HRA Service Delivery,790280,CBRE Ltd (Glasgow),01/02/2024,30121276,5835.42,0,Premises Insurance,Surveyors And Inspectors,Invoice,BACS,No,09/01/2024 00:00,2023,10,202400000113/12418,M2736,Friary House 1-61 (61),B7001,Premises Insurance,W3A05,Current Service Costs - Housing Services,W3A,Current Service Costs adjustment,W3,Current Service Costs,W,Other Operating Income and Expenditure
GUILDFORD BOROUGH COUNCIL,Commercial Services,790280,CBRE Ltd (Glasgow),20/02/2024,30122641,4599.67,0,Rents Payable,Surveyors And Inspectors,Invoice,BACS,No,04/12/2023 00:00,2023,11,202300001103/12418,B2241,Commercial Road 2 Car Park,B3001,Rents Payable,HTP10,Off-Street Parking,HTP,Parking Services,HT,"Highways, Roads and Transport Services",H,"Highways, Roads and Transport Services"
GUILDFORD BOROUGH COUNCIL,Commercial Services,790280,CBRE Ltd (Glasgow),20/02/2024,30122641,383.32,0,Rents Payable,Surveyors And Inspectors,Invoice,BACS,No,04/12/2023 00:00,2023,11,202300001103/12418,B2241,Commercial Road 2 Car Park,B3001,Rents Payable,HTP10,Off-Street Parking,HTP,Parking Services,HT,"Highways, Roads and Transport Services",H,"Highways, Roads and Transport Services"
GUILDFORD BOROUGH COUNCIL,Communication & Customer Services,239430,CCS Media Ltd,19/03/2024,30123291,984,0,ICT Hardware And Consumables,It Consumables Suppliers,Invoice,BACS,No,22/02/2024 00:00,2023,11,5087337,G3550,Resources Caseworker,D7001,ICT Hardware And Consumables,DBX35,Finance (including Internal Audit),DBX,Support Service and Management Costs,DB,Children's Social Care,E,Childrens and Education Services
GUILDFORD BOROUGH COUNCIL,Assets and Property,125800,Central Linemarkings Ltd,30/01/2024,30120958,2270,0,Asset Maintenance,Road Marking Service Providers,Invoice,BACS,No,23/01/2024 00:00,2023,10,60575,B4452,Woking Road Depot,B1001,Asset Maintenance,XXX99,*** UNASSIGNED ***,WCC,CEC Recharges,WC,CEC Recharges,A,Central Services
GUILDFORD BOROUGH COUNCIL,Environmental Services,1000939,Centrewire,13/02/2024,30121537,3327,0,Grounds Maintenance,,Invoice,BACS,No,19/01/2024 00:00,2023,11,OP/I027477,A1010,SPA Sites,B6001,Grounds Maintenance,CCE00,Community Parks & Open Spaces,CCE,Open Spaces,CC,Cultural & Related Services,C,"Cultural, Environmental & Planning Services"
GUILDFORD BOROUGH COUNCIL,Inventories,759300,Certas Energy UK Limited,16/01/2024,30119352,2810,0,Purchases,Oil Fuel Suppliers,Invoice,BACS,No,04/01/2024 00:00,2023,10,9495989,I01001,Stocks,2591,Purchases,DBX45,Property Services,DBX,Support Service and Management Costs,DB,Children's Social Care,E,Childrens and Education Services
GUILDFORD BOROUGH COUNCIL,Housing Services,619300,Certsure LLP,26/03/2024,30123966,575,0,Services,Professional Associations,Invoice,BACS,No,29/02/2024 00:00,2023,12,87920684,K1515,Building Maintenance,D6004,Services,DBX45,Property Services,DBX,Support Service and Management Costs,DB,Children's Social Care,E,Childrens and Education Services
GUILDFORD BOROUGH COUNCIL,Housing Services,619300,Certsure LLP,26/03/2024,30124094,375,0,Services,Professional Associations,Invoice,BACS,No,06/03/2024 00:00,2023,12,87929905,K1515,Building Maintenance,D6004,Services,DBX45,Property Services,DBX,Support Service and Management Costs,DB,Children's Social Care,E,Childrens and Education Services
GUILDFORD BOROUGH COUNCIL,Government Short Term Debtors,827380,CFH Docmail Ltd,19/03/2024,30123295,1719,0,Miscellaneous Expenses,Document Archiving Providers,Invoice,BACS,No,22/02/2024 00:00,2023,11,CS66885101,J01195,Elections - SCC,2444,Miscellaneous Expenses,XXX99,*** UNASSIGNED ***,WCC,CEC Recharges,WC,CEC Recharges,A,Central Services
GUILDFORD BOROUGH COUNCIL,Government Short Term Debtors,827380,CFH Docmail Ltd,27/02/2024,30123025,500,0,Miscellaneous Expenses,Document Archiving Providers,Invoice,BACS,No,31/01/2024 00:00,2023,11,87432,J02002,Parliamentary Elections,2444,Miscellaneous Expenses,XXX99,*** UNASSIGNED ***,WCC,CEC Recharges,WC,CEC Recharges,A,Central Services
GUILDFORD BOROUGH COUNCIL,Government Short Term Debtors,827380,CFH Docmail Ltd,27/02/2024,30123025,5240,0,Postal Voting Costs,Document Archiving Providers,Invoice,BACS,No,31/01/2024 00:00,2023,11,87432,J02002,Parliamentary Elections,2447,Postal Voting Costs,XXX99,*** UNASSIGNED ***,WCC,CEC Recharges,WC,CEC Recharges,A,Central Services
GUILDFORD BOROUGH COUNCIL,Government Short Term Debtors,827380,CFH Docmail Ltd,27/02/2024,30123025,2449.7,0,Postal Voting Costs,Document Archiving Providers,Invoice,BACS,No,31/01/2024 00:00,2023,11,87432,J02002,Parliamentary Elections,2447,Postal Voting Costs,XXX99,*** UNASSIGNED ***,WCC,CEC Recharges,WC,CEC Recharges,A,Central Services
GUILDFORD BOROUGH COUNCIL,Government Short Term Debtors,827380,CFH Docmail Ltd,27/02/2024,30123025,3120,0,Poll Cards,Document Archiving Providers,Invoice,BACS,No,31/01/2024 00:00,2023,11,87432,J02002,Parliamentary Elections,2278,Poll Cards,XXX99,*** UNASSIGNED ***,WCC,CEC Recharges,WC,CEC Recharges,A,Central Services
GUILDFORD BOROUGH COUNCIL,Finance,827380,CFH Docmail Ltd,19/03/2024,30123260,1347.6,0,"Printing, Photocopying And Reprographics External",Document Archiving Providers,Invoice,BACS,No,22/02/2024 00:00,2023,11,CS66891101,F6141,Council Tax Collectn Expenses,D5005,"Printing, Photocopying And Reprographics External",ACA00,Council Tax Collection,ACA,Local Tax Collection,AC,Central Services to the Public,A,Central Services
GUILDFORD BOROUGH COUNCIL,Finance,827380,CFH Docmail Ltd,14/03/2024,30123009,1493.54,0,"Printing, Photocopying And Reprographics External",Document Archiving Providers,Invoice,BACS,No,19/02/2024 00:00,2023,12,CS66862001,F6141,Council Tax Collectn Expenses,D5005,"Printing, Photocopying And Reprographics External",ACA00,Council Tax Collection,ACA,Local Tax Collection,AC,Central Services to the Public,A,Central Services
GUILDFORD BOROUGH COUNCIL,Environmental Services,127400,Chambers Runfold Plc,05/03/2024,30122277,510.49,0,Grounds Maintenance,Quarry And Aggregates Suppliers,Invoice,BACS,No,08/02/2024 00:00,2023,11,218066,A1300,Trees And Countryside,B6001,Grounds Maintenance,CCE00,Community Parks & Open Spaces,CCE,Open Spaces,CC,Cultural & Related Services,C,"Cultural, Environmental & Planning Services"
GUILDFORD BOROUGH COUNCIL,Environmental Services,127400,Chambers Runfold Plc,05/03/2024,30122277,510.49,0,Grounds Maintenance,Quarry And Aggregates Suppliers,Invoice,BACS,No,08/02/2024 00:00,2023,11,218066,A1300,Countryside,B6001,Grounds Maintenance,CCE00,Community Parks & Open Spaces,CCE,Open Spaces,CC,Cultural & Related Services,C,"Cultural, Environmental & Planning Services"
GUILDFORD BOROUGH COUNCIL,Property,127400,Chambers Runfold Plc,20/02/2024,30121147,400,0,Consultants Fees,Quarry And Aggregates Suppliers,Invoice,BACS,No,24/01/2024 00:00,2023,10,217534,P74040,WUV - Weyside Urban Village (SARP),1221,Consultants Fees,XXX99,*** UNASSIGNED ***,WCC,CEC Recharges,WC,CEC Recharges,A,Central Services
GUILDFORD BOROUGH COUNCIL,Housing Services,127500,Chambers Waste Management Plc,19/03/2024,30123787,695.68,0,Materials,Other Waste Disposal Suppliers,Invoice,BACS,No,25/02/2024 00:00,2023,12,P687239,K1515,Building Maintenance,D2003,Materials,DBX45,Property Services,DBX,Support Service and Management Costs,DB,Children's Social Care,E,Childrens and Education Services
GUILDFORD BOROUGH COUNCIL,Housing Services,127500,Chambers Waste Management Plc,05/03/2024,30123077,2570.56,0,Materials,Other Waste Disposal Suppliers,Invoice,BACS,No,11/02/2024 00:00,2023,11,P686025,K1515,Building Maintenance,D2003,Materials,DBX45,Property Services,DBX,Support Service and Management Costs,DB,Children's Social Care,E,Childrens and Education Services
GUILDFORD BOROUGH COUNCIL,Housing Services,127500,Chambers Waste Management Plc,26/03/2024,30124346,1320.36,0,Materials,Other Waste Disposal Suppliers,Invoice,BACS,No,29/02/2024 00:00,2023,12,P687797,K1515,Building Maintenance,D2003,Materials,DBX45,Property Services,DBX,Support Service and Management Costs,DB,Children's Social Care,E,Childrens and Education Services
GUILDFORD BOROUGH COUNCIL,Housing Services,127500,Chambers Waste Management Plc,20/02/2024,30122135,256.13,0,Materials,Other Waste Disposal Suppliers,Invoice,BACS,No,28/01/2024 00:00,2023,11,P681686,K1515,Building Maintenance,D2003,Materials,DBX45,Property Services,DBX,Support Service and Management Costs,DB,Children's Social Care,E,Childrens and Education Services
GUILDFORD BOROUGH COUNCIL,Housing Services,127500,Chambers Waste Management Plc,25/01/2024,30119541,1404.9,0,Materials,Other Waste Disposal Suppliers,Invoice,BACS,No,31/12/2023 00:00,2023,10,P675613,K1515,Building Maintenance,D2003,Materials,DBX45,Property Services,DBX,Support Service and Management Costs,DB,Children's Social Care,E,Childrens and Education Services
GUILDFORD BOROUGH COUNCIL,Housing Services,127500,Chambers Waste Management Plc,15/02/2024,30121349,1215.54,0,Materials,Other Waste Disposal Suppliers,Invoice,BACS,No,21/01/2024 00:00,2023,10,P680751,K1515,Building Maintenance,D2003,Materials,DBX45,Property Services,DBX,Support Service and Management Costs,DB,Children's Social Care,E,Childrens and Education Services
GUILDFORD BOROUGH COUNCIL,Housing Services,127500,Chambers Waste Management Plc,01/02/2024,30120042,438.71,0,Materials,Other Waste Disposal Suppliers,Invoice,BACS,No,07/01/2024 00:00,2023,10,P679606,K1515,Building Maintenance,D2003,Materials,DBX45,Property Services,DBX,Support Service and Management Costs,DB,Children's Social Care,E,Childrens and Education Services
GUILDFORD BOROUGH COUNCIL,Housing Services,127500,Chambers Waste Management Plc,27/02/2024,30122163,878.27,0,Materials,Other Waste Disposal Suppliers,Invoice,BACS,No,31/01/2024 00:00,2023,11,P681843,K1515,Building Maintenance,D2003,Materials,DBX45,Property Services,DBX,Support Service and Management Costs,DB,Children's Social Care,E,Childrens and Education Services
GUILDFORD BOROUGH COUNCIL,Housing Services,127500,Chambers Waste Management Plc,06/02/2024,30121120,490.28,0,Materials,Other Waste Disposal Suppliers,Invoice,BACS,No,14/01/2024 00:00,2023,10,P680514,K1515,Building Maintenance,D2003,Materials,DBX45,Property Services,DBX,Support Service and Management Costs,DB,Children's Social Care,E,Childrens and Education Services
